Workbook

Sheet ORÇAMENTO SINTÉTICO
A3: PREFEITURA MUNICIPAL DE ITABORAÍ
A4: SECRETARIA MUNICIPAL DE OBRAS
A5: OBRA DE REFORMA DO TEATRO JOÃO CAETANO
A6: Local: Praça Marechal Floriano Peixoto, bairro Centro, Itaboraí, RJ
E8: ='ORÇAMENTO ANALÍTICO'!$I$6 -> BDI SERVIÇOS = 28,82 %
E9: ='ORÇAMENTO ANALÍTICO'!I7 -> BDI EQUIPAMENTOS = 23,02 %
E10: ='ORÇAMENTO ANALÍTICO'!$I$8 -> BASE: SINAPI/EMOP/SCO
E11: ='ORÇAMENTO ANALÍTICO'!$I$9 -> DATA BASE: JANEIRO/2023
A12: ANEXO I A - ORÇAMENTO SINTÉTICO
A13: ITEM | B13: DESCRIÇÃO | E13: TOTAL
A15: 1 | B15: SERVIÇOS DE ESCRITÓRIO, LABORATÓRIO E CAMPO | E15: ='ORÇAMENTO ANALÍTICO'!I19 -> 0
A16: 2 | B16: CANTEIRO DE OBRAS | E16: ='ORÇAMENTO ANALÍTICO'!I29 -> 0
A17: 3 | B17: MOVIMENTO DE TERRA | E17: ='ORÇAMENTO ANALÍTICO'!I35 -> 0
A18: 4 | B18: TRANSPORTES | E18: ='ORÇAMENTO ANALÍTICO'!I40 -> 0
A19: 5 | B19: SERVIÇOS COMPLEMENTARES | E19: ='ORÇAMENTO ANALÍTICO'!I54 -> 0
A20: 6 | B20: FUNDAÇÕES E ESTRUTURAS | E20: ='ORÇAMENTO ANALÍTICO'!I63 -> 0
A21: 7 | B21: ALVENARIAS E DIVISÓRIAS | E21: ='ORÇAMENTO ANALÍTICO'!I69 -> 0
A22: 8 | B22: REVESTIMENTOS | E22: ='ORÇAMENTO ANALÍTICO'!I84 -> 0
A23: 9 | B23: ESQUADRIAS | E23: ='ORÇAMENTO ANALÍTICO'!I101 -> 0
A24: 10 | B24: INSTALAÇÕES | E24: ='ORÇAMENTO ANALÍTICO'!I152 -> 0
A25: 11 | B25: COBERTURAS | E25: ='ORÇAMENTO ANALÍTICO'!I163 -> 0
A26: 12 | B26: PINTURAS | E26: ='ORÇAMENTO ANALÍTICO'!I173 -> 0
A27: 13 | B27: APARELHOS | E27: ='ORÇAMENTO ANALÍTICO'!I204 -> 0
A28: 14 | B28: ADMINISTRAÇÃO LOCAL DA OBRA | E28: ='ORÇAMENTO ANALÍTICO'!I207 -> 0
A29: TOTAL GERAL | E29: =SUM(E15:E28) -> 0

Sheet ORÇAMENTO ANALÍTICO
C2: ='ORÇAMENTO SINTÉTICO'!A3 -> PREFEITURA MUNICIPAL DE ITABORAÍ
B3: ='ORÇAMENTO SINTÉTICO'!A4 -> SECRETARIA MUNICIPAL DE OBRAS
B4: ='ORÇAMENTO SINTÉTICO'!A5 -> OBRA DE REFORMA DO TEATRO JOÃO CAETANO
B5: ='ORÇAMENTO SINTÉTICO'!A6 -> Local: Praça Marechal Floriano Peixoto, bairro Centro, Itaboraí, RJ | L5: VALOR PROPOSTO R$ | M5: 1104141.55
I6: BDI SERVIÇOS = 28,82 % | L6: VALOR LICITADO R$ | M6: 1048951.51
I7: BDI EQUIPAMENTOS = 23,02 % | L7: DESCONTO | M7: =(M5-M6)/M5 -> 0.04998456946
I8: BASE: SINAPI/EMOP/SCO
I9: DATA BASE: JANEIRO/2023
B10: ANEXO I – PROPOSTA DE PREÇOS | K10: BDI SERVIÇOS | L10: BDI EQUIPAMENTOS | M10: DESCONTO 5%
B11: ITEM | C11: CÓDIGO | D11: DESCRIÇÃO | E11: UN | F11: QUANT | G11: UNITÁRIO | H11: CUSTO | K11: ='% B.D.I Serviços'!H44 -> 0 | L11: ='% B.D.I Equipamentos'!H43 -> 0 | M11: 0.95
G12: SEM BDI | H12: UNIT + BDI | I12: TOTAL
B13: 1 | C13: SERVIÇOS DE ESCRITÓRIO, LABORATÓRIO E CAMPO
A14: =B14&C14 -> 1.101.050.0546-A | B14: 1.1 | C14: 01.050.0546-A | D14: =VLOOKUP(C14,'EMOP 01-2023'!A:J,2,0) -> PROJETO EXECUTIVO ESTRUTURAL PARA PREDIOS CULTURAIS ATE 500M2,CONSIDERANDO O PROJETO BASICO EXISTENTE,APRESENTADO NOS PADROES DA CONTRATANTE,CONSTANDO DE PLANTAS DE FORMA,ARMACAO E DETALHES | E14: =VLOOKUP(C14,'EMOP 01-2023'!A:J,9,0) -> M2 | F14: ='MEMÓRIA DE CÁLCULO'!K10 -> 355
A15: =B15&C15 -> 1.201.050.0481-A | B15: 1.2 | C15: 01.050.0481-A | D15: =VLOOKUP(C15,'EMOP 01-2023'!A:J,2,0) -> PROJETO EXECUTIVO DE INSTALACAO HIDRAULICA,CONSIDERANDO O PROJETO BASICO EXISTENTE,PARA PREDIOS CULTURAIS,APRESENTADO NOS PADROES DA CONTRATANTE,INCLUSIVE AS LEGALIZACOES PERTINENTES | E15: =VLOOKUP(C15,'EMOP 01-2023'!A:J,9,0) -> M2 | F15: ='MEMÓRIA DE CÁLCULO'!K14 -> 355
A16: =B16&C16 -> 1.301.050.0518-A | B16: 1.3 | C16: 01.050.0518-A | D16: =VLOOKUP(C16,'EMOP 01-2023'!A:J,2,0) -> PROJETO EXECUTIVO DE INSTALACAO ELETRICA,CONSIDERANDO O PROJETO BASICO EXISTENTE,PARA PREDIOS CULTURAIS ATE 3000M2,APRESENTADO NOS PADROES DA CONTRATANTE,INCLUSIVE AS LEGALIZACOESPERTINENTES | E16: =VLOOKUP(C16,'EMOP 01-2023'!A:J,9,0) -> M2 | F16: ='MEMÓRIA DE CÁLCULO'!K18 -> 355
A17: =B17&C17 -> 1.401.050.0455-A | B17: 1.4 | C17: 01.050.0455-A | D17: =VLOOKUP(C17,'EMOP 01-2023'!A:J,2,0) -> PROJETO EXECUTIVO DE INSTALACAO DE ESGOTO SANITARIO E AGUASPLUVIAIS,CONSIDERANDO O PROJETO BASICO EXISTENTE,PARA PREDIOS CULTURAIS,APRESENTADO NOS PADROES DA CONTRATANTE,INCLUSIVE AS LEGALIZACOES PERTINENTES | E17: =VLOOKUP(C17,'EMOP 01-2023'!A:J,9,0) -> M2 | F17: ='MEMÓRIA DE CÁLCULO'!K22 -> 355
A18: =B18&C18 -> 1.501.050.0530-A | B18: 1.5 | C18: 01.050.0530-A | D18: =VLOOKUP(C18,'EMOP 01-2023'!A:J,2,0) -> PROJETO EXECUTIVO DE SISTEMA DE AR CONDICIONADO,CONSIDERANDOO PROJETO BASICO EXISTENTE,APRESENTADO NOS PADROES DA CONTRATANTE,PARA PREDIOS COM AREA ATE 500M2 | E18: =VLOOKUP(C18,'EMOP 01-2023'!A:J,9,0) -> M2 | F18: ='MEMÓRIA DE CÁLCULO'!K26 -> 355
H19: SUBTOTAL 1 | I19: =SUM(I14:I18) -> 0
B20: 2 | C20: CANTEIRO DE OBRAS
A21: =B21&C21 -> 2.102.020.0001-A | B21: 2.1 | C21: 02.020.0001-A | D21: =VLOOKUP(C21,'EMOP 01-2023'!A:J,2,0) -> PLACA DE IDENTIFICACAO DE OBRA PUBLICA,INCLUSIVE PINTURA E SUPORTES DE MADEIRA.FORNECIMENTO E COLOCACAO | E21: =VLOOKUP(C21,'EMOP 01-2023'!A:J,9,0) -> M2 | F21: ='MEMÓRIA DE CÁLCULO'!K31 -> 2.88 | J21: RETRABALHO !
A22: =B22&C22 -> 2.202.002.0005-A | B22: 2.2 | C22: 02.002.0005-A | D22: =VLOOKUP(C22,'EMOP 01-2023'!A:J,2,0) -> TAPUME DE VEDACAO OU PROTECAO,EXECUTADO COM TELHAS TRAPEZOIDAIS DE ACO GALVANIZADO,ESPESSURA DE 0,5MM,ESTAS COM 4 VEZESDE UTILIZACAO,INCLUSIVE ENGRADAMENTO DE MADEIRA,UTILIZADO 2VEZES E PINTURA ESMALTE SINTETICO NA FACE EXTERNA | E22: =VLOOKUP(C22,'EMOP 01-2023'!A:J,9,0) -> M2 | F22: ='MEMÓRIA DE CÁLCULO'!K35 -> 116.6 | J22: RETRABALHO !
A23: =B23&C23 -> 2.302.016.0001-A | B23: 2.3 | C23: 02.016.0001-A | D23: =VLOOKUP(C23,'EMOP 01-2023'!A:J,2,0) -> INSTALACAO E LIGACAO PROVISORIA DE ALIMENTACAO DE ENERGIA ELETRICA,EM BAIXA TENSAO,PARA CANTEIRO DE OBRAS,M3-CHAVE 100A,CARGA 3KW,20CV,EXCLUSIVE O FORNECIMENTO DO MEDIDOR | E23: =VLOOKUP(C23,'EMOP 01-2023'!A:J,9,0) -> UN | F23: ='MEMÓRIA DE CÁLCULO'!K39 -> 1 | J23: RETRABALHO !
A24: =B24&C24 -> 2.402.015.0001-A | B24: 2.4 | C24: 02.015.0001-A | D24: =VLOOKUP(C24,'EMOP 01-2023'!A:J,2,0) -> INSTALACAO E LIGACAO PROVISORIA PARA ABASTECIMENTO DE AGUA E ESGOTAMENTO SANITARIO EM CANTEIRO DE OBRAS,INCLUSIVE ESCAVACAO,EXCLUSIVE REPOSICAO DA PAVIMENTACAO DO LOGRADOURO PUBLICO | E24: =VLOOKUP(C24,'EMOP 01-2023'!A:J,9,0) -> UN | F24: ='MEMÓRIA DE CÁLCULO'!K41 -> 1 | J24: RETRABALHO !
A25: =B25&C25 -> 2.510775 | B25: 2.5 | C25: 10775 | D25: LOCACAO DE CONTAINER 2,30 X 6,00 M, ALT. 2,50 M, COM 1 SANITARIO, PARA ESCRITORIO, COMPLETO, SEM DIVISORIAS INTERNAS (NAO INCLUI MOBILIZACAO/DESMOBILIZACAO) | E25: MES | F25: ='MEMÓRIA DE CÁLCULO'!K43 -> 6 | J25: RETRABALHO !
A26: =B26&C26 -> 2.610778 | B26: 2.6 | C26: 10778 | D26: LOCACAO DE CONTAINER 2,30 X 6,00 M, ALT. 2,50 M, PARA SANITARIO, COM 4 BACIAS, 8 CHUVEIROS,1 LAVATORIO E 1 MICTORIO (NAO INCLUI MOBILIZACAO/DESMOBILIZACAO) | E26: MES | F26: ='MEMÓRIA DE CÁLCULO'!K47 -> 6 | J26: RETRABALHO !
A27: =B27&C27 -> 2.704.013.0015-A | B27: 2.7 | C27: 04.013.0015-A | D27: =VLOOKUP(C27,'EMOP 01-2023'!A:J,2,0) -> CARGA E DESCARGA DE CONTAINER,SEGUNDO DESCRICAO DA FAMILIA 02.006 | E27: =VLOOKUP(C27,'EMOP 01-2023'!A:J,9,0) -> UN | F27: ='MEMÓRIA DE CÁLCULO'!K51 -> 2 | J27: RETRABALHO !
A28: =B28&C28 -> 2.804.005.0300-A | B28: 2.8 | C28: 04.005.0300-A | D28: =VLOOKUP(C28,'EMOP 01-2023'!A:J,2,0) -> TRANSPORTE DE CONTAINER,SEGUNDO DESCRICAO DA FAMILIA 02.006,EXCLUSIVE CARGA E DESCARGA(VIDE ITEM 04.013.0015) | E28: =VLOOKUP(C28,'EMOP 01-2023'!A:J,9,0) -> UNXKM | F28: ='MEMÓRIA DE CÁLCULO'!K53 -> 40 | J28: RETRABALHO !
H29: SUBTOTAL 2 | I29: =SUM(I21:I28) -> 0
B30: 3 | C30: MOVIMENTO DE TERRA
A31: =B31&C31 -> 3.190084 | B31: 3.1 | C31: 90084 | D31: =VLOOKUP(C31,'SINAPI 01-2023'!A:E,2,0) -> ESCAVAÇÃO MECANIZADA DE VALA COM PROF. MAIOR QUE 1,5 M ATÉ 3,0 M (MÉDIA MONTANTE E JUSANTE/UMA COMPOSIÇÃO POR TRECHO), ESCAVADEIRA (0,8 M3), LARGURA ATÉ 1,5 M, EM SOLO DE 1A CATEGORIA, EM LOCAIS COM ALTO NÍVEL DE INTERFERÊNCIA. AF_02/2021 | E31: =VLOOKUP(C31,'SINAPI 01-2023'!A:E,3,0) -> M3 | F31: ='MEMÓRIA DE CÁLCULO'!K58 -> 23.94
A32: =B32&C32 -> 3.293358 | B32: 3.2 | C32: 93358 | D32: =VLOOKUP(C32,'SINAPI 01-2023'!A:E,2,0) -> ESCAVAÇÃO MANUAL DE VALA COM PROFUNDIDADE MENOR OU IGUAL A 1,30 M. AF_02/2021 | E32: =VLOOKUP(C32,'SINAPI 01-2023'!A:E,3,0) -> M3 | F32: ='MEMÓRIA DE CÁLCULO'!K63 -> 25.14
A33: =B33&C33 -> 3.393382 | B33: 3.3 | C33: 93382 | D33: =VLOOKUP(C33,'SINAPI 01-2023'!A:E,2,0) -> REATERRO MANUAL DE VALAS COM COMPACTAÇÃO MECANIZADA. AF_04/2016 | E33: =VLOOKUP(C33,'SINAPI 01-2023'!A:E,3,0) -> M3 | F33: ='MEMÓRIA DE CÁLCULO'!K71 -> 37.47
A34: =B34&C34 -> 3.403.009.0015-A | B34: 3.4 | C34: 03.009.0015-A | D34: =VLOOKUP(C34,'EMOP 01-2023'!A:J,2,0) -> ATERRO COM MATERIAL DE 1ª CATEGORIA,COMPACTADO MANUALMENTE EM CAMADAS DE 20CM DE MATERIAL APILOADO,PROVENIENTE DE JAZIDA DISTANTE ATE 10KM,INCLUSIVE ESCAVACAO,CARGA,TRANSPORTE EM CAMINHAO BASCULANTE,DESCARGA,ESPALHAMENTO E IRRIGACAO MANUAIS | E34: =VLOOKUP(C34,'EMOP 01-2023'!A:J,9,0) -> M3 | F34: ='MEMÓRIA DE CÁLCULO'!K80 -> 31.45
H35: SUBTOTAL 3 | I35: =SUM(I31:I34) -> 0
B36: 4 | C36: TRANSPORTES
A37: =B37&C37 -> 4.105.001.0171-A | B37: 4.1 | C37: 05.001.0171-A | D37: =VLOOKUP(C37,'EMOP 01-2023'!A:J,2,0) -> TRANSPORTE HORIZONTAL DE MATERIAL DE 1ªCATEGORIA OU ENTULHO,EM CARRINHOS,A 20,00M DE DISTANCIA,INCLUSIVE CARGA A PA | E37: =VLOOKUP(C37,'EMOP 01-2023'!A:J,9,0) -> M3 | F37: ='MEMÓRIA DE CÁLCULO'!K99 -> 43.01
A38: =B38&C38 -> 4.2100981 | B38: 4.2 | C38: 100981 | D38: =VLOOKUP(C38,'SINAPI 01-2023'!A:E,2,0) -> CARGA, MANOBRA E DESCARGA DE ENTULHO EM CAMINHÃO BASCULANTE 6 M³ - CARGA COM ESCAVADEIRA HIDRÁULICA (CAÇAMBA DE 0,80 M³ / 111 HP) E DESCARGA LIVRE (UNIDADE: M3). AF_07/2020 | E38: =VLOOKUP(C38,'SINAPI 01-2023'!A:E,3,0) -> M3 | F38: ='MEMÓRIA DE CÁLCULO'!K110 -> 24
A39: =B39&C39 -> 4.397918 | B39: 4.3 | C39: 97918 | D39: =VLOOKUP(C39,'SINAPI 01-2023'!A:E,2,0) -> TRANSPORTE COM CAMINHÃO BASCULANTE DE 6 M³, EM VIA URBANA PAVIMENTADA, DMT ATÉ 30 KM (UNIDADE: TXKM). AF_07/2020 | E39: =VLOOKUP(C39,'SINAPI 01-2023'!A:E,3,0) -> TXKM | F39: ='MEMÓRIA DE CÁLCULO'!K121 -> 480.48
H40: SUBTOTAL 4 | I40: =SUM(I37:I39) -> 0
B41: 5 | C41: SERVIÇOS COMPLEMENTARES
A42: =B42&C42 -> 5.197622 | B42: 5.1 | C42: 97622 | D42: =VLOOKUP(C42,'SINAPI 01-2023'!A:E,2,0) -> DEMOLIÇÃO DE ALVENARIA DE BLOCO FURADO, DE FORMA MANUAL, SEM REAPROVEITAMENTO. AF_12/2017 | E42: =VLOOKUP(C42,'SINAPI 01-2023'!A:E,3,0) -> M3 | F42: ='MEMÓRIA DE CÁLCULO'!K133 -> 33.6 | G42: =VLOOKUP(C42,'SINAPI 01-2023'!A:E,4,0) -> 61,68 | H42: =ROUND((G42*$K$11)+G42,2) -> 61.68 | I42: 0 | J42: RETRABALHO !
A43: =B43&C43 -> 5.105.001.0002-B | B43: 5.1 | C43: 05.001.0002-B | D43: =VLOOKUP(C43,'EMOP 01-2023'!A:J,2,0) -> DEMOLICAO MANUAL DE CONCRETO ARMADO COMPREENDENDO PILARES,VIGAS E LAJES,EM ESTRUTURA APRESENTANDO POSICAO ESPECIAL,INCLUSIVE EMPILHAMENTO LATERAL DENTRO DO CANTEIRO DE SERVICO | E43: =VLOOKUP(C43,'EMOP 01-2023'!A:J,9,0) -> M3 | F43: ='MEMÓRIA DE CÁLCULO'!K153 -> 3.48
A44: =B44&C44 -> 5.205.001.0018-A | B44: 5.2 | C44: 05.001.0018-A | D44: =VLOOKUP(C44,'EMOP 01-2023'!A:J,2,0) -> DEMOLICAO MANUAL DE PISO CIMENTADO E DA RESPECTIVA BASE DE CONCRETO,OU PASSEIO DE CONCRETO,INCLUSIVE EMPILHAMENTO LATERAL DENTRO DO CANTEIRO DE SERVICO | E44: =VLOOKUP(C44,'EMOP 01-2023'!A:J,9,0) -> M2 | F44: ='MEMÓRIA DE CÁLCULO'!K163 -> 89.6
A45: =B45&C45 -> 5.305.001.0134-A | B45: 5.3 | C45: 05.001.0134-A | D45: =VLOOKUP(C45,'EMOP 01-2023'!A:J,2,0) -> ARRANCAMENTO DE PORTAS,JANELAS E CAIXILHOS DE AR CONDICIONADO OU OUTROS | E45: =VLOOKUP(C45,'EMOP 01-2023'!A:J,9,0) -> UN | F45: ='MEMÓRIA DE CÁLCULO'!K170 -> 0 | J45: RETRABALHO !
A46: =B46&C46 -> 5.405.001.0147-A | B46: 5.4 | C46: 05.001.0147-A | D46: =VLOOKUP(C46,'EMOP 01-2023'!A:J,2,0) -> ARRANCAMENTO DE GRADES,GRADIS,ALAMBRADOS,CERCAS E PORTOES | E46: =VLOOKUP(C46,'EMOP 01-2023'!A:J,9,0) -> M2 | F46: ='MEMÓRIA DE CÁLCULO'!K183 -> 21.2
A47: =B47&C47 -> 5.505.001.0050-A | B47: 5.5 | C47: 05.001.0050-A | D47: =VLOOKUP(C47,'EMOP 01-2023'!A:J,2,0) -> REMOCAO DE COBERTURA EM TELHAS COLONIAIS,INCLUSIVE MADEIRAMENTO,MEDIDO O CONJUNTO PELA AREA REAL DE COBERTURA | E47: =VLOOKUP(C47,'EMOP 01-2023'!A:J,9,0) -> M2 | F47: ='MEMÓRIA DE CÁLCULO'!K189 -> 122.77
A48: =B48&C48 -> 5.605.005.0005-B | B48: 5.6 | C48: 05.005.0005-B | D48: =VLOOKUP(C48,'EMOP 01-2023'!A:J,2,0) -> ANDAIME DE TABUADO SOBRE CAVALETES,INCLUSIVE ESTES,EM MADEIRA DE 1ª,COM APROVEITAMENTO DA MADEIRA 20 VEZES,INCLUSIVE MOVIMENTACAO | E48: =VLOOKUP(C48,'EMOP 01-2023'!A:J,9,0) -> M2 | F48: ='MEMÓRIA DE CÁLCULO'!K193 -> 21.15
A49: =B49&C49 -> 5.705.006.0001-B | B49: 5.7 | C49: 05.006.0001-B | D49: =VLOOKUP(C49,'EMOP 01-2023'!A:J,2,0) -> LOCACAO DE ANDAIME COM ELEMENTOS TUBULARES SOBRE SAPATAS FIXAS,CONSIDERANDO-SE A AREA DA PROJECAO VERTICAL DO ANDAIME EPAGO PELO TEMPO NECESSARIO A SUA UTILIZACAO,EXCLUSIVE TRANSPORTE DOS ELEMENTOS DO ANDAIME ATE A OBRA,PLATAFORMA OU PASSARELA DE PINHO,MONTAGEM E DESMONTAGEM DOS ANDAIMES | E49: =VLOOKUP(C49,'EMOP 01-2023'!A:J,9,0) -> M2XMES | F49: ='MEMÓRIA DE CÁLCULO'!K227 -> 745.2
A50: =B50&C50 -> 5.897064 | B50: 5.8 | C50: 97064 | D50: =VLOOKUP(C50,'SINAPI 01-2023'!A:E,2,0) -> MONTAGEM E DESMONTAGEM DE ANDAIME TUBULAR TIPO TORRE (EXCLUSIVE ANDAIME E LIMPEZA). AF_11/2017 | E50: =VLOOKUP(C50,'SINAPI 01-2023'!A:E,3,0) -> M | F50: ='MEMÓRIA DE CÁLCULO'!K239 -> 144.48
A51: =B51&C51 -> 5.904.020.0122-A | B51: 5.9 | C51: 04.020.0122-A | D51: =VLOOKUP(C51,'EMOP 01-2023'!A:J,2,0) -> TRANSPORTE DE ANDAIME TUBULAR,CONSIDERANDO-SE A AREA DE PROJECAO VERTICAL DO ANDAIME,EXCLUSIVE CARGA,DESCARGA E TEMPO DE ESPERA DO CAMINHAO(VIDE ITEM 04.021.0010) | E51: =VLOOKUP(C51,'EMOP 01-2023'!A:J,9,0) -> M2XKM | F51: ='MEMÓRIA DE CÁLCULO'!K250 -> 4968
A52: =B52&C52 -> 5.1004.021.0010-A | B52: 5.10 | C52: 04.021.0010-A | D52: =VLOOKUP(C52,'EMOP 01-2023'!A:J,2,0) -> CARGA E DESCARGA MANUAL DE ANDAIME TUBULAR,INCLUSIVE TEMPO DE ESPERA DO CAMINHAO,CONSIDERANDO-SE A AREA DE PROJECAO VERTICAL | E52: =VLOOKUP(C52,'EMOP 01-2023'!A:J,9,0) -> M2 | F52: ='MEMÓRIA DE CÁLCULO'!K260 -> 248.4
A53: =B53&C53 -> 5.1197062 | B53: 5.11 | C53: 97062 | D53: =VLOOKUP(C53,'SINAPI 01-2023'!A:E,2,0) -> COLOCAÇÃO DE TELA EM ANDAIME FACHADEIRO. AF_11/2017 | E53: =VLOOKUP(C53,'SINAPI 01-2023'!A:E,3,0) -> M2 | F53: ='MEMÓRIA DE CÁLCULO'!K267 -> 248.4
H54: SUBTOTAL 5
B55: 6 | C55: FUNDAÇÕES E ESTRUTURAS
A56: =B56&C56 -> 6.111.016.0040-A | B56: 6.1 | C56: 11.016.0040-A | D56: =VLOOKUP(C56,'EMOP 01-2023'!A:J,2,0) -> ESTRUTURA METALICA EM ACO ESPECIAL,RESISTENTE A CORROSAO(ACO USI-SAC),PARA OBRAS PREDIAIS DE ATE 04 PAVIMENTOS,PILARES,VIGAS PRINCIPAIS E SECUNDARIAS,ESCADAS,PATAMARES E CHAPAS DAS BASES DA FUNDACAO,PINTURA PROTETORA,CONSIDERANDO FORNECIMENTO DE TODOS OS MATERIAIS E MONTAGEM,EXCLUSIVE A LAJE DE CONCRETO | E56: =VLOOKUP(C56,'EMOP 01-2023'!A:J,9,0) -> M2 | F56: ='MEMÓRIA DE CÁLCULO'!K275 -> 0 | J56: ITEM GLOSADO PELA CAIXA E COMPORÁ A PLANILHA SOMENTE APARTIR DA CONCLUSÃO DA ANÁLISE DO CALCULISTA E DO PROJETO DE REFORÇO ESTRUTURAL.
A57: =B57&C57 -> 6.2101963 | B57: 6.2 | C57: 101963 | D57: =VLOOKUP(C57,'SINAPI 01-2023'!A:E,2,0) -> LAJE PRÉ-MOLDADA UNIDIRECIONAL, BIAPOIADA, PARA PISO, ENCHIMENTO EM CERÂMICA, VIGOTA CONVENCIONAL, ALTURA TOTAL DA LAJE (ENCHIMENTO+CAPA) = (8+4). AF_11/2020 | E57: =VLOOKUP(C57,'SINAPI 01-2023'!A:E,3,0) -> M2 | F57: ='MEMÓRIA DE CÁLCULO'!K281 -> 18.3
A58: =B58&C58 -> 6.311.013.0075-A | B58: 6.3 | C58: 11.013.0075-A | D58: =VLOOKUP(C58,'EMOP 01-2023'!A:J,2,0) -> CONCRETO ARMADO,FCK=25MPA,INCLUINDO MATERIAIS PARA 1,00M3 DE CONCRETO(IMPORTADO DE USINA)ADENSADO E COLOCADO,14,00M2 DEAREA MOLDADA,FORMAS E ESCORAMENTO CONFORME ITENS 11.004.0022 E 11.004.0035,60KG DE ACO CA-50,INCLUSIVE MAO-DE-OBRA PARACORTE,DOBRAGEM,MONTAGEM E COLOCACAO NAS FORMAS | E58: =VLOOKUP(C58,'EMOP 01-2023'!A:J,9,0) -> M3 | F58: ='MEMÓRIA DE CÁLCULO'!K289 -> 5.2
A59: =B59&C59 -> 6.4104489 | B59: 6.4 | C59: 104489 | D59: =VLOOKUP(C59,'SINAPI 01-2023'!A:E,2,0) -> COMPOSIÇÃO PARAMÉTRICA PARA EXECUÇÃO DE ESCADA EM CONCRETO ARMADO, MOLDADA IN LOCO, FCK = 25 MPA. AF_11/2022 | E59: =VLOOKUP(C59,'SINAPI 01-2023'!A:E,3,0) -> M3 | F59: ='MEMÓRIA DE CÁLCULO'!K304 -> 3.44
A60: =B60&C60 -> 6.593188 | B60: 6.5 | C60: 93188 | D60: =VLOOKUP(C60,'SINAPI 01-2023'!A:E,2,0) -> VERGA MOLDADA IN LOCO EM CONCRETO PARA PORTAS COM ATÉ 1,5 M DE VÃO. AF_03/2016 | E60: =VLOOKUP(C60,'SINAPI 01-2023'!A:E,3,0) -> M | F60: ='MEMÓRIA DE CÁLCULO'!K311 -> 2
A61: =B61&C61 -> 6.693187 | B61: 6.6 | C61: 93187 | D61: =VLOOKUP(C61,'SINAPI 01-2023'!A:E,2,0) -> VERGA MOLDADA IN LOCO EM CONCRETO PARA JANELAS COM MAIS DE 1,5 M DE VÃO. AF_03/2016 | E61: =VLOOKUP(C61,'SINAPI 01-2023'!A:E,3,0) -> M | F61: ='MEMÓRIA DE CÁLCULO'!K332 -> 2.8
A62: =B62&C62 -> 6.793197 | B62: 6.7 | C62: 93197 | D62: =VLOOKUP(C62,'SINAPI 01-2023'!A:E,2,0) -> CONTRAVERGA MOLDADA IN LOCO EM CONCRETO PARA VÃOS DE MAIS DE 1,5 M DE COMPRIMENTO. AF_03/2016 | E62: =VLOOKUP(C62,'SINAPI 01-2023'!A:E,3,0) -> M | F62: ='MEMÓRIA DE CÁLCULO'!K336 -> 2.8
H63: SUBTOTAL 6 | I63: =SUM(I56:I62) -> 0
B64: 7 | C64: ALVENARIAS E DIVISÓRIAS
A65: =B65&C65 -> 7.1103323 | B65: 7.1 | C65: 103323 | D65: =VLOOKUP(C65,'SINAPI 01-2023'!A:E,2,0) -> ALVENARIA DE VEDAÇÃO DE BLOCOS CERÂMICOS FURADOS NA VERTICAL DE 9X19X39 CM (ESPESSURA 9 CM) E ARGAMASSA DE ASSENTAMENTO COM PREPARO MANUAL. AF_12/2021 | E65: =VLOOKUP(C65,'SINAPI 01-2023'!A:E,3,0) -> M2 | F65: ='MEMÓRIA DE CÁLCULO'!K345 -> 47.28
A66: =B66&C66 -> 7.296360 | B66: 7.2 | C66: 96360 | D66: =VLOOKUP(C66,'SINAPI 01-2023'!A:E,2,0) -> PAREDE COM PLACAS DE GESSO ACARTONADO (DRYWALL), PARA USO INTERNO, COM DUAS FACES SIMPLES E ESTRUTURA METÁLICA COM GUIAS DUPLAS, SEM VÃOS. AF_06/2017_PS | E66: =VLOOKUP(C66,'SINAPI 01-2023'!A:E,3,0) -> M2 | F66: ='MEMÓRIA DE CÁLCULO'!K368 -> 31.86
A67: =B67&C67 -> 7.3103317 | B67: 7.3 | C67: 103317 | D67: =VLOOKUP(C67,'SINAPI 01-2023'!A:E,2,0) -> ALVENARIA DE VEDAÇÃO DE BLOCOS VAZADOS DE CONCRETO DE 9X19X39 CM (ESPESSURA 9 CM) E ARGAMASSA DE ASSENTAMENTO COM PREPARO MANUAL. AF_12/2021 | E67: =VLOOKUP(C67,'SINAPI 01-2023'!A:E,3,0) -> M2 | F67: ='MEMÓRIA DE CÁLCULO'!K373 -> 28.85
A68: =B68&C68 -> 7.412.020.0001-A | B68: 7.4 | C68: 12.020.0001-A | D68: =VLOOKUP(C68,'EMOP 01-2023'!A:J,2,0) -> PAREDE DIVISORIA P/SANITARIOS E BANHEIROS DE MARMORITE/GRANILITE CINZA CLARO,GRANA BRANCA,3CM ESPESSURA,CHUMBADA NO PISO E PAREDE,INCL.FUNDICAO,POLIMENTO E COLOCACAO,ESPELHO 4CM ESPESSURA CHUMBADO NO PISO E FIXADO NA DIVISORIA EM 3 PONTOS NA SUA ALTURA,ESTRIBOS PREVIAMENTE DEIXADOS NA FUNDICAO DA PLACA,CONF.PROJETO Nº 6000/EMOP,EXCL.PORTAS E SUAS FERRAGENS | E68: =VLOOKUP(C68,'EMOP 01-2023'!A:J,9,0) -> M2 | F68: ='MEMÓRIA DE CÁLCULO'!K380 -> 13.72
H69: SUBTOTAL 7 | I69: =SUM(I65:I68) -> 0
B70: 8 | C70: REVESTIMENTOS
A71: =B71&C71 -> 8.113.001.0026-A | B71: 8.1 | C71: 13.001.0026-A | D71: =VLOOKUP(C71,'EMOP 01-2023'!A:J,2,0) -> EMBOCO COM ARGAMASSA DE CIMENTO E AREIA,NO TRACO 1:3 COM 2CM DE ESPESSURA,INCLUSIVE CHAPISCO DE CIMENTO E AREIA,NO TRACO 1:3 | E71: =VLOOKUP(C71,'EMOP 01-2023'!A:J,9,0) -> M2 | F71: ='MEMÓRIA DE CÁLCULO'!K392 -> 144.5
A72: =B72&C72 -> 8.2104457 | B72: 8.2 | C72: 104457 | D72: =VLOOKUP(C72,'SINAPI 01-2023'!A:E,2,0) -> REVESTIMENTO CERÂMICO PARA PAREDES INTERNAS COM PLACAS TIPO ESMALTADA EXTRA DE DIMENSÕES 33X45 CM APLICADAS EM AMBIENTES DE ÁREA MENOR QUE 5 M² NA ALTURA INTEIRA DAS PAREDES. AF_06/2014 | E72: =VLOOKUP(C72,'SINAPI 01-2023'!A:E,3,0) -> M2 | F72: ='MEMÓRIA DE CÁLCULO'!K443 -> 199.47
A73: =B73&C73 -> 8.313.196.0025-A | B73: 8.3 | C73: 13.196.0025-A | D73: =VLOOKUP(C73,'EMOP 01-2023'!A:J,2,0) -> FORRO REMOVIVEL COMPOSTO GESSO ACARTONADO,TIPO STANDARD,C/ADICAO DE LA MINERAL,A SER APLICADO SIST.DRYWALL,C/BORDA QUADRADA 625X625MM REVEST.VINIL,ESP.6,5;9,5 OU 12,5MM,ESTRUT.EM PERFIS TIPO TRAVESSA "T" ACO GALV.ALUMINIO OU LIGAS ALUMINIO,ESP.MINIMA 0,5M,C/PINTURA ELETROSTATICA OU CONVENCIONAL,SUSPENSA POR MEIO PENDURAIS,FIX.EM ESTRUT.SUPERIOR.FORN.E COLOC. | E73: =VLOOKUP(C73,'EMOP 01-2023'!A:J,9,0) -> M2 | F73: ='MEMÓRIA DE CÁLCULO'!K458 -> 160.37
A74: =B74&C74 -> 8.496120 | B74: 8.4 | C74: 96120 | D74: =VLOOKUP(C74,'SINAPI 01-2023'!A:E,2,0) -> ACABAMENTOS PARA FORRO (MOLDURA DE GESSO). AF_05/2017 | E74: =VLOOKUP(C74,'SINAPI 01-2023'!A:E,3,0) -> M | F74: ='MEMÓRIA DE CÁLCULO'!K474 -> 187.78
A75: =B75&C75 -> 8.594992 | B75: 8.5 | C75: 94992 | D75: =VLOOKUP(C75,'SINAPI 01-2023'!A:E,2,0) -> EXECUÇÃO DE PASSEIO (CALÇADA) OU PISO DE CONCRETO COM CONCRETO MOLDADO IN LOCO, FEITO EM OBRA, ACABAMENTO CONVENCIONAL, ESPESSURA 6 CM, ARMADO. AF_08/2022 | E75: =VLOOKUP(C75,'SINAPI 01-2023'!A:E,3,0) -> M2 | F75: ='MEMÓRIA DE CÁLCULO'!K494 -> 54.14
A76: =B76&C76 -> 8.692396 | B76: 8.6 | C76: 92396 | D76: =VLOOKUP(C76,'SINAPI 01-2023'!A:E,2,0) -> EXECUÇÃO DE PASSEIO EM PISO INTERTRAVADO, COM BLOCO RETANGULAR COR NATURAL DE 20 X 10 CM, ESPESSURA 6 CM. AF_10/2022 | E76: =VLOOKUP(C76,'SINAPI 01-2023'!A:E,3,0) -> M2 | F76: ='MEMÓRIA DE CÁLCULO'!K502 -> 86
A77: =B77&C77 -> 8.787373 | B77: 8.7 | C77: 87373 | D77: =VLOOKUP(C77,'SINAPI 01-2023'!A:E,2,0) -> ARGAMASSA TRAÇO 1:4 (EM VOLUME DE CIMENTO E AREIA MÉDIA ÚMIDA) PARA CONTRAPISO, PREPARO MANUAL. AF_08/2019 | E77: =VLOOKUP(C77,'SINAPI 01-2023'!A:E,3,0) -> M3 | F77: ='MEMÓRIA DE CÁLCULO'!K506 -> 28.67
A78: =B78&C78 -> 8.887261 | B78: 8.8 | C78: 87261 | D78: =VLOOKUP(C78,'SINAPI 01-2023'!A:E,2,0) -> REVESTIMENTO CERÂMICO PARA PISO COM PLACAS TIPO PORCELANATO DE DIMENSÕES 60X60 CM APLICADA EM AMBIENTES DE ÁREA MENOR QUE 5 M². AF_06/2014 | E78: =VLOOKUP(C78,'SINAPI 01-2023'!A:E,3,0) -> M2 | F78: ='MEMÓRIA DE CÁLCULO'!K548 -> 26.61
A79: =B79&C79 -> 8.987262 | B79: 8.9 | C79: 87262 | D79: =VLOOKUP(C79,'SINAPI 01-2023'!A:E,2,0) -> REVESTIMENTO CERÂMICO PARA PISO COM PLACAS TIPO PORCELANATO DE DIMENSÕES 60X60 CM APLICADA EM AMBIENTES DE ÁREA ENTRE 5 M² E 10 M². AF_06/2014 | E79: =VLOOKUP(C79,'SINAPI 01-2023'!A:E,3,0) -> M2 | F79: ='MEMÓRIA DE CÁLCULO'!K564 -> 83.72
A80: =B80&C80 -> 8.1087263 | B80: 8.10 | C80: 87263 | D80: =VLOOKUP(C80,'SINAPI 01-2023'!A:E,2,0) -> REVESTIMENTO CERÂMICO PARA PISO COM PLACAS TIPO PORCELANATO DE DIMENSÕES 60X60 CM APLICADA EM AMBIENTES DE ÁREA MAIOR QUE 10 M². AF_06/2014 | E80: =VLOOKUP(C80,'SINAPI 01-2023'!A:E,3,0) -> M2 | F80: ='MEMÓRIA DE CÁLCULO'!K580 -> 152
A81: =B81&C81 -> 8.1113.331.0051-A | B81: 8.11 | C81: 13.331.0051-A | D81: =VLOOKUP(C81,'EMOP 01-2023'!A:J,2,0) -> RODAPE COM CERAMICA EM PORCELANATO NATURAL,COM 7,5 A 10CM DE ALTURA,ASSENTES CONFORME ITEM 13.025.0058 | E81: =VLOOKUP(C81,'EMOP 01-2023'!A:J,9,0) -> M | F81: ='MEMÓRIA DE CÁLCULO'!K595 -> 164.88
A82: =B82&C82 -> 8.1298689 | B82: 8.12 | C82: 98689 | D82: =VLOOKUP(C82,'SINAPI 01-2023'!A:E,2,0) -> SOLEIRA EM GRANITO, LARGURA 15 CM, ESPESSURA 2,0 CM. AF_09/2020 | E82: =VLOOKUP(C82,'SINAPI 01-2023'!A:E,3,0) -> M | F82: ='MEMÓRIA DE CÁLCULO'!K618 -> 27.7
A83: =B83&C83 -> 8.1398671 | B83: 8.13 | C83: 98671 | D83: =VLOOKUP(C83,'SINAPI 01-2023'!A:E,2,0) -> PISO EM GRANITO APLICADO EM AMBIENTES INTERNOS. AF_09/2020 | E83: =VLOOKUP(C83,'SINAPI 01-2023'!A:E,3,0) -> M2 | F83: ='MEMÓRIA DE CÁLCULO'!K647 -> 40.03
H84: SUBTOTAL 8 | I84: =SUM(I71:I83) -> 0
B85: 9 | C85: ESQUADRIAS
A86: =B86&C86 -> 9.114.006.0423-A | B86: 9.1 | C86: 14.006.0423-A | D86: =VLOOKUP(C86,'EMOP 01-2023'!A:J,2,0) -> PORTA DE MADEIRA DE LEI MACICA COM ATE 5 ALMOFADAS,COM 3,5CM DE ESPESSURA,EXCLUSIVE FERRAGENS,MARCO E ALIZAR.FORNECIMENTO E COLOCACAO | E86: =VLOOKUP(C86,'EMOP 01-2023'!A:J,9,0) -> M2 | F86: ='MEMÓRIA DE CÁLCULO'!K663 -> 29.25
A87: =B87&C87 -> 9.214.007.0025-A | B87: 9.2 | C87: 14.007.0025-A | D87: =VLOOKUP(C87,'EMOP 01-2023'!A:J,2,0) -> FERRAGENS P/PORTA MADEIRA,DE 2 FOLHAS DE ABRIR,DE ENTRADA PRINCIPAL,CONSTANDO DE FORN.S/COLOC.DE:-FECHADURA CILINDRO,DELATAO,MONOBLOCO,ACABAMENTO CROMADO,;-ENTRADA CIRCULAR,LATAO,ACABAMENTO CROMADO;-ROSETA CIRCULAR,LATAO,ACAB.CROMADO;-MACANETA TIPO ALAVANCA,LATAO,ACABAMENTO CROMADO;-6 DOBRADICAS 3"X3" LATAO CROMADO,C/PINOS,BOLAS E ANEIS DE LATAO E 2 FECHOS | E87: =VLOOKUP(C87,'EMOP 01-2023'!A:J,9,0) -> UN | F87: ='MEMÓRIA DE CÁLCULO'!K675 -> 9
A88: =B88&C88 -> 9.390841 | B88: 9.3 | C88: 90841 | D88: =VLOOKUP(C88,'SINAPI 01-2023'!A:E,2,0) -> KIT DE PORTA DE MADEIRA PARA PINTURA, SEMI-OCA (LEVE OU MÉDIA), PADRÃO MÉDIO, 60X210CM, ESPESSURA DE 3,5CM, ITENS INCLUSOS: DOBRADIÇAS, MONTAGEM E INSTALAÇÃO DO BATENTE, FECHADURA COM EXECUÇÃO DO FURO - FORNECIMENTO E INSTALAÇÃO. AF_12/2019 | E88: =VLOOKUP(C88,'SINAPI 01-2023'!A:E,3,0) -> UN | F88: ='MEMÓRIA DE CÁLCULO'!K686 -> 1
A89: =B89&C89 -> 9.490842 | B89: 9.4 | C89: 90842 | D89: =VLOOKUP(C89,'SINAPI 01-2023'!A:E,2,0) -> KIT DE PORTA DE MADEIRA PARA PINTURA, SEMI-OCA (LEVE OU MÉDIA), PADRÃO MÉDIO, 70X210CM, ESPESSURA DE 3,5CM, ITENS INCLUSOS: DOBRADIÇAS, MONTAGEM E INSTALAÇÃO DO BATENTE, FECHADURA COM EXECUÇÃO DO FURO - FORNECIMENTO E INSTALAÇÃO. AF_12/2019 | E89: =VLOOKUP(C89,'SINAPI 01-2023'!A:E,3,0) -> UN | F89: ='MEMÓRIA DE CÁLCULO'!K691 -> 7
A90: =B90&C90 -> 9.590843 | B90: 9.5 | C90: 90843 | D90: =VLOOKUP(C90,'SINAPI 01-2023'!A:E,2,0) -> KIT DE PORTA DE MADEIRA PARA PINTURA, SEMI-OCA (LEVE OU MÉDIA), PADRÃO MÉDIO, 80X210CM, ESPESSURA DE 3,5CM, ITENS INCLUSOS: DOBRADIÇAS, MONTAGEM E INSTALAÇÃO DO BATENTE, FECHADURA COM EXECUÇÃO DO FURO - FORNECIMENTO E INSTALAÇÃO. AF_12/2019 | E90: =VLOOKUP(C90,'SINAPI 01-2023'!A:E,3,0) -> UN | F90: ='MEMÓRIA DE CÁLCULO'!K703 -> 10
A91: =B91&C91 -> 9.614.006.0220-A | B91: 9.6 | C91: 14.006.0220-A | D91: =VLOOKUP(C91,'EMOP 01-2023'!A:J,2,0) -> PORTA DE MADEIRA DE LEI DE CORRER EM COMPENSADO DE 80X210X3,5CM,PENDURADA EM ROLDANAS,CORRENDO DENTRO DE TRILHO OCO,GUIADA POR CANALETA EMBUTIDA NO PISO COM MARCO DE 7X3CM,EXCLUSIVE FERRAGENS.FORNECIMENTO E COLOCACAO | E91: =VLOOKUP(C91,'EMOP 01-2023'!A:J,9,0) -> UN | F91: ='MEMÓRIA DE CÁLCULO'!K720 -> 1
A92: =B92&C92 -> 9.714.007.0090-A | B92: 9.7 | C92: 14.007.0090-A | D92: =VLOOKUP(C92,'EMOP 01-2023'!A:J,2,0) -> FERRAGENS P/PORTAS DE MADEIRA,DE CORRER,DE 1 FOLHA,CONSTANDO DE FORN.S/COLOC.DE:-FECHADURA C/CHAVE BI-PART.,LATAO, ACABAMENTO CROMADO;-2,00M DE TRILHO EM "U",DE FERRO;-2 ROLDANAS DE FERRO;-2 GUIAS DE LATAO,TAMANHO 3/4",SEM CANTONEIRA;-2,00M CANALETA DE ALUMINIO,TAMANHO 2,00MX3/4",2 CONCHAS COM FUROPARA CHAVE, LATAO CROMADO | E92: =VLOOKUP(C92,'EMOP 01-2023'!A:J,9,0) -> UN | F92: ='MEMÓRIA DE CÁLCULO'!K725 -> 1
A93: =B93&C93 -> 9.891341 | B93: 9.8 | C93: 91341 | D93: =VLOOKUP(C93,'SINAPI 01-2023'!A:E,2,0) -> PORTA EM ALUMÍNIO DE ABRIR TIPO VENEZIANA COM GUARNIÇÃO, FIXAÇÃO COM PARAFUSOS - FORNECIMENTO E INSTALAÇÃO. AF_12/2019 | E93: =VLOOKUP(C93,'SINAPI 01-2023'!A:E,3,0) -> M2 | F93: ='MEMÓRIA DE CÁLCULO'!K730 -> 2.34
A94: =B94&C94 -> 9.914.006.0270-A | B94: 9.9 | C94: 14.006.0270-A | D94: =VLOOKUP(C94,'EMOP 01-2023'!A:J,2,0) -> JANELA DE MADEIRA DE LEI GUILHOTINA DE 120X150X3CM,EM 2 FOLHAS,MARCO DUPLO COM CAIXILHO PARA VIDRO,PRESOS EM BORBOLETAS,EXCLUSIVE FERRAGENS.FORNECIMENTO E COLOCACAO | E94: =VLOOKUP(C94,'EMOP 01-2023'!A:J,9,0) -> UN | F94: ='MEMÓRIA DE CÁLCULO'!K735 -> 3.84
A95: =B95&C95 -> 9.1014.003.0163-A | B95: 9.10 | C95: 14.003.0163-A | D95: =VLOOKUP(C95,'EMOP 01-2023'!A:J,2,0) -> CAIXILHO FIXO DE ALUMINIO ANODIZADO AO NATURAL,SERIE 28,PARA VIDRO.FORNECIMENTO E COLOCACAO | E95: =VLOOKUP(C95,'EMOP 01-2023'!A:J,9,0) -> M2 | F95: ='MEMÓRIA DE CÁLCULO'!K740 -> 3.12
A96: =B96&C96 -> 9.11102181 | B96: 9.11 | C96: 102181 | D96: =VLOOKUP(C96,'SINAPI 01-2023'!A:E,2,0) -> INSTALAÇÃO DE VIDRO TEMPERADO, E = 10 MM, ENCAIXADO EM PERFIL U. AF_01/2021_PS | E96: =VLOOKUP(C96,'SINAPI 01-2023'!A:E,3,0) -> M2 | F96: ='MEMÓRIA DE CÁLCULO'!K745 -> 3.12
A97: =B97&C97 -> 9.1214.002.0205-A | B97: 9.12 | C97: 14.002.0205-A | D97: =VLOOKUP(C97,'EMOP 01-2023'!A:J,2,0) -> GUARDA-CORPO DE FERRO EM LANCES DE 3,00 A 4,00M E 1,00M DE ALTURA,COM 4 MONTANTES DE BARRAS DE 2"X3/4",CHUMBADOS NO CONCRETO,CORRIMAO EM 2 BARRAS SOBREPOSTAS DE 3"X1/2" E 2"X3/8",DUAS TRAVESSAS HORIZONTAIS EM BARRAS DE 1.1/4"X3/8",SOLDADASNOS MONTANTES,UMA DISTANTE 0,34M DO PISO E A OUTRA A 0,33M DESTA E DO CORRIMAO.FORNECIMENTO E COLOCACAO | E97: =VLOOKUP(C97,'EMOP 01-2023'!A:J,9,0) -> M | F97: ='MEMÓRIA DE CÁLCULO'!K750 -> 35.2
A98: =B98&C98 -> 9.1399855 | B98: 9.13 | C98: 99855 | D98: =VLOOKUP(C98,'SINAPI 01-2023'!A:E,2,0) -> CORRIMÃO SIMPLES, DIÂMETRO EXTERNO = 1 1/2, EM AÇO GALVANIZADO. AF_04/2019_PS | E98: =VLOOKUP(C98,'SINAPI 01-2023'!A:E,3,0) -> M | F98: ='MEMÓRIA DE CÁLCULO'!K759 -> 13.7
A99: =B99&C99 -> 9.1414.002.0539-A | B99: 9.14 | C99: 14.002.0539-A | D99: =VLOOKUP(C99,'EMOP 01-2023'!A:J,2,0) -> PORTA ACUSTICA METALICA COM INDICE DE PROTECAO SONORA APROXIMADAMENTE COM 56DB,PARA ALTA FREQUENCIA,NAS DIMENSOES DE 1400X2100MM,INCLUSIVE FECHADURA ESPECIAL COM CHAVE,MOLDURA EM CANTONEIRA DE ACO.FORNECIMENTO E COLOCACAO | E99: =VLOOKUP(C99,'EMOP 01-2023'!A:J,9,0) -> UN | F99: 0 | G99: =VLOOKUP(C99,'EMOP 01-2023'!A:J,10,0) -> 29828.3 | H99: =ROUND((G99*$K$11)+G99,2) -> 29828.3 | I99: =TRUNC(F99*H99,2) -> 0
A100: =B100&C100 -> 9.1514.002.0542-A | B100: 9.15 | C100: 14.002.0542-A | D100: =VLOOKUP(C100,'EMOP 01-2023'!A:J,2,0) -> PORTA ACUSTICA METALICA COM INDICE DE PROTECAO SONORA APROXIMADAMENTE COM 56DB,PARA ALTA FREQUENCIA,NAS DIMENSOES DE 2000X2100MM,INCLUSIVE FECHADURA ESPECIAL COM CHAVE,MOLDURA EM CANTONEIRA DE ACO.FORNECIMENTO E COLOCACAO | E100: =VLOOKUP(C100,'EMOP 01-2023'!A:J,9,0) -> UN | F100: 0 | G100: =VLOOKUP(C100,'EMOP 01-2023'!A:J,10,0) -> 34669.21 | H100: =ROUND((G100*$K$11)+G100,2) -> 34669.21 | I100: =TRUNC(F100*H100,2) -> 0
H101: SUBTOTAL 9 | I101: =SUM(I86:I100) -> 0
B102: 10 | C102: INSTALAÇÕES
B103: SANITÁRIAS
A104: =B104&C104 -> 10.115.002.0580-A | B104: 10.1 | C104: 15.002.0580-A | D104: =VLOOKUP(C104,'EMOP 01-2023'!A:J,2,0) -> FOSSA SEPTICA CILINDRICA,TIPO CAMARA IMHOFF,DE CONCRETO PRE-MOLDADO,MEDINDO 2000X2000MM.FORNECIMENTO E COLOCACAO | E104: =VLOOKUP(C104,'EMOP 01-2023'!A:J,9,0) -> UN | F104: ='MEMÓRIA DE CÁLCULO'!K783 -> 1
A105: =B105&C105 -> 10.215.002.0663-A | B105: 10.2 | C105: 15.002.0663-A | D105: =VLOOKUP(C105,'EMOP 01-2023'!A:J,2,0) -> FILTRO ANAEROBIO,DE ANEIS DE CONCRETO PRE-MOLDADO,MEDINDO 1500X2000MM.FORNECIMENTO E COLOCACAO | E105: =VLOOKUP(C105,'EMOP 01-2023'!A:J,9,0) -> UN | F105: ='MEMÓRIA DE CÁLCULO'!K785 -> 1
A106: =B106&C106 -> 10.397974 | B106: 10.3 | C106: 97974 | D106: =VLOOKUP(C106,'SINAPI 01-2023'!A:E,2,0) -> POÇO DE INSPEÇÃO CIRCULAR PARA ESGOTO, EM CONCRETO PRÉ-MOLDADO, DIÂMETRO INTERNO = 0,60 M, PROFUNDIDADE = 0,90 M, EXCLUINDO TAMPÃO. AF_12/2020_PA | E106: =VLOOKUP(C106,'SINAPI 01-2023'!A:E,3,0) -> UN | F106: ='MEMÓRIA DE CÁLCULO'!K787 -> 3
A107: =B107&C107 -> 10.497905 | B107: 10.4 | C107: 97905 | D107: =VLOOKUP(C107,'SINAPI 01-2023'!A:E,2,0) -> CAIXA ENTERRADA HIDRÁULICA RETANGULAR, EM ALVENARIA COM BLOCOS DE CONCRETO, DIMENSÕES INTERNAS: 0,4X0,4X0,4 M PARA REDE DE ESGOTO. AF_12/2020 | E107: =VLOOKUP(C107,'SINAPI 01-2023'!A:E,3,0) -> UN | F107: ='MEMÓRIA DE CÁLCULO'!K789 -> 2
A108: =B108&C108 -> 10.515.002.0062-A | B108: 10.5 | C108: 15.002.0062-A | D108: =VLOOKUP(C108,'EMOP 01-2023'!A:J,2,0) -> CAIXA DE GORDURA SIMPLES CILINDRICA,PRE-FABRICADA EM ANEIS DE CONCRETO,COM DIAMETRO DE 40CM E PROFUNDIDADE TOTAL DE 60CM,INCLUSIVE TAMPA DE CONCRETO.FORNECIMENTO E COLOCACAO | E108: =VLOOKUP(C108,'EMOP 01-2023'!A:J,9,0) -> UN | F108: ='MEMÓRIA DE CÁLCULO'!K791 -> 1
A109: =B109&C109 -> 10.689709 | B109: 10.6 | C109: 89709 | D109: =VLOOKUP(C109,'SINAPI 01-2023'!A:E,2,0) -> RALO SIFONADO, PVC, DN 100 X 40 MM, JUNTA SOLDÁVEL, FORNECIDO E INSTALADO EM RAMAL DE DESCARGA OU EM RAMAL DE ESGOTO SANITÁRIO. AF_08/2022 | E109: =VLOOKUP(C109,'SINAPI 01-2023'!A:E,3,0) -> UN | F109: ='MEMÓRIA DE CÁLCULO'!K793 -> 5
A110: =B110&C110 -> 10.789710 | B110: 10.7 | C110: 89710 | D110: =VLOOKUP(C110,'SINAPI 01-2023'!A:E,2,0) -> RALO SECO, PVC, DN 100 X 40 MM, JUNTA SOLDÁVEL, FORNECIDO E INSTALADO EM RAMAL DE DESCARGA OU EM RAMAL DE ESGOTO SANITÁRIO. AF_08/2022 | E110: =VLOOKUP(C110,'SINAPI 01-2023'!A:E,3,0) -> UN | F110: 0
A111: =B111&C111 -> 10.891792 | B111: 10.8 | C111: 91792 | D111: =VLOOKUP(C111,'SINAPI 01-2023'!A:E,2,0) -> (COMPOSIÇÃO REPRESENTATIVA) DO SERVIÇO DE INSTALAÇÃO DE TUBO DE PVC, SÉRIE NORMAL, ESGOTO PREDIAL, DN 40 MM (INSTALADO EM RAMAL DE DESCARGA OU RAMAL DE ESGOTO SANITÁRIO), INCLUSIVE CONEXÕES, CORTES E FIXAÇÕES, PARA PRÉDIOS. AF_10/2015 | E111: =VLOOKUP(C111,'SINAPI 01-2023'!A:E,3,0) -> M | F111: ='MEMÓRIA DE CÁLCULO'!K797 -> 5
A112: =B112&C112 -> 10.991793 | B112: 10.9 | C112: 91793 | D112: =VLOOKUP(C112,'SINAPI 01-2023'!A:E,2,0) -> (COMPOSIÇÃO REPRESENTATIVA) DO SERVIÇO DE INSTALAÇÃO DE TUBO DE PVC, SÉRIE NORMAL, ESGOTO PREDIAL, DN 50 MM (INSTALADO EM RAMAL DE DESCARGA OU RAMAL DE ESGOTO SANITÁRIO), INCLUSIVE CONEXÕES, CORTES E FIXAÇÕES PARA, PRÉDIOS. AF_10/2015 | E112: =VLOOKUP(C112,'SINAPI 01-2023'!A:E,3,0) -> M | F112: ='MEMÓRIA DE CÁLCULO'!K799 -> 15
A113: =B113&C113 -> 10.1091794 | B113: 10.10 | C113: 91794 | D113: =VLOOKUP(C113,'SINAPI 01-2023'!A:E,2,0) -> (COMPOSIÇÃO REPRESENTATIVA) DO SERVIÇO DE INST. TUBO PVC, SÉRIE N, ESGOTO PREDIAL, DN 75 MM, (INST. EM RAMAL DE DESCARGA, RAMAL DE ESG. SANITÁRIO, PRUMADA DE ESG. SANITÁRIO OU VENTILAÇÃO), INCL. CONEXÕES, CORTES E FIXAÇÕES, P/ PRÉDIOS. AF_10/2015 | E113: =VLOOKUP(C113,'SINAPI 01-2023'!A:E,3,0) -> M | F113: ='MEMÓRIA DE CÁLCULO'!K801 -> 15
A114: =B114&C114 -> 10.1191795 | B114: 10.11 | C114: 91795 | D114: =VLOOKUP(C114,'SINAPI 01-2023'!A:E,2,0) -> (COMPOSIÇÃO REPRESENTATIVA) DO SERVIÇO DE INST. TUBO PVC, SÉRIE N, ESGOTO PREDIAL, 100 MM (INST. RAMAL DESCARGA, RAMAL DE ESG. SANIT., PRUMADA ESG. SANIT., VENTILAÇÃO OU SUB-COLETOR AÉREO), INCL. CONEXÕES E CORTES, FIXAÇÕES, P/ PRÉDIOS. AF_10/2015 | E114: =VLOOKUP(C114,'SINAPI 01-2023'!A:E,3,0) -> M | F114: ='MEMÓRIA DE CÁLCULO'!K803 -> 60.9
B115: HIDRÁULICAS
A116: =B116&C116 -> 10.1215.001.0071-A | B116: 10.12 | C116: 15.001.0071-A | D116: =VLOOKUP(C116,'EMOP 01-2023'!A:J,2,0) -> ABRIGO PARA HIDROMETRO DE 1",NAS DIMENSOES DE (0,90X0,50X0,60)M,EM ALVENARIA DE TIJOLOS FURADOS DE (10X20X20)CM,EM PAREDES DE MEIA VEZ,REVESTIDAS C/ARGAMASSA DE CIMENTO E SAIBRO,TRACO 1:6,C/FUNDO DE CONCRETO E TAMPA DE CONCRETO ARMADO,C/PORTA DE (80X50)CM GRADE CONFECCIONADA EM FERRO CHATO DE 1/2" C/ESPESSURA DE 1/8" E CADEADO DE 30MM,PROJETO Nº2089/EMOP | E116: =VLOOKUP(C116,'EMOP 01-2023'!A:J,9,0) -> UN | F116: ='MEMÓRIA DE CÁLCULO'!K806 -> 1
A117: =B117&C117 -> 10.1315.001.0079-A | B117: 10.13 | C117: 15.001.0079-A | D117: =VLOOKUP(C117,'EMOP 01-2023'!A:J,2,0) -> HIDROMETRO COM DIAMETRO DE 1".FORNECIMENTO | E117: =VLOOKUP(C117,'EMOP 01-2023'!A:J,9,0) -> UN | F117: ='MEMÓRIA DE CÁLCULO'!K808 -> 1
A118: =B118&C118 -> 10.1494496 | B118: 10.14 | C118: 94496 | D118: =VLOOKUP(C118,'SINAPI 01-2023'!A:E,2,0) -> REGISTRO DE GAVETA BRUTO, LATÃO, ROSCÁVEL, 1 1/4" - FORNECIMENTO E INSTALAÇÃO. AF_08/2021 | E118: =VLOOKUP(C118,'SINAPI 01-2023'!A:E,3,0) -> UN | F118: ='MEMÓRIA DE CÁLCULO'!K810 -> 2
A119: =B119&C119 -> 10.1589985 | B119: 10.15 | C119: 89985 | D119: =VLOOKUP(C119,'SINAPI 01-2023'!A:E,2,0) -> REGISTRO DE PRESSÃO BRUTO, LATÃO, ROSCÁVEL, 3/4", COM ACABAMENTO E CANOPLA CROMADOS - FORNECIMENTO E INSTALAÇÃO. AF_08/2021 | E119: =VLOOKUP(C119,'SINAPI 01-2023'!A:E,3,0) -> UN | F119: ='MEMÓRIA DE CÁLCULO'!K812 -> 2
A120: =B120&C120 -> 10.1689987 | B120: 10.16 | C120: 89987 | D120: =VLOOKUP(C120,'SINAPI 01-2023'!A:E,2,0) -> REGISTRO DE GAVETA BRUTO, LATÃO, ROSCÁVEL, 3/4", COM ACABAMENTO E CANOPLA CROMADOS - FORNECIMENTO E INSTALAÇÃO. AF_08/2021 | E120: =VLOOKUP(C120,'SINAPI 01-2023'!A:E,3,0) -> UN | F120: ='MEMÓRIA DE CÁLCULO'!K814 -> 3
A121: =B121&C121 -> 10.1791785 | B121: 10.17 | C121: 91785 | D121: =VLOOKUP(C121,'SINAPI 01-2023'!A:E,2,0) -> (COMPOSIÇÃO REPRESENTATIVA) DO SERVIÇO DE INSTALAÇÃO DE TUBOS DE PVC, SOLDÁVEL, ÁGUA FRIA, DN 25 MM (INSTALADO EM RAMAL, SUB-RAMAL, RAMAL DE DISTRIBUIÇÃO OU PRUMADA), INCLUSIVE CONEXÕES, CORTES E FIXAÇÕES, PARA PRÉDIOS. AF_10/2015 | E121: =VLOOKUP(C121,'SINAPI 01-2023'!A:E,3,0) -> M | F121: ='MEMÓRIA DE CÁLCULO'!K816 -> 13.5
A122: =B122&C122 -> 10.1891786 | B122: 10.18 | C122: 91786 | D122: =VLOOKUP(C122,'SINAPI 01-2023'!A:E,2,0) -> (COMPOSIÇÃO REPRESENTATIVA) DO SERVIÇO DE INSTALAÇÃO TUBOS DE PVC, SOLDÁVEL, ÁGUA FRIA, DN 32 MM (INSTALADO EM RAMAL, SUB-RAMAL, RAMAL DE DISTRIBUIÇÃO OU PRUMADA), INCLUSIVE CONEXÕES, CORTES E FIXAÇÕES, PARA PRÉDIOS. AF_10/2015 | E122: =VLOOKUP(C122,'SINAPI 01-2023'!A:E,3,0) -> M | F122: ='MEMÓRIA DE CÁLCULO'!K818 -> 33.2
A123: =B123&C123 -> 10.1991787 | B123: 10.19 | C123: 91787 | D123: =VLOOKUP(C123,'SINAPI 01-2023'!A:E,2,0) -> (COMPOSIÇÃO REPRESENTATIVA) DO SERVIÇO DE INSTALAÇÃO DE TUBOS DE PVC, SOLDÁVEL, ÁGUA FRIA, DN 40 MM (INSTALADO EM PRUMADA), INCLUSIVE CONEXÕES, CORTES E FIXAÇÕES, PARA PRÉDIOS. AF_10/2015 | E123: =VLOOKUP(C123,'SINAPI 01-2023'!A:E,3,0) -> M | F123: ='MEMÓRIA DE CÁLCULO'!K820 -> 5.4
A124: =B124&C124 -> 10.2015.066.0013-A | B124: 10.20 | C124: 15.066.0013-A | D124: =VLOOKUP(C124,'EMOP 01-2023'!A:J,2,0) -> CONJUNTO DE MATERIAIS,COMPLETO,PARA LIGACAO DE RAMAL PREDIAL DE AGUA,DENOMINADO "KIT CAVALETE",EM PVC,DIAMETRO DE 3/4".FORNECIMENTO | E124: =VLOOKUP(C124,'EMOP 01-2023'!A:J,9,0) -> UN | F124: ='MEMÓRIA DE CÁLCULO'!K822 -> 1
A125: =B125&C125 -> 10.2118.021.0040-A | B125: 10.21 | C125: 18.021.0040-A | D125: =VLOOKUP(C125,'EMOP 01-2023'!A:J,2,0) -> RESERVATORIO APOIADO PARA ARMAZENAMENTO DE AGUA POTAVEL OU PARA APROVEITAMENTO DE AGUA DA CHUVA AAC,EM FIBRA DE VIDRO OU POLIETILENO,COM CAPACIDADE EM TORNO DE 1500L,INCLUSIVE TAMPA DE VEDACAO COM ESCOTILHA E FIXADORES,CONFORME ABNT NBR 15527,12217 E 8220.FORNECIMENTO | E125: =VLOOKUP(C125,'EMOP 01-2023'!A:J,9,0) -> UN | F125: ='MEMÓRIA DE CÁLCULO'!K824 -> 2
A126: =B126&C126 -> 10.2294797 | B126: 10.22 | C126: 94797 | D126: =VLOOKUP(C126,'SINAPI 01-2023'!A:E,2,0) -> TORNEIRA DE BOIA PARA CAIXA D'ÁGUA, ROSCÁVEL, 1" - FORNECIMENTO E INSTALAÇÃO. AF_08/2021 | E126: =VLOOKUP(C126,'SINAPI 01-2023'!A:E,3,0) -> UN | F126: ='MEMÓRIA DE CÁLCULO'!K826 -> 1
B127: ELÉTRICA
A128: =B128&C128 -> 10.2315.015.0021-A | B128: 10.23 | C128: 15.015.0021-A | D128: =VLOOKUP(C128,'EMOP 01-2023'!A:J,2,0) -> INSTALACAO DE PONTO DE LUZ,APARENTE,EQUIVALENTE A 2 VARAS DE ELETRODUTO DE PVC RIGIDO DE 3/4",12,00M DE FIO 2,5MM2,CAIXAS,CONEXOES,LUVAS,CURVA E INTERRUPTOR DE SOBREPOR | E128: =VLOOKUP(C128,'EMOP 01-2023'!A:J,9,0) -> UN | F128: ='MEMÓRIA DE CÁLCULO'!K829 -> 29
A129: =B129&C129 -> 10.2415.015.0041-A | B129: 10.24 | C129: 15.015.0041-A | D129: =VLOOKUP(C129,'EMOP 01-2023'!A:J,2,0) -> INSTALACAO DE UM CONJUNTO DE 2 PONTOS DE LUZ,APARENTE,EQUIVALENTE A 5 VARAS DE ELETRODUTO DE PVC RIGIDO DE 1/2",33,00M DE FIO 2,5MM2,CAIXAS,CONEXOES,LUVAS,CURVA E INTERRUPTOR DE SOBREPOR | E129: =VLOOKUP(C129,'EMOP 01-2023'!A:J,9,0) -> UN | F129: ='MEMÓRIA DE CÁLCULO'!K859 -> 2
A130: =B130&C130 -> 10.2515.015.0066-A | B130: 10.25 | C130: 15.015.0066-A | D130: =VLOOKUP(C130,'EMOP 01-2023'!A:J,2,0) -> INSTALACAO DE UM CONJUNTO DE 4 PONTOS DE LUZ,APARENTE,EQUIVALENTE 7 VARAS DE ELETRODUTO DE PVC RIGIDO DE 3/4",50,00M DEFIO 2,5MM2,CAIXAS,CONEXOES,LUVAS,CURVA E INTERRUPTOR DE SOBREPOR | E130: =VLOOKUP(C130,'EMOP 01-2023'!A:J,9,0) -> UN | F130: ='MEMÓRIA DE CÁLCULO'!K866 -> 2
A131: =B131&C131 -> 10.2615.015.0081-A | B131: 10.26 | C131: 15.015.0081-A | D131: =VLOOKUP(C131,'EMOP 01-2023'!A:J,2,0) -> INSTALACAO DE UM CONJUNTO DE 5 PONTOS DE LUZ,APARENTE,EQUIVALENTE A 8 VARAS DE ELETRODUTO DE PVC RIGIDO DE 3/4",57,00M DE FIO 2,5MM2,CAIXAS,CONEXOES,LUVAS,CURVA E INTERRUPTOR DE SOBREPOR | E131: =VLOOKUP(C131,'EMOP 01-2023'!A:J,9,0) -> UN | F131: ='MEMÓRIA DE CÁLCULO'!K874 -> 3
A132: =B132&C132 -> 10.2715.015.0106-A | B132: 10.27 | C132: 15.015.0106-A | D132: =VLOOKUP(C132,'EMOP 01-2023'!A:J,2,0) -> INSTALACAO DE UM CONJUNTO DE 8 PONTOS DE LUZ,APARENTE COM CANALETA PERFURADA,SENDO ESTA LIGADA A ELETROCALHA PRINCIPAL(EXCLUSIVE ESTA),EQUIVALENTE A 6,75 VARAS DE CANALETA E 2 VARAS DE ELETRODUTO DE PVC RIGIDO DE 3/4",92,00M DE FIO 2,5MM2,CAIXAS,CONEXOES,LUVAS,CURVA E INTERRUPTOR DE SOBREPOR | E132: =VLOOKUP(C132,'EMOP 01-2023'!A:J,9,0) -> UN | F132: ='MEMÓRIA DE CÁLCULO'!K880 -> 8
A133: =B133&C133 -> 10.2818.027.0305-A | B133: 10.28 | C133: 18.027.0305-A | D133: =VLOOKUP(C133,'EMOP 01-2023'!A:J,2,0) -> LUMINARIA DE SOBREPOR,FIXADA EM LAJE OU FORRO,TIPO CALHA,CHANFRADA OU PRISMATICA,COMPLETA,EQUIPADA COM REATOR ELETRONICO DE ALTO FATOR DE POTENCIA E LAMPADA FLUORESCENTE DE 1X40W.FORNECIMENTO E COLOCACAO | E133: =VLOOKUP(C133,'EMOP 01-2023'!A:J,9,0) -> UN | F133: ='MEMÓRIA DE CÁLCULO'!K886 -> 12
A134: =B134&C134 -> 10.2918.027.0426-A | B134: 10.29 | C134: 18.027.0426-A | D134: =VLOOKUP(C134,'EMOP 01-2023'!A:J,2,0) -> LUMINARIA FLUORESCENTE TUBULAR DE EMBUTIR,2X32W(INCLUSIVE LAMPADAS),COM VISOR ACRILICO TRANSLUCIDO,CORPO EM CHAPA DE ACO TRATADA E PINTURA ELETROSTATICA BRANCA,REFLETOR EM ALUMINIO DE ALTO BRILHO,COM REATOR DE ALTO FATOR DE POTENCIA,BI-VOLT.FORNECIMENTO E COLOCACAO | E134: =VLOOKUP(C134,'EMOP 01-2023'!A:J,9,0) -> UN | F134: ='MEMÓRIA DE CÁLCULO'!K898 -> 17
A135: =B135&C135 -> 10.3097593 | B135: 10.30 | C135: 97593 | D135: =VLOOKUP(C135,'SINAPI 01-2023'!A:E,2,0) -> LUMINÁRIA TIPO SPOT, DE SOBREPOR, COM 1 LÂMPADA FLUORESCENTE DE 15 W, SEM REATOR - FORNECIMENTO E INSTALAÇÃO. AF_02/2020 | E135: =VLOOKUP(C135,'SINAPI 01-2023'!A:E,3,0) -> UN | F135: ='MEMÓRIA DE CÁLCULO'!K917 -> 83
A136: =B136&C136 -> 10.3197605 | B136: 10.31 | C136: 97605 | D136: =VLOOKUP(C136,'SINAPI 01-2023'!A:E,2,0) -> LUMINÁRIA ARANDELA TIPO MEIA LUA, DE SOBREPOR, COM 1 LÂMPADA LED DE 6 W, SEM REATOR - FORNECIMENTO E INSTALAÇÃO. AF_02/2020 | E136: =VLOOKUP(C136,'SINAPI 01-2023'!A:E,3,0) -> UN | F136: ='MEMÓRIA DE CÁLCULO'!K927 -> 3
A137: =B137&C137 -> 10.32COTAÇÃO 01 | B137: 10.32 | C137: COTAÇÃO 01 | D137: FITA LED BRANCO QUENTE 5 METROS + FONTE | E137: UN | F137: ='MEMÓRIA DE CÁLCULO'!K935 -> 24
A138: =B138&C138 -> 10.33COTAÇÃO 02 | B138: 10.33 | C138: COTAÇÃO 02 | D138: LUSTRE DE CRISTAL TRANSPARENTE 28 BRAÇOS. | E138: UN | F138: ='MEMÓRIA DE CÁLCULO'!K942 -> 1
A139: =B139&C139 -> 10.3415.015.0250-A | B139: 10.34 | C139: 15.015.0250-A | D139: =VLOOKUP(C139,'EMOP 01-2023'!A:J,2,0) -> INSTALACAO DE PONTO DE TOMADA,EMBUTIDO NA ALVENARIA,EQUIVALENTE A 2 VARAS DE ELETRODUTO DE PVC RIGIDO DE 3/4",18,00M DEFIO 2,5MM2,CAIXAS,CONEXOES E TOMADA DE EMBUTIR,2P+T,10A,PADRAO BRASILEIRO,COM PLACA FOSFORESCENTE,INCLUSIVE ABERTURA E FECHAMENTO DE RASGO EM ALVENARIA | E139: =VLOOKUP(C139,'EMOP 01-2023'!A:J,9,0) -> UN | F139: ='MEMÓRIA DE CÁLCULO'!K946 -> 48
A140: =B140&C140 -> 10.3515.015.0173-A | B140: 10.35 | C140: 15.015.0173-A | D140: =VLOOKUP(C140,'EMOP 01-2023'!A:J,2,0) -> INSTALACAO DE PONTO DE FORCA ATE 4CV,EQUIVALENTE A 2 VARAS DE ELETRODUTO DE PVC RIGIDO DE 3/4",20,00M DE FIO 4MM2,CAIXAS E CONEXOES | E140: =VLOOKUP(C140,'EMOP 01-2023'!A:J,9,0) -> UN | F140: ='MEMÓRIA DE CÁLCULO'!K967 -> 18
A141: =B141&C141 -> 10.36101883 | B141: 10.36 | C141: 101883 | D141: =VLOOKUP(C141,'SINAPI 01-2023'!A:E,2,0) -> QUADRO DE DISTRIBUIÇÃO DE ENERGIA EM CHAPA DE AÇO GALVANIZADO, DE EMBUTIR, COM BARRAMENTO TRIFÁSICO, PARA 18 DISJUNTORES DIN 100A - FORNECIMENTO E INSTALAÇÃO. AF_10/2020 | E141: =VLOOKUP(C141,'SINAPI 01-2023'!A:E,3,0) -> UN | F141: ='MEMÓRIA DE CÁLCULO'!K987 -> 2
A142: =B142&C142 -> 10.37101881 | B142: 10.37 | C142: 101881 | D142: =VLOOKUP(C142,'SINAPI 01-2023'!A:E,2,0) -> QUADRO DE DISTRIBUIÇÃO DE ENERGIA EM CHAPA DE AÇO GALVANIZADO, DE EMBUTIR, COM BARRAMENTO TRIFÁSICO, PARA 40 DISJUNTORES DIN 100A - FORNECIMENTO E INSTALAÇÃO. AF_10/2020 | E142: =VLOOKUP(C142,'SINAPI 01-2023'!A:E,3,0) -> UN | F142: ='MEMÓRIA DE CÁLCULO'!K995 -> 1
A143: =B143&C143 -> 10.38101893 | B143: 10.38 | C143: 101893 | D143: =VLOOKUP(C143,'SINAPI 01-2023'!A:E,2,0) -> DISJUNTOR TRIPOLAR TIPO NEMA, CORRENTE NOMINAL DE 10 ATÉ 50A - FORNECIMENTO E INSTALAÇÃO. AF_10/2020 | E143: =VLOOKUP(C143,'SINAPI 01-2023'!A:E,3,0) -> UN | F143: ='MEMÓRIA DE CÁLCULO'!K1000 -> 3
A144: =B144&C144 -> 10.3993661 | B144: 10.39 | C144: 93661 | D144: =VLOOKUP(C144,'SINAPI 01-2023'!A:E,2,0) -> DISJUNTOR BIPOLAR TIPO DIN, CORRENTE NOMINAL DE 16A - FORNECIMENTO E INSTALAÇÃO. AF_10/2020 | E144: =VLOOKUP(C144,'SINAPI 01-2023'!A:E,3,0) -> UN | F144: ='MEMÓRIA DE CÁLCULO'!K1002 -> 8
A145: =B145&C145 -> 10.4093663 | B145: 10.40 | C145: 93663 | D145: =VLOOKUP(C145,'SINAPI 01-2023'!A:E,2,0) -> DISJUNTOR BIPOLAR TIPO DIN, CORRENTE NOMINAL DE 25A - FORNECIMENTO E INSTALAÇÃO. AF_10/2020 | E145: =VLOOKUP(C145,'SINAPI 01-2023'!A:E,3,0) -> UN | F145: ='MEMÓRIA DE CÁLCULO'!K1004 -> 2
A146: =B146&C146 -> 10.4193664 | B146: 10.41 | C146: 93664 | D146: =VLOOKUP(C146,'SINAPI 01-2023'!A:E,2,0) -> DISJUNTOR BIPOLAR TIPO DIN, CORRENTE NOMINAL DE 32A - FORNECIMENTO E INSTALAÇÃO. AF_10/2020 | E146: =VLOOKUP(C146,'SINAPI 01-2023'!A:E,3,0) -> UN | F146: ='MEMÓRIA DE CÁLCULO'!K1006 -> 1
A147: =B147&C147 -> 10.42101890 | B147: 10.42 | C147: 101890 | D147: =VLOOKUP(C147,'SINAPI 01-2023'!A:E,2,0) -> DISJUNTOR MONOPOLAR TIPO NEMA, CORRENTE NOMINAL DE 10 ATÉ 30A - FORNECIMENTO E INSTALAÇÃO. AF_10/2020 | E147: =VLOOKUP(C147,'SINAPI 01-2023'!A:E,3,0) -> UN | F147: ='MEMÓRIA DE CÁLCULO'!K1008 -> 13
A148: =B148&C148 -> 10.43101891 | B148: 10.43 | C148: 101891 | D148: =VLOOKUP(C148,'SINAPI 01-2023'!A:E,2,0) -> DISJUNTOR MONOPOLAR TIPO NEMA, CORRENTE NOMINAL DE 35 ATÉ 50A - FORNECIMENTO E INSTALAÇÃO. AF_10/2020 | E148: =VLOOKUP(C148,'SINAPI 01-2023'!A:E,3,0) -> UN | F148: ='MEMÓRIA DE CÁLCULO'!K1010 -> 2
A149: =B149&C149 -> 10.44102108 | B149: 10.44 | C149: 102108 | D149: =VLOOKUP(C149,'SINAPI 01-2023'!A:E,2,0) -> TRANSFORMADOR DE DISTRIBUIÇÃO, 300 KVA, TRIFÁSICO, 60 HZ, CLASSE 15 KV, IMERSO EM ÓLEO MINERAL, INSTALAÇÃO EM POSTE (NÃO INCLUSO SUPORTE) - FORNECIMENTO E INSTALAÇÃO. AF_12/2020 | E149: =VLOOKUP(C149,'SINAPI 01-2023'!A:E,3,0) -> UN | F149: ='MEMÓRIA DE CÁLCULO'!K1012 -> 1
A150: =B150&C150 -> 10.4592998 | B150: 10.45 | C150: 92998 | D150: =VLOOKUP(C150,'SINAPI 01-2023'!A:E,2,0) -> CABO DE COBRE FLEXÍVEL ISOLADO, 185 MM², ANTI-CHAMA 0,6/1,0 KV, PARA REDE ENTERRADA DE DISTRIBUIÇÃO DE ENERGIA ELÉTRICA - FORNECIMENTO E INSTALAÇÃO. AF_12/2021 | E150: =VLOOKUP(C150,'SINAPI 01-2023'!A:E,3,0) -> M | F150: ='MEMÓRIA DE CÁLCULO'!K1014 -> 151.48
A151: =B151&C151 -> 10.46COTAÇÃO 03 | B151: 10.46 | C151: COTAÇÃO 03 | D151: ELETRODUTO PEAD CORRUGADO 6" (150MM) | E151: M | F151: ='MEMÓRIA DE CÁLCULO'!K1020 -> 5
H152: SUBTOTAL 10 | I152: =SUM(I104:I151) -> 0
B153: 11 | C153: COBERTURAS
A154: =B154&C154 -> 11.1102233 | B154: 11.1 | C154: 102233 | D154: =VLOOKUP(C154,'SINAPI 01-2023'!A:E,2,0) -> PINTURA IMUNIZANTE PARA MADEIRA, 1 DEMÃO. AF_01/2021 | E154: =VLOOKUP(C154,'SINAPI 01-2023'!A:E,3,0) -> M2 | F154: ='MEMÓRIA DE CÁLCULO'!K1026 -> 328.56
A155: =B155&C155 -> 11.292542 | B155: 11.2 | C155: 92542 | D155: =VLOOKUP(C155,'SINAPI 01-2023'!A:E,2,0) -> TRAMA DE MADEIRA COMPOSTA POR RIPAS, CAIBROS E TERÇAS PARA TELHADOS DE MAIS QUE 2 ÁGUAS PARA TELHA CERÂMICA CAPA-CANAL, INCLUSO TRANSPORTE VERTICAL. AF_07/2019 | E155: =VLOOKUP(C155,'SINAPI 01-2023'!A:E,3,0) -> M2 | F155: ='MEMÓRIA DE CÁLCULO'!K1030 -> 164.28
A156: =B156&C156 -> 11.316.001.0085-A | B156: 11.3 | C156: 16.001.0085-A | D156: =VLOOKUP(C156,'EMOP 01-2023'!A:J,2,0) -> PONTALETE DE MADEIRA SERRADA,EM PECAS DE 3"X3",VERTICAIS E HORIZONTAIS,PARA COBERTURA DE TELHAS CERAMICAS,MEDIDO PELA AREA REAL DA COBERTURA DO TELHADO.FORNECIMENTO E COLOCACAO | E156: =VLOOKUP(C156,'EMOP 01-2023'!A:J,9,0) -> M2 | F156: ='MEMÓRIA DE CÁLCULO'!K1034 -> 328.56
A157: =B157&C157 -> 11.494198 | B157: 11.4 | C157: 94198 | D157: =VLOOKUP(C157,'SINAPI 01-2023'!A:E,2,0) -> TELHAMENTO COM TELHA CERÂMICA DE ENCAIXE, TIPO PORTUGUESA, COM MAIS DE 2 ÁGUAS, INCLUSO TRANSPORTE VERTICAL. AF_07/2019 | E157: =VLOOKUP(C157,'SINAPI 01-2023'!A:E,3,0) -> M2 | F157: ='MEMÓRIA DE CÁLCULO'!K1038 -> 98.56
A158: =B158&C158 -> 11.594219 | B158: 11.5 | C158: 94219 | D158: =VLOOKUP(C158,'SINAPI 01-2023'!A:E,2,0) -> CUMEEIRA E ESPIGÃO PARA TELHA CERÂMICA EMBOÇADA COM ARGAMASSA TRAÇO 1:2:9 (CIMENTO, CAL E AREIA), PARA TELHADOS COM MAIS DE 2 ÁGUAS, INCLUSO TRANSPORTE VERTICAL. AF_07/2019 | E158: =VLOOKUP(C158,'SINAPI 01-2023'!A:E,3,0) -> M | F158: ='MEMÓRIA DE CÁLCULO'!K1042 -> 38.31
A159: =B159&C159 -> 11.694231 | B159: 11.6 | C159: 94231 | D159: =VLOOKUP(C159,'SINAPI 01-2023'!A:E,2,0) -> RUFO EM CHAPA DE AÇO GALVANIZADO NÚMERO 24, CORTE DE 25 CM, INCLUSO TRANSPORTE VERTICAL. AF_07/2019 | E159: =VLOOKUP(C159,'SINAPI 01-2023'!A:E,3,0) -> M | F159: ='MEMÓRIA DE CÁLCULO'!K1046 -> 12
A160: =B160&C160 -> 11.798546 | B160: 11.7 | C160: 98546 | D160: =VLOOKUP(C160,'SINAPI 01-2023'!A:E,2,0) -> IMPERMEABILIZAÇÃO DE SUPERFÍCIE COM MANTA ASFÁLTICA, UMA CAMADA, INCLUSIVE APLICAÇÃO DE PRIMER ASFÁLTICO, E=3MM. AF_06/2018 | E160: =VLOOKUP(C160,'SINAPI 01-2023'!A:E,3,0) -> M2 | F160: ='MEMÓRIA DE CÁLCULO'!K1050 -> 27.57
A161: =B161&C161 -> 11.891790 | B161: 11.8 | C161: 91790 | D161: =VLOOKUP(C161,'SINAPI 01-2023'!A:E,2,0) -> (COMPOSIÇÃO REPRESENTATIVA) DO SERVIÇO DE INSTALAÇÃO DE TUBOS DE PVC, SÉRIE R, ÁGUA PLUVIAL, DN 100 MM (INSTALADO EM RAMAL DE ENCAMINHAMENTO, OU CONDUTORES VERTICAIS), INCLUSIVE CONEXÕES, CORTES E FIXAÇÕES, PARA PRÉDIOS. AF_10/2015 | E161: =VLOOKUP(C161,'SINAPI 01-2023'!A:E,3,0) -> M | F161: ='MEMÓRIA DE CÁLCULO'!K1054 -> 40
A162: =B162&C162 -> 11.9100434 | B162: 11.9 | C162: 100434 | D162: =VLOOKUP(C162,'SINAPI 01-2023'!A:E,2,0) -> CALHA DE BEIRAL, SEMICIRCULAR DE PVC, DIAMETRO 125 MM, INCLUINDO CABECEIRAS, EMENDAS, BOCAIS, SUPORTES E VEDAÇÕES, EXCLUINDO CONDUTORES, INCLUSO TRANSPORTE VERTICAL. AF_07/2019 | E162: =VLOOKUP(C162,'SINAPI 01-2023'!A:E,3,0) -> M | F162: ='MEMÓRIA DE CÁLCULO'!K1058 -> 12
H163: SUBTOTAL 11 | I163: =SUM(I154:I162) -> 0
B164: 12 | C164: PINTURAS
A165: =B165&C165 -> 12.188485 | B165: 12.1 | C165: 88485 | D165: =VLOOKUP(C165,'SINAPI 01-2023'!A:E,2,0) -> APLICAÇÃO DE FUNDO SELADOR ACRÍLICO EM PAREDES, UMA DEMÃO. AF_06/2014 | E165: =VLOOKUP(C165,'SINAPI 01-2023'!A:E,3,0) -> M2 | F165: ='MEMÓRIA DE CÁLCULO'!K1063 -> 1227.09
A166: =B166&C166 -> 12.288497 | B166: 12.2 | C166: 88497 | D166: =VLOOKUP(C166,'SINAPI 01-2023'!A:E,2,0) -> APLICAÇÃO E LIXAMENTO DE MASSA LÁTEX EM PAREDES, DUAS DEMÃOS. AF_06/2014 | E166: =VLOOKUP(C166,'SINAPI 01-2023'!A:E,3,0) -> M2 | F166: ='MEMÓRIA DE CÁLCULO'!K1110 -> 1227.09
A167: =B167&C167 -> 12.388489 | B167: 12.3 | C167: 88489 | D167: =VLOOKUP(C167,'SINAPI 01-2023'!A:E,2,0) -> APLICAÇÃO MANUAL DE PINTURA COM TINTA LÁTEX ACRÍLICA EM PAREDES, DUAS DEMÃOS. AF_06/2014 | E167: =VLOOKUP(C167,'SINAPI 01-2023'!A:E,3,0) -> M2 | F167: ='MEMÓRIA DE CÁLCULO'!K1112 -> 1121.21
A168: =B168&C168 -> 12.488488 | B168: 12.4 | C168: 88488 | D168: =VLOOKUP(C168,'SINAPI 01-2023'!A:E,2,0) -> APLICAÇÃO MANUAL DE PINTURA COM TINTA LÁTEX ACRÍLICA EM TETO, DUAS DEMÃOS. AF_06/2014 | E168: =VLOOKUP(C168,'SINAPI 01-2023'!A:E,3,0) -> M2 | F168: ='MEMÓRIA DE CÁLCULO'!K1115 -> 105.88
A169: =B169&C169 -> 12.517.025.0005-B | B169: 12.5 | C169: 17.025.0005-B | D169: =VLOOKUP(C169,'EMOP 01-2023'!A:J,2,0) -> PINTURA COM TINTA ANTIMOFO E BACTERICIDA BASE ACRILICA,SEMIBRILHO,COR BRANCA,PARA AMBIENTES INTERNOS E EXTERNOS PROPENSOS A UMIDADE E VAPORES,EM DUAS DEMAOS,SOBRE SELADOR ACRILICO E DUAS DEMAOS DE MASSA ACRILICA,INCLUSIVE LIMPEZA E LIXAMENTO | E169: =VLOOKUP(C169,'EMOP 01-2023'!A:J,9,0) -> M2 | F169: ='MEMÓRIA DE CÁLCULO'!K1118 -> 759.17
A170: =B170&C170 -> 12.6100760 | B170: 12.6 | C170: 100760 | D170: =VLOOKUP(C170,'SINAPI 01-2023'!A:E,2,0) -> PINTURA COM TINTA ALQUÍDICA DE ACABAMENTO (ESMALTE SINTÉTICO BRILHANTE) APLICADA A ROLO OU PINCEL SOBRE SUPERFÍCIES METÁLICAS (EXCETO PERFIL) EXECUTADO EM OBRA (02 DEMÃOS). AF_01/2020 | E170: =VLOOKUP(C170,'SINAPI 01-2023'!A:E,3,0) -> M2 | F170: ='MEMÓRIA DE CÁLCULO'!K1125 -> 59.7
A171: =B171&C171 -> 12.7102220 | B171: 12.7 | C171: 102220 | D171: =VLOOKUP(C171,'SINAPI 01-2023'!A:E,2,0) -> PINTURA TINTA DE ACABAMENTO (PIGMENTADA) ESMALTE SINTÉTICO BRILHANTE EM MADEIRA, 2 DEMÃOS. AF_01/2021 | E171: =VLOOKUP(C171,'SINAPI 01-2023'!A:E,3,0) -> M2 | F171: ='MEMÓRIA DE CÁLCULO'!K1131 -> 59.22
A172: =B172&C172 -> 12.8102223 | B172: 12.8 | C172: 102223 | D172: =VLOOKUP(C172,'SINAPI 01-2023'!A:E,2,0) -> PINTURA VERNIZ (INCOLOR) ALQUÍDICO EM MADEIRA, USO INTERNO E EXTERNO, 3 DEMÃOS. AF_01/2021 | E172: =VLOOKUP(C172,'SINAPI 01-2023'!A:E,3,0) -> M2 | F172: ='MEMÓRIA DE CÁLCULO'!K1138 -> 66.18
H173: SUBTOTAL 12 | I173: =SUM(I165:I172) -> 0
B174: 13 | C174: APARELHOS
A175: =B175&C175 -> 13.186932 | B175: 13.1 | C175: 86932 | D175: =VLOOKUP(C175,'SINAPI 01-2023'!A:E,2,0) -> VASO SANITÁRIO SIFONADO COM CAIXA ACOPLADA LOUÇA BRANCA - PADRÃO MÉDIO, INCLUSO ENGATE FLEXÍVEL EM METAL CROMADO, 1/2 X 40CM - FORNECIMENTO E INSTALAÇÃO. AF_01/2020 | E175: =VLOOKUP(C175,'SINAPI 01-2023'!A:E,3,0) -> UN | F175: ='MEMÓRIA DE CÁLCULO'!K1143 -> 7
A176: =B176&C176 -> 13.295472 | B176: 13.2 | C176: 95472 | D176: =VLOOKUP(C176,'SINAPI 01-2023'!A:E,2,0) -> VASO SANITARIO SIFONADO CONVENCIONAL PARA PCD SEM FURO FRONTAL COM LOUÇA BRANCA SEM ASSENTO, INCLUSO CONJUNTO DE LIGAÇÃO PARA BACIA SANITÁRIA AJUSTÁVEL - FORNECIMENTO E INSTALAÇÃO. AF_01/2020 | E176: =VLOOKUP(C176,'SINAPI 01-2023'!A:E,3,0) -> UN | F176: ='MEMÓRIA DE CÁLCULO'!K1155 -> 3
A177: =B177&C177 -> 13.318.005.0030-A | B177: 13.3 | C177: 18.005.0030-A | D177: =VLOOKUP(C177,'EMOP 01-2023'!A:J,2,0) -> ASSENTO ESPECIAL PARA VASO SANITARIO PARA PESSOAS COM NECESSIDADES ESPECIFICAS.FORNECIMENTO E COLOCACAO | E177: =VLOOKUP(C177,'EMOP 01-2023'!A:J,9,0) -> UN | F177: ='MEMÓRIA DE CÁLCULO'!K1166 -> 3
A178: =B178&C178 -> 13.418.005.0015-A | B178: 13.4 | C178: 18.005.0015-A | D178: =VLOOKUP(C178,'EMOP 01-2023'!A:J,2,0) -> ASSENTO SANITARIO DE PLASTICO,TIPO MEDIO LUXO.FORNECIMENTO E COLOCACAO | E178: =VLOOKUP(C178,'EMOP 01-2023'!A:J,9,0) -> UN | F178: ='MEMÓRIA DE CÁLCULO'!K1169 -> 7
A179: =B179&C179 -> 13.5100858 | B179: 13.5 | C179: 100858 | D179: =VLOOKUP(C179,'SINAPI 01-2023'!A:E,2,0) -> MICTÓRIO SIFONADO LOUÇA BRANCA  PADRÃO MÉDIO  FORNECIMENTO E INSTALAÇÃO. AF_01/2020 | E179: =VLOOKUP(C179,'SINAPI 01-2023'!A:E,3,0) -> UN | F179: ='MEMÓRIA DE CÁLCULO'!K1172 -> 2
A180: =B180&C180 -> 13.699635 | B180: 13.6 | C180: 99635 | D180: =VLOOKUP(C180,'SINAPI 01-2023'!A:E,2,0) -> VÁLVULA DE DESCARGA METÁLICA, BASE 1 1/2", ACABAMENTO METALICO CROMADO - FORNECIMENTO E INSTALAÇÃO. AF_08/2021 | E180: =VLOOKUP(C180,'SINAPI 01-2023'!A:E,3,0) -> UN | F180: ='MEMÓRIA DE CÁLCULO'!K1176 -> 10
A181: =B181&C181 -> 13.786942 | B181: 13.7 | C181: 86942 | D181: =VLOOKUP(C181,'SINAPI 01-2023'!A:E,2,0) -> LAVATÓRIO LOUÇA BRANCA SUSPENSO, 29,5 X 39CM OU EQUIVALENTE, PADRÃO POPULAR, INCLUSO SIFÃO TIPO GARRAFA EM PVC, VÁLVULA E ENGATE FLEXÍVEL 30CM EM PLÁSTICO E TORNEIRA CROMADA DE MESA, PADRÃO POPULAR - FORNECIMENTO E INSTALAÇÃO. AF_01/2020 | E181: =VLOOKUP(C181,'SINAPI 01-2023'!A:E,3,0) -> UN | F181: ='MEMÓRIA DE CÁLCULO'!K1179 -> 2
A182: =B182&C182 -> 13.818.002.0014-A | B182: 13.8 | C182: 18.002.0014-A | D182: =VLOOKUP(C182,'EMOP 01-2023'!A:J,2,0) -> LAVATORIO DE LOUCA BRANCA,COM COLUNA SUSPENSA,PARA PESSOAS COM NECESSIDADES ESPECIFICAS,COM MEDIDAS EM TORNO DE (45,5X35,5)CM,INCLUSIVE SIFAO EM PVC FLEXIVEL,VALVULA DE ESCOAMENTOCROMADA,RABICHO EM PVC,TORNEIRA DE FECHAMENTO AUTOMATICO DEPAREDE,ANTIVANDALISMO DE 85MM,PARA LAVATORIO E ACESSORIOS DE FIXACAO.FORNECIMENTO | E182: =VLOOKUP(C182,'EMOP 01-2023'!A:J,9,0) -> UN | F182: ='MEMÓRIA DE CÁLCULO'!K1187 -> 3
A183: =B183&C183 -> 13.993396 | B183: 13.9 | C183: 93396 | D183: =VLOOKUP(C183,'SINAPI 01-2023'!A:E,2,0) -> BANCADA GRANITO CINZA, 50 X 60 CM, INCL. CUBA DE EMBUTIR OVAL LOUÇA BRANCA 35 X 50 CM, VÁLVULA METAL CROMADO, SIFÃO FLEXÍVEL PVC, ENGATE 30 CM FLEXÍVEL PLÁSTICO E TORNEIRA CROMADA DE MESA, PADRÃO POPULAR - FORNEC. E INSTALAÇÃO. AF_01/2020 | E183: =VLOOKUP(C183,'SINAPI 01-2023'!A:E,3,0) -> UN | F183: ='MEMÓRIA DE CÁLCULO'!K1198 -> 3
A184: =B184&C184 -> 13.1018.016.0106-A | B184: 13.10 | C184: 18.016.0106-A | D184: =VLOOKUP(C184,'EMOP 01-2023'!A:J,2,0) -> BARRA DE APOIO EM ACO INOXIDAVEL AISI 304,TUBO DE 1.1/4",INCLUSIVE FIXACAO COM PARAFUSOS INOXIDAVEIS E BUCHAS PLASTICAS,COM 80CM,CONFORME ABNT NBR 9050 PARA ACESSIBILIDADE.FORNECIMENTO E COLOCACAO | E184: =VLOOKUP(C184,'EMOP 01-2023'!A:J,9,0) -> UN | F184: ='MEMÓRIA DE CÁLCULO'!K1203 -> 7
A185: =B185&C185 -> 13.1118.007.0090-A | B185: 13.11 | C185: 18.007.0090-A | D185: =VLOOKUP(C185,'EMOP 01-2023'!A:J,2,0) -> CHUVEIRO COM DESVIADOR E DUCHA MANUAL,CROMADO,PARA PESSOAS COM NECESSIDADES ESPECIFICAS.FORNECIMENTO | E185: =VLOOKUP(C185,'EMOP 01-2023'!A:J,9,0) -> UN | F185: ='MEMÓRIA DE CÁLCULO'!K1214 -> 1
A186: =B186&C186 -> 13.1218.007.0075-A | B186: 13.12 | C186: 18.007.0075-A | D186: =VLOOKUP(C186,'EMOP 01-2023'!A:J,2,0) -> CHUVEIRO ELETRICO,EM METAL CROMADO,EM 110/220V,COM BRACO CROMADO DE 1/2" E 1 REGISTRO DE PRESSAO 1416 DE 3/4",COM CANOPLA E VOLANTE EM METAL CROMADO.FORNECIMENTO | E186: =VLOOKUP(C186,'EMOP 01-2023'!A:J,9,0) -> UN | F186: ='MEMÓRIA DE CÁLCULO'!K1219 -> 1
A187: =B187&C187 -> 13.1318.016.0125-A | B187: 13.13 | C187: 18.016.0125-A | D187: =VLOOKUP(C187,'EMOP 01-2023'!A:J,2,0) -> BARRA DE APOIO(PUXADOR HORIZONTAL/VERTICAL)EM ACO INOXIDAVEL AISI 304,TUBO DE 1 1/4",INCLUSIVE FIXACAO COM PARAFUSOS INOXIDAVEIS E BUCHAS PLASTICAS,COM 40CM,PARA PORTAS DE SANITARIOS,VESTIARIOS E QUARTOS ACESSIVEIS EM LOCAIS DE HOSPEDAGEM E DE SAUDE,CONFORME ABNT NBR 9050 PARA ACESSIBILIDADE.FORNECIMENTO E COLOCACAO | E187: =VLOOKUP(C187,'EMOP 01-2023'!A:J,9,0) -> UN | F187: ='MEMÓRIA DE CÁLCULO'!K1224 -> 3
A188: =B188&C188 -> 13.1486934 | B188: 13.14 | C188: 86934 | D188: =VLOOKUP(C188,'SINAPI 01-2023'!A:E,2,0) -> BANCADA DE MÁRMORE SINTÉTICO 120 X 60CM, COM CUBA INTEGRADA, INCLUSO SIFÃO TIPO FLEXÍVEL EM PVC, VÁLVULA EM PLÁSTICO CROMADO TIPO AMERICANA E TORNEIRA CROMADA LONGA, DE PAREDE, PADRÃO POPULAR - FORNECIMENTO E INSTALAÇÃO. AF_01/2020 | E188: =VLOOKUP(C188,'SINAPI 01-2023'!A:E,3,0) -> UN | F188: ='MEMÓRIA DE CÁLCULO'!K1235 -> 1
A189: =B189&C189 -> 13.1595545 | B189: 13.15 | C189: 95545 | D189: =VLOOKUP(C189,'SINAPI 01-2023'!A:E,2,0) -> SABONETEIRA DE PAREDE EM METAL CROMADO, INCLUSO FIXAÇÃO. AF_01/2020 | E189: =VLOOKUP(C189,'SINAPI 01-2023'!A:E,3,0) -> UN | F189: ='MEMÓRIA DE CÁLCULO'!K1240 -> 2
A190: =B190&C190 -> 13.1695547 | B190: 13.16 | C190: 95547 | D190: =VLOOKUP(C190,'SINAPI 01-2023'!A:E,2,0) -> SABONETEIRA PLASTICA TIPO DISPENSER PARA SABONETE LIQUIDO COM RESERVATORIO 800 A 1500 ML, INCLUSO FIXAÇÃO. AF_01/2020 | E190: =VLOOKUP(C190,'SINAPI 01-2023'!A:E,3,0) -> UN | F190: ='MEMÓRIA DE CÁLCULO'!K1246 -> 8
A191: =B191&C191 -> 13.1795544 | B191: 13.17 | C191: 95544 | D191: =VLOOKUP(C191,'SINAPI 01-2023'!A:E,2,0) -> PAPELEIRA DE PAREDE EM METAL CROMADO SEM TAMPA, INCLUSO FIXAÇÃO. AF_01/2020 | E191: =VLOOKUP(C191,'SINAPI 01-2023'!A:E,3,0) -> UN | F191: ='MEMÓRIA DE CÁLCULO'!K1261 -> 8
A192: =B192&C192 -> 13.1818.005.0013-A | B192: 13.18 | C192: 18.005.0013-A | D192: =VLOOKUP(C192,'EMOP 01-2023'!A:J,2,0) -> PORTA PAPEL HIGIENICO EM PLASTICO ABS.FORNECIMENTRO E COLOCACAO | E192: =VLOOKUP(C192,'EMOP 01-2023'!A:J,9,0) -> UN | F192: ='MEMÓRIA DE CÁLCULO'!K1276 -> 10
A193: =B193&C193 -> 13.1914.002.0250-A | B193: 13.19 | C193: 14.002.0250-A | D193: =VLOOKUP(C193,'EMOP 01-2023'!A:J,2,0) -> ESCADA DE MARINHEIRO,COM LARGURA DE 0,40M,EXECUTADA EM BARRAS DE FERRO DE 1.1/2"X1/4",SENDO OS DEGRAUS EM FERRO REDONDODE 5/8",ESPACADOS DE 30CM.FORNECIMENTO E COLOCACAO | E193: =VLOOKUP(C193,'EMOP 01-2023'!A:J,9,0) -> M | F193: ='MEMÓRIA DE CÁLCULO'!K1291 -> 3.3
A194: =B194&C194 -> 13.2018.040.0025-A | B194: 13.20 | C194: 18.040.0025-A | D194: =VLOOKUP(C194,'EMOP 01-2023'!A:J,2,0) -> PLATAFORMA PARA TRANSPORTE VERTICAL,PERCURSO DE 4,00M,CAPACIDADE PARA 230KG,VELOCIDADE DE 6M/MINUTO,COM DUAS PARADAS,GUARDA CORPO LATERAL COM BRACO TIPO BASCULANTE E ACESSO PELO MESMO LADO,COMANDO AUTOMATICO SIMPLES NAS DUAS PARADAS FRANQUEADO,CHAVE NA CABINE,MOTOR ELETRICO DE 2CV A 1720RPM,60HZ,TRIFASICO (220/380V).FORNECIMENTO,MONTAGEM E INSTALACAO | E194: =VLOOKUP(C194,'EMOP 01-2023'!A:J,9,0) -> UN | F194: 0
A195: =B195&C195 -> 13.2118.030.0001-A | B195: 13.21 | C195: 18.030.0001-A | D195: =VLOOKUP(C195,'EMOP 01-2023'!A:J,2,0) -> CONDICIONADOR DE AR TIPO SPLIT 9000 BTU'S COMPREENDENDO 1 CONDENSADOR E 1 EVAPORADOR(VIDE INSTALACAO,ASSENTAMENTO E INTERLIGACOES FAMILIA 15.005).FORNECIMENTO | E195: =VLOOKUP(C195,'EMOP 01-2023'!A:J,9,0) -> UN | F195: 0
A196: =B196&C196 -> 13.2215.005.0200-A | B196: 13.22 | C196: 15.005.0200-A | D196: =VLOOKUP(C196,'EMOP 01-2023'!A:J,2,0) -> INSTALACAO E ASSENTAMENTO DE AR CONDICIONADO TIPO SPLIT DE 9000 BTU'S,COM 1 CONDENSADOR E 1 EVAPORADOR,(VIDE FORNECIMENTO DO APARELHO NA FAMILIA 18.030)INCLUSIVE ACESSORIOS DE FIXACAO,EXCLUSIVE ALIMENTACAO ELETRICA E INTERLIGACAO AO CONDENSADOR/EVAPORADOR(VIDE ITEM 15.005.0255) | E196: =VLOOKUP(C196,'EMOP 01-2023'!A:J,9,0) -> UN | F196: 0
A197: =B197&C197 -> 13.2318.030.0002-A | B197: 13.23 | C197: 18.030.0002-A | D197: =VLOOKUP(C197,'EMOP 01-2023'!A:J,2,0) -> CONDICIONADOR DE AR TIPO SPLIT 12000 BTU'S COMPREENDENDO 1 CONDENSADOR E 1 EVAPORADOR(VIDE INSTALACAO,ASSENTAMENTO E INTERLIGACOES FAMILIA 15.005).FORNECIMENTO | E197: =VLOOKUP(C197,'EMOP 01-2023'!A:J,9,0) -> UN | F197: 0
A198: =B198&C198 -> 13.2415.005.0201-A | B198: 13.24 | C198: 15.005.0201-A | D198: =VLOOKUP(C198,'EMOP 01-2023'!A:J,2,0) -> INSTALACAO E ASSENTAMENTO DE AR CONDICIONADO TIPO SPLIT DE 12000 BTU'S,COM 1 CONDENSADOR E 1 EVAPORADOR,(VIDE FORNECIMENTO DO APARELHO NA FAMILIA 18.030)INCLUSIVE ACESSORIOS DE FIXACAO,EXCLUSIVE ALIMENTACAO ELETRICA E INTERLIGACAO AO CONDENSADOR/EVAPORADOR (VIDE ITEM 15.005.0255) | E198: =VLOOKUP(C198,'EMOP 01-2023'!A:J,9,0) -> UN | F198: 0
A199: =B199&C199 -> 13.2515.005.0208-A | B199: 13.25 | C199: 15.005.0208-A | D199: =VLOOKUP(C199,'EMOP 01-2023'!A:J,2,0) -> INSTALACAO E ASSENTAMENTO DE AR CONDICIONADO TIPO SPLIT DE 48000 BTU'S,COM 1 CONDENSADOR E 1 EVAPORADOR,(VIDE FORNECIMENTO DO APARELHO NA FAMILIA 18.030)INCLUSIVE ACESSORIOS DE FIXACAO,EXCLUSIVE ALIMENTACAO ELETRICA E INTERLIGACAO AO CONDENSADOR/EVAPORADOR (VIDE ITEM 15.005.0255) | E199: =VLOOKUP(C199,'EMOP 01-2023'!A:J,9,0) -> UN | F199: 0
A200: =B200&C200 -> 13.2615.005.0209-A | B200: 13.26 | C200: 15.005.0209-A | D200: =VLOOKUP(C200,'EMOP 01-2023'!A:J,2,0) -> INSTALACAO E ASSENTAMENTO DE AR CONDICIONADO TIPO SPLIT DE 60000 BTU'S,COM 1 CONDENSADOR E 1 EVAPORADOR,(VIDE FORNECIMENTO DO APARELHO NA FAMILIA 18.030)INCLUSIVE ACESSORIOS DE FIXACAO,EXCLUSIVE ALIMENTACAO ELETRICA E INTERLIGACAO AO CONDENSADOR/EVAPORADOR (VIDE ITEM 15.005.0255) | E200: =VLOOKUP(C200,'EMOP 01-2023'!A:J,9,0) -> UN | F200: 0
A201: =B201&C201 -> 13.2715.005.0255-A | B201: 13.27 | C201: 15.005.0255-A | D201: =VLOOKUP(C201,'EMOP 01-2023'!A:J,2,0) -> TUBULACAO EM COBRE PARA INTERLIGACAO DE SPLIT SYSTEM AO CONDENSADOR/EVAPORADOR,INCLUSIVE ISOLAMENTO TERMICO,ALIMENTACAOELETRICA,CONEXOES E FIXACAO,PARA APARELHOS ATE 48000 BTU'S.FORNECIMENTO E INSTALACAO | E201: =VLOOKUP(C201,'EMOP 01-2023'!A:J,9,0) -> M | F201: ='MEMÓRIA DE CÁLCULO'!K1332 -> 75.7
... 9 more rows

Sheet MEMÓRIA DE CÁLCULO
B2: ='ORÇAMENTO SINTÉTICO'!A3 -> PREFEITURA MUNICIPAL DE ITABORAÍ
B3: ='ORÇAMENTO SINTÉTICO'!A4 -> SECRETARIA MUNICIPAL DE OBRAS
B4: ='ORÇAMENTO SINTÉTICO'!A5 -> OBRA DE REFORMA DO TEATRO JOÃO CAETANO
B5: ='ORÇAMENTO SINTÉTICO'!A6 -> Local: Praça Marechal Floriano Peixoto, bairro Centro, Itaboraí, RJ
B7: ANEXO I B- MEMÓRIA DE CÁLCULO
B8: ITEM | C8: CÓDIGO | D8: DESCRIÇÃO DO SERVIÇO | J8: UNID. | K8: QUANT.
B9: ='ORÇAMENTO ANALÍTICO'!B13 -> 1 | C9: ='ORÇAMENTO ANALÍTICO'!C13:H13 -> SERVIÇOS DE ESCRITÓRIO, LABORATÓRIO E CAMPO
A10: =B10&C10 -> 1.101.050.0546-A | B10: 1.1 | C10: ='ORÇAMENTO ANALÍTICO'!C14 -> 01.050.0546-A | D10: =VLOOKUP(A10,'ORÇAMENTO ANALÍTICO'!A:I,4,FALSE()) -> PROJETO EXECUTIVO ESTRUTURAL PARA PREDIOS CULTURAIS ATE 500M2,CONSIDERANDO O PROJETO BASICO EXISTENTE,APRESENTADO NOS PADROES DA CONTRATANTE,CONSTANDO DE PLANTAS DE FORMA,ARMACAO E DETALHES | J10: =VLOOKUP(A10,'ORÇAMENTO ANALÍTICO'!A:I,5,0) -> M2 | K10: =H12 -> 355
D11: Área total de projeção do teatro | H11: Total
D12: 355 | G12: = | H12: =TRUNC(D12,2) -> 355
A14: =B14&C14 -> 1.201.050.0481-A | B14: 1.2 | C14: ='ORÇAMENTO ANALÍTICO'!C15 -> 01.050.0481-A | D14: =VLOOKUP(A14,'ORÇAMENTO ANALÍTICO'!A:I,4,FALSE()) -> PROJETO EXECUTIVO DE INSTALACAO HIDRAULICA,CONSIDERANDO O PROJETO BASICO EXISTENTE,PARA PREDIOS CULTURAIS,APRESENTADO NOS PADROES DA CONTRATANTE,INCLUSIVE AS LEGALIZACOES PERTINENTES | J14: =VLOOKUP(A14,'ORÇAMENTO ANALÍTICO'!A:I,5,0) -> M2 | K14: =H16 -> 355
D15: Área total de projeção do teatro | H15: Total
D16: 355 | G16: = | H16: =TRUNC(D16,2) -> 355
A18: =B18&C18 -> 1.301.050.0518-A | B18: 1.3 | C18: ='ORÇAMENTO ANALÍTICO'!C16 -> 01.050.0518-A | D18: =VLOOKUP(A18,'ORÇAMENTO ANALÍTICO'!A:I,4,FALSE()) -> PROJETO EXECUTIVO DE INSTALACAO ELETRICA,CONSIDERANDO O PROJETO BASICO EXISTENTE,PARA PREDIOS CULTURAIS ATE 3000M2,APRESENTADO NOS PADROES DA CONTRATANTE,INCLUSIVE AS LEGALIZACOESPERTINENTES | J18: =VLOOKUP(A18,'ORÇAMENTO ANALÍTICO'!A:I,5,0) -> M2 | K18: =H20 -> 355
D19: Área total de projeção do teatro | H19: Total
D20: 355 | G20: = | H20: =TRUNC(D20,2) -> 355
A22: =B22&C22 -> 1.401.050.0455-A | B22: 1.4 | C22: ='ORÇAMENTO ANALÍTICO'!C17 -> 01.050.0455-A | D22: =VLOOKUP(A22,'ORÇAMENTO ANALÍTICO'!A:I,4,FALSE()) -> PROJETO EXECUTIVO DE INSTALACAO DE ESGOTO SANITARIO E AGUASPLUVIAIS,CONSIDERANDO O PROJETO BASICO EXISTENTE,PARA PREDIOS CULTURAIS,APRESENTADO NOS PADROES DA CONTRATANTE,INCLUSIVE AS LEGALIZACOES PERTINENTES | J22: =VLOOKUP(A22,'ORÇAMENTO ANALÍTICO'!A:I,5,0) -> M2 | K22: =H24 -> 355
D23: Área total de projeção do teatro | H23: Total
D24: 355 | G24: = | H24: =TRUNC(D24,2) -> 355
A26: =B26&C26 -> 1.501.050.0530-A | B26: 1.5 | C26: ='ORÇAMENTO ANALÍTICO'!C18 -> 01.050.0530-A | D26: =VLOOKUP(A26,'ORÇAMENTO ANALÍTICO'!A:I,4,FALSE()) -> PROJETO EXECUTIVO DE SISTEMA DE AR CONDICIONADO,CONSIDERANDOO PROJETO BASICO EXISTENTE,APRESENTADO NOS PADROES DA CONTRATANTE,PARA PREDIOS COM AREA ATE 500M2 | J26: =VLOOKUP(A26,'ORÇAMENTO ANALÍTICO'!A:I,5,0) -> M2 | K26: =H28 -> 355
D27: Área total de projeção do teatro | H27: Total
D28: 355 | G28: = | H28: =TRUNC(D28,2) -> 355
B30: ='ORÇAMENTO ANALÍTICO'!B20 -> 2 | C30: ='ORÇAMENTO ANALÍTICO'!C20:H20 -> CANTEIRO DE OBRAS
A31: =B31&C31 -> 2.102.020.0001-A | B31: 2.1 | C31: ='ORÇAMENTO ANALÍTICO'!C21 -> 02.020.0001-A | D31: =VLOOKUP(A31,'ORÇAMENTO ANALÍTICO'!A:I,4,FALSE()) -> PLACA DE IDENTIFICACAO DE OBRA PUBLICA,INCLUSIVE PINTURA E SUPORTES DE MADEIRA.FORNECIMENTO E COLOCACAO | J31: =VLOOKUP(A31,'ORÇAMENTO ANALÍTICO'!A:I,5,0) -> M2 | K31: =I33 -> 2.88
C32: Comprimento | E32: Largura | G32: Quantidade | I32: Total
C33: 2.4 | D33: x | E33: 1.2 | F33: x | G33: 1 | H33: = | I33: =TRUNC((C33*E33)*G33,2) -> 2.88
A35: =B35&C35 -> 2.202.002.0005-A | B35: 2.2 | C35: ='ORÇAMENTO ANALÍTICO'!C22 -> 02.002.0005-A | D35: =VLOOKUP(A35,'ORÇAMENTO ANALÍTICO'!A:I,4,FALSE()) -> TAPUME DE VEDACAO OU PROTECAO,EXECUTADO COM TELHAS TRAPEZOIDAIS DE ACO GALVANIZADO,ESPESSURA DE 0,5MM,ESTAS COM 4 VEZESDE UTILIZACAO,INCLUSIVE ENGRADAMENTO DE MADEIRA,UTILIZADO 2VEZES E PINTURA ESMALTE SINTETICO NA FACE EXTERNA | J35: =VLOOKUP(A35,'ORÇAMENTO ANALÍTICO'!A:I,5,0) -> M2 | K35: =H37 -> 116.6
D36: Perimetro | F36: Altura | H36: Total
D37: 53 | E37: x | F37: 2.2 | G37: = | H37: =TRUNC(D37*F37,2) -> 116.6
A39: =B39&C39 -> 2.302.016.0001-A | B39: 2.3 | C39: ='ORÇAMENTO ANALÍTICO'!C23 -> 02.016.0001-A | D39: =VLOOKUP(A39,'ORÇAMENTO ANALÍTICO'!A:I,4,FALSE()) -> INSTALACAO E LIGACAO PROVISORIA DE ALIMENTACAO DE ENERGIA ELETRICA,EM BAIXA TENSAO,PARA CANTEIRO DE OBRAS,M3-CHAVE 100A,CARGA 3KW,20CV,EXCLUSIVE O FORNECIMENTO DO MEDIDOR | J39: =VLOOKUP(A39,'ORÇAMENTO ANALÍTICO'!A:I,5,0) -> UN | K39: 1
A41: =B41&C41 -> 2.402.015.0001-A | B41: 2.4 | C41: ='ORÇAMENTO ANALÍTICO'!C24 -> 02.015.0001-A | D41: =VLOOKUP(A41,'ORÇAMENTO ANALÍTICO'!A:I,4,FALSE()) -> INSTALACAO E LIGACAO PROVISORIA PARA ABASTECIMENTO DE AGUA E ESGOTAMENTO SANITARIO EM CANTEIRO DE OBRAS,INCLUSIVE ESCAVACAO,EXCLUSIVE REPOSICAO DA PAVIMENTACAO DO LOGRADOURO PUBLICO | J41: =VLOOKUP(A41,'ORÇAMENTO ANALÍTICO'!A:I,5,0) -> UN | K41: 1
A43: =B43&C43 -> 2.510775 | B43: 2.5 | C43: ='ORÇAMENTO ANALÍTICO'!C25 -> 10775 | D43: =VLOOKUP(A43,'ORÇAMENTO ANALÍTICO'!A:I,4,FALSE()) -> LOCACAO DE CONTAINER 2,30 X 6,00 M, ALT. 2,50 M, COM 1 SANITARIO, PARA ESCRITORIO, COMPLETO, SEM DIVISORIAS INTERNAS (NAO INCLUI MOBILIZACAO/DESMOBILIZACAO) | J43: =VLOOKUP(A43,'ORÇAMENTO ANALÍTICO'!A:I,5,0) -> MES | K43: =H45 -> 6
D44: Quantidade | F44: Mês | H44: Total
D45: 1 | E45: x | F45: 6 | G45: = | H45: =TRUNC(D45*F45,2) -> 6
A47: =B47&C47 -> 2.610778 | B47: 2.6 | C47: ='ORÇAMENTO ANALÍTICO'!C26 -> 10778 | D47: =VLOOKUP(A47,'ORÇAMENTO ANALÍTICO'!A:I,4,FALSE()) -> LOCACAO DE CONTAINER 2,30 X 6,00 M, ALT. 2,50 M, PARA SANITARIO, COM 4 BACIAS, 8 CHUVEIROS,1 LAVATORIO E 1 MICTORIO (NAO INCLUI MOBILIZACAO/DESMOBILIZACAO) | J47: =VLOOKUP(A47,'ORÇAMENTO ANALÍTICO'!A:I,5,0) -> MES | K47: =H49 -> 6
D48: Quantidade | F48: Mês | H48: Total
D49: 1 | E49: x | F49: 6 | G49: = | H49: =TRUNC(D49*F49,2) -> 6
A51: =B51&C51 -> 2.704.013.0015-A | B51: 2.7 | C51: ='ORÇAMENTO ANALÍTICO'!C27 -> 04.013.0015-A | D51: =VLOOKUP(A51,'ORÇAMENTO ANALÍTICO'!A:I,4,FALSE()) -> CARGA E DESCARGA DE CONTAINER,SEGUNDO DESCRICAO DA FAMILIA 02.006 | J51: =VLOOKUP(A51,'ORÇAMENTO ANALÍTICO'!A:I,5,0) -> UN | K51: =D45+D49 -> 2
A53: =B53&C53 -> 2.804.005.0300-A | B53: 2.8 | C53: ='ORÇAMENTO ANALÍTICO'!C28 -> 04.005.0300-A | D53: =VLOOKUP(A53,'ORÇAMENTO ANALÍTICO'!A:I,4,FALSE()) -> TRANSPORTE DE CONTAINER,SEGUNDO DESCRICAO DA FAMILIA 02.006,EXCLUSIVE CARGA E DESCARGA(VIDE ITEM 04.013.0015) | J53: =VLOOKUP(A53,'ORÇAMENTO ANALÍTICO'!A:I,5,0) -> UNXKM | K53: =H55 -> 40
D54: Quantidade | F54: Distância | H54: Total
D55: 2 | E55: x | F55: 20 | G55: = | H55: =TRUNC(D55*F55,2) -> 40
B57: ='ORÇAMENTO ANALÍTICO'!B30 -> 3 | C57: ='ORÇAMENTO ANALÍTICO'!C30:H30 -> MOVIMENTO DE TERRA
A58: =B58&C58 -> 3.190084 | B58: 3.1 | C58: ='ORÇAMENTO ANALÍTICO'!C31 -> 90084 | D58: =VLOOKUP(A58,'ORÇAMENTO ANALÍTICO'!A:I,4,FALSE()) -> ESCAVAÇÃO MECANIZADA DE VALA COM PROF. MAIOR QUE 1,5 M ATÉ 3,0 M (MÉDIA MONTANTE E JUSANTE/UMA COMPOSIÇÃO POR TRECHO), ESCAVADEIRA (0,8 M3), LARGURA ATÉ 1,5 M, EM SOLO DE 1A CATEGORIA, EM LOCAIS COM ALTO NÍVEL DE INTERFERÊNCIA. AF_02/2021 | J58: =VLOOKUP(A58,'ORÇAMENTO ANALÍTICO'!A:I,5,0) -> M3 | K58: =SUM(I60:I61) -> 23.94
C59: Local | D59: Área | F59: Altura | G59: Quantidade | I59: Total
C60: Fossa (Ø 2,00) + 1m afastamento | D60: =(3*3*3.14)/4 -> 7.065 | E60: x | F60: 2 | G60: 1 | H60: = | I60: =TRUNC(D60*F60*G60,2) -> 14.13
C61: Filtro (Ø 1,50) + 1m afastamento | D61: =(2.5*2.5*3.14)/4 -> 4.90625 | E61: x | F61: 2 | G61: 1 | H61: = | I61: =TRUNC(D61*F61*G61,2) -> 9.81
A63: =B63&C63 -> 3.293358 | B63: 3.2 | C63: ='ORÇAMENTO ANALÍTICO'!C32 -> 93358 | D63: =VLOOKUP(A63,'ORÇAMENTO ANALÍTICO'!A:I,4,FALSE()) -> ESCAVAÇÃO MANUAL DE VALA COM PROFUNDIDADE MENOR OU IGUAL A 1,30 M. AF_02/2021 | J63: =VLOOKUP(A63,'ORÇAMENTO ANALÍTICO'!A:I,5,0) -> M3 | K63: =SUM(I65:I69) -> 25.14
C64: Local | D64: Área | F64: Altura | G64: Quantidade | I64: Total
C65: Caixa de Inspeção (Ø 0,60) + 0,5 de afastamento | D65: =(1.1*1.1*3.14)/4 -> 0.94985 | E65: x | F65: 1 | G65: 3 | H65: = | I65: =TRUNC(D65*F65*G65,2) -> 2.84
C66: Caixa de Gordura (Ø 0,40) + 0,50 de afastamento | D66: =(0.9*0.9*3.14)/4 -> 0.63585 | F66: 1 | G66: 1 | H66: = | I66: =TRUNC(D66*F66*G66,2) -> 0.63
C67: Caixa de Passagem (0,30 x 0,30) + 0,3 de afastamento | D67: =0.6*0.6 -> 0.36 | F67: 1 | G67: 2 | H67: = | I67: =TRUNC(D67*F67*G67,2) -> 0.72
C68: Local | D68: Comprimento | E68: Largura | F68: Altura | G68: Quantidade | I68: Total
C69: Tubo de Esgoto | D69: =108.8-25 -> 83.8 | E69: 0.5 | F69: 0.5 | G69: 1 | H69: = | I69: =TRUNC((D69*E69*F69*G69),2) -> 20.95
A71: =B71&C71 -> 3.393382 | B71: 3.3 | C71: ='ORÇAMENTO ANALÍTICO'!C33 -> 93382 | D71: =VLOOKUP(A71,'ORÇAMENTO ANALÍTICO'!A:I,4,FALSE()) -> REATERRO MANUAL DE VALAS COM COMPACTAÇÃO MECANIZADA. AF_04/2016 | J71: =VLOOKUP(A71,'ORÇAMENTO ANALÍTICO'!A:I,5,0) -> M3 | K71: =SUM(I73:I78) -> 37.47
D72: Local | E72: Volume escavado | G72: Volume real | I72: Total
D73: Fossa (Ø 2,00) | E73: =I60 -> 14.13 | F73: - | G73: =(3.14*2*2/4)*F60*G60 -> 6.28 | H73: = | I73: =TRUNC(E73-G73,2) -> 7.85
D74: Filtro (Ø 1,50) | E74: =I61 -> 9.81 | F74: - | G74: =(3.14*1.5*1.5/4)*F61*G61 -> 3.5325 | H74: = | I74: =TRUNC(E74-G74,2) -> 6.27
D75: Caixa de Inspeção (Ø 0,60) | E75: =I65 -> 2.84 | F75: - | G75: =(3.14*0.6*0.6/4)*F65*G65 -> 0.8478 | H75: = | I75: =TRUNC(E75-G75,2) -> 1.99
D76: Caixa de Gordura (Ø 0,40) | E76: =I66 -> 0.63 | F76: - | G76: =(3.14*0.4*0.4/4)*F66*G66 -> 0.1256 | H76: = | I76: =TRUNC(E76-G76,2) -> 0.5
D77: Caixa de Passagem (0,30 x 0,30) | E77: =I67 -> 0.72 | F77: - | G77: =(3.14*0.3*0.3/4)*F67*G67 -> 0.1413 | H77: = | I77: =TRUNC(E77-G77,2) -> 0.57
D78: =C69 -> Tubo de Esgoto | E78: =I69 -> 20.95 | F78: - | G78: =(3.14*0.1*0.1/4)*D69 -> 0.65783 | H78: = | I78: =TRUNC(E78-G78,2) -> 20.29
A80: =B80&C80 -> 3.403.009.0015-A | B80: 3.4 | C80: ='ORÇAMENTO ANALÍTICO'!C34 -> 03.009.0015-A | D80: =VLOOKUP(A80,'ORÇAMENTO ANALÍTICO'!A:I,4,FALSE()) -> ATERRO COM MATERIAL DE 1ª CATEGORIA,COMPACTADO MANUALMENTE EM CAMADAS DE 20CM DE MATERIAL APILOADO,PROVENIENTE DE JAZIDA DISTANTE ATE 10KM,INCLUSIVE ESCAVACAO,CARGA,TRANSPORTE EM CAMINHAO BASCULANTE,DESCARGA,ESPALHAMENTO E IRRIGACAO MANUAIS | J80: =VLOOKUP(A80,'ORÇAMENTO ANALÍTICO'!A:I,5,0) -> M3 | K80: =SUM(J83:J84,J87:J94) -> 31.45
B81: Subsolo
D82: Local | E82: Comprimento | F82: Altura | G82: Largura | H82: Quantidade | J82: Total
D83: Rampa PATAMAR | E83: 1.2 | F83: 0.25 | G83: 1.75 | H83: 1 | I83: = | J83: =TRUNC(E83*F83*G83*H83,2) -> 0.52
B84: Valor total dividido por 2 | D84: Rampa | E84: 2.05 | F84: 0.25 | G84: 1.75 | H84: 1 | I84: = | J84: =TRUNC(E84*F84*G84*H84,2)/2 -> 0.445
B85: Térreo
D86: Local | E86: Comprimento | F86: Altura | G86: Largura | H86: Quantidade | J86: Total
B87: Valor total dividido por 2 | D87: Rampas nas laterais da pláteia | E87: 9 | F87: 1.13 | G87: 1.2 | H87: 2 | I87: = | J87: 0
D88: Escalonamento do piso da pláteia | E88: 7.99 | F88: 0.2 | G88: 9.92 | H88: 1 | I88: = | J88: 0
B89: Valor total dividido por 2 | D89: Rampa na lateral do teatro (1) | E89: 12.2 | F89: 1.1 | G89: 1.9 | H89: 1 | I89: = | J89: =TRUNC(E89*F89*G89*H89,2)/2 -> 12.745
D90: Rampa na lateral do teatro (2) | E90: 5.35 | F90: 1 | G90: 1.9 | H90: 1 | I90: = | J90: =TRUNC(E90*F90*G90*H90,2) -> 10.16
D91: Rampa na lateral do teatro (3) | E91: 2.05 | F91: 1 | G91: 1.9 | H91: 1 | I91: = | J91: =TRUNC(E91*F91*G91*H91,2) -> 3.89
B92: Valor total dividido por 2 | D92: Escada na lateral do teatro (4) | E92: 2.35 | F92: 1 | G92: 1.9 | H92: 1 | I92: = | J92: =TRUNC(E92*F92*G92*H92,2)/2 -> 2.23
B93: Valor total dividido por 2 | D93: Rampa na frente do teatro | E93: 4.8 | F93: 0.25 | G93: 1.5 | H93: 1 | I93: = | J93: =TRUNC(E93*F93*G93*H93,2)/2 -> 0.9
D94: Patamar na frente do teatro | E94: 1.5 | F94: 0.25 | G94: 1.5 | H94: 1 | I94: = | J94: =TRUNC(E94*F94*G94*H94,2) -> 0.56
B98: ='ORÇAMENTO ANALÍTICO'!B36 -> 4 | C98: ='ORÇAMENTO ANALÍTICO'!C36:H36 -> TRANSPORTES
A99: =B99&C99 -> 4.105.001.0171-A | B99: 4.1 | C99: ='ORÇAMENTO ANALÍTICO'!C37 -> 05.001.0171-A | D99: =VLOOKUP(A99,'ORÇAMENTO ANALÍTICO'!A:I,4,FALSE()) -> TRANSPORTE HORIZONTAL DE MATERIAL DE 1ªCATEGORIA OU ENTULHO,EM CARRINHOS,A 20,00M DE DISTANCIA,INCLUSIVE CARGA A PA | J99: =VLOOKUP(A99,'ORÇAMENTO ANALÍTICO'!A:I,5,0) -> M3 | K99: =SUM(G101:G108) -> 43.01
D100: Local | E100: Volume | G100: Total
D101: =D73 -> Fossa (Ø 2,00) | E101: =G73 -> 6.28 | F101: = | G101: =TRUNC(E101,2) -> 6.28
D102: =D74 -> Filtro (Ø 1,50) | E102: =G74 -> 3.5325 | F102: = | G102: =TRUNC(E102,2) -> 3.53
D103: =D75 -> Caixa de Inspeção (Ø 0,60) | E103: =G75 -> 0.8478 | F103: = | G103: =TRUNC(E103,2) -> 0.84
D104: =D76 -> Caixa de Gordura (Ø 0,40) | E104: =G76 -> 0.1256 | F104: = | G104: =TRUNC(E104,2) -> 0.12
D105: =D77 -> Caixa de Passagem (0,30 x 0,30) | E105: =G77 -> 0.1413 | F105: = | G105: =TRUNC(E105,2) -> 0.14
D106: =D78 -> Tubo de Esgoto | E106: =G78 -> 0.65783 | F106: = | G106: =TRUNC(E106,2) -> 0.65
D107: Idem ao item 3.4 | E107: =K80 -> 31.45 | F107: = | G107: =TRUNC(E107,2) -> 31.45
A110: =B110&C110 -> 4.2100981 | B110: 4.2 | C110: ='ORÇAMENTO ANALÍTICO'!C38 -> 100981 | D110: =VLOOKUP(A110,'ORÇAMENTO ANALÍTICO'!A:I,4,FALSE()) -> CARGA, MANOBRA E DESCARGA DE ENTULHO EM CAMINHÃO BASCULANTE 6 M³ - CARGA COM ESCAVADEIRA HIDRÁULICA (CAÇAMBA DE 0,80 M³ / 111 HP) E DESCARGA LIVRE (UNIDADE: M3). AF_07/2020 | J110: =VLOOKUP(A110,'ORÇAMENTO ANALÍTICO'!A:I,5,0) -> M3 | K110: =SUM(G112:G119) -> 24
D111: Local | E111: Volume | G111: Total
D112: =D101 -> Fossa (Ø 2,00) | E112: =E101 -> 6.28 | F112: = | G112: =TRUNC(E112,2) -> 6.28
D113: =D102 -> Filtro (Ø 1,50) | E113: =E102 -> 3.5325 | F113: = | G113: =TRUNC(E113,2) -> 3.53
D114: =D103 -> Caixa de Inspeção (Ø 0,60) | E114: =E103 -> 0.8478 | F114: = | G114: =TRUNC(E114,2) -> 0.84
D115: =D104 -> Caixa de Gordura (Ø 0,40) | E115: =E104 -> 0.1256 | F115: = | G115: =TRUNC(E115,2) -> 0.12
D116: =D105 -> Caixa de Passagem (0,30 x 0,30) | E116: =E105 -> 0.1413 | F116: = | G116: =TRUNC(E116,2) -> 0.14
D117: =D106 -> Tubo de Esgoto | E117: =E106 -> 0.65783 | F117: = | G117: =TRUNC(E117,2) -> 0.65
D118: Idem ao item 5.1 | E118: =K153 -> 3.48 | F118: = | G118: =TRUNC(E118,2) -> 3.48
D119: Idem ao item 5.2 (espessura 10 cm) | E119: =K163*0.1 -> 8.96 | F119: = | G119: =TRUNC(E119,2) -> 8.96
A121: =B121&C121 -> 4.397918 | B121: 4.3 | C121: ='ORÇAMENTO ANALÍTICO'!C39 -> 97918 | D121: =VLOOKUP(A121,'ORÇAMENTO ANALÍTICO'!A:I,4,FALSE()) -> TRANSPORTE COM CAMINHÃO BASCULANTE DE 6 M³, EM VIA URBANA PAVIMENTADA, DMT ATÉ 30 KM (UNIDADE: TXKM). AF_07/2020 | J121: =VLOOKUP(A121,'ORÇAMENTO ANALÍTICO'!A:I,5,0) -> TXKM | K121: =SUM(I123:I130) -> 480.48
D122: Local | E122: Volume | G122: Distância | I122: Total
D123: =D112 -> Fossa (Ø 2,00) | E123: =E112 -> 6.28 | F123: x | G123: 20 | H123: = | I123: =TRUNC(E123*G123,2) -> 125.6
D124: =D113 -> Filtro (Ø 1,50) | E124: =E113 -> 3.5325 | F124: x | G124: 20 | H124: = | I124: =TRUNC(E124*G124,2) -> 70.65
D125: =D114 -> Caixa de Inspeção (Ø 0,60) | E125: =E114 -> 0.8478 | F125: x | G125: 20 | H125: = | I125: =TRUNC(E125*G125,2) -> 16.95
D126: =D115 -> Caixa de Gordura (Ø 0,40) | E126: =E115 -> 0.1256 | F126: x | G126: 20 | H126: = | I126: =TRUNC(E126*G126,2) -> 2.51
D127: =D116 -> Caixa de Passagem (0,30 x 0,30) | E127: =E116 -> 0.1413 | F127: x | G127: 20 | H127: = | I127: =TRUNC(E127*G127,2) -> 2.82
D128: =D117 -> Tubo de Esgoto | E128: =E117 -> 0.65783 | F128: x | G128: 20 | H128: = | I128: =TRUNC(E128*G128,2) -> 13.15
D129: =D118 -> Idem ao item 5.1 | E129: =E118 -> 3.48 | F129: x | G129: 20 | H129: = | I129: =TRUNC(E129*G129,2) -> 69.6
D130: =D119 -> Idem ao item 5.2 (espessura 10 cm) | E130: =E119 -> 8.96 | F130: x | G130: 20 | H130: = | I130: =TRUNC(E130*G130,2) -> 179.2
B132: ='ORÇAMENTO ANALÍTICO'!B41 -> 5 | C132: ='ORÇAMENTO ANALÍTICO'!C41:H41 -> SERVIÇOS COMPLEMENTARES
A133: =B133&C133 -> 5.197622 | B133: 5.1 | C133: ='ORÇAMENTO ANALÍTICO'!C42 -> 97622 | D133: =VLOOKUP(A133,'ORÇAMENTO ANALÍTICO'!A:I,4,FALSE()) -> DEMOLIÇÃO DE ALVENARIA DE BLOCO FURADO, DE FORMA MANUAL, SEM REAPROVEITAMENTO. AF_12/2017 | J133: =VLOOKUP(A133,'ORÇAMENTO ANALÍTICO'!A:I,5,0) -> M3 | K133: =SUM(I136:I151) -> 33.6
B134: Subsolo
C135: Local | D135: Extensão | E135: Altura | F135: Desconto | G135: Espessura | I135: Total
C136: Prisma | D136: 4.35 | E136: 2.8 | F136: =(1.9*1.2)+(0.6*0.8) -> 2.76 | G136: 0.15 | H136: = | I136: =TRUNC(((D136*E136)-F136)*G136,2) -> 1.41
C137: Deposito | D137: 0.8 | E137: 2.1 | F137: 0 | G137: 0.15 | H137: = | I137: =TRUNC(((D137*E137)-F137)*G137,2) -> 0.25
B138: Térreo
C139: Coxia | D139: 1 | E139: 4.75 | F139: 0 | G139: 0.15 | H139: = | I139: =TRUNC(((D139*E139)-F139)*G139,2) -> 0.71
C140: Acesso foyer/pláteia | D140: =1+1 -> 2 | E140: 2.5 | F140: 0 | G140: 0.15 | H140: = | I140: =TRUNC(((D140*E140)-F140)*G140,2) -> 0.75
C141: WC Fem. | D141: 6.42 | E141: 3.35 | F141: =(0.7*2.1)*2 -> 2.94 | G141: 0.15 | H141: = | I141: =TRUNC(((D141*E141)-F141)*G141,2) -> 2.78
C142: WC Masc. | D142: 2.86 | E142: 3.35 | F142: 0 | G142: 0.15 | H142: = | I142: =TRUNC(((D142*E142)-F142)*G142,2) -> 1.43
C143: Cafeteria | D143: =8.95+1.7 -> 10.65 | E143: 3.35 | F143: =(0.7*2.1)+(0.8*2.1) -> 3.15 | G143: 0.15 | H143: = | I143: =TRUNC(((D143*E143)-F143)*G143,2) -> 4.87
B144: 1º Pavimento
C145: Mezanino | D145: =12.34+(2*3) -> 18.34 | E145: 3.6 | F145: =(3.2*1.2)*3 -> 11.52 | G145: 0.15 | H145: = | I145: =TRUNC(((D145*E145)-F145)*G145,2) -> 8.17
C146: Sala de apoio | D146: =0.7+0.6 -> 1.3 | E146: 3.3 | F146: 0 | G146: 0.15 | H146: = | I146: =TRUNC(((D146*E146)-F146)*G146,2) -> 0.64
C147: Sala projeção | D147: 2.6 | E147: 3.3 | F147: 0 | G147: 0.15 | H147: = | I147: =TRUNC(((D147*E147)-F147)*G147,2) -> 1.28
C148: Circulação | D148: =0.8+0.7 -> 1.5 | E148: 2.1 | F148: 0 | G148: 0.15 | H148: = | I148: =TRUNC(((D148*E148)-F148)*G148,2) -> 0.47
C149: Circulação | D149: =2.9+3.2+1.18+3+3+2.35+2.35 -> 17.98 | E149: 3.3 | F149: =(0.7*2.1)*2+(0.6*2.1) -> 4.2 | G149: 0.15 | H149: = | I149: =TRUNC(((D149*E149)-F149)*G149,2) -> 8.27
C150: Administração | D150: 1.2 | E150: 3.3 | F150: 0 | G150: 0.15 | H150: = | I150: =TRUNC(((D150*E150)-F150)*G150,2) -> 0.59
C151: Plataforma elevatória (Subsolo) | D151: 1.8 | E151: 5.5 | F151: 0 | G151: 0.2 | H151: = | I151: =TRUNC(((D151*E151)-F151)*G151,2) -> 1.98
A153: =B153&C153 -> 5.105.001.0002-B | B153: 5.1 | C153: ='ORÇAMENTO ANALÍTICO'!C43 -> 05.001.0002-B | D153: =VLOOKUP(A153,'ORÇAMENTO ANALÍTICO'!A:I,4,FALSE()) -> DEMOLICAO MANUAL DE CONCRETO ARMADO COMPREENDENDO PILARES,VIGAS E LAJES,EM ESTRUTURA APRESENTANDO POSICAO ESPECIAL,INCLUSIVE EMPILHAMENTO LATERAL DENTRO DO CANTEIRO DE SERVICO | J153: =VLOOKUP(A153,'ORÇAMENTO ANALÍTICO'!A:I,5,0) -> M3 | K153: =SUM(H156:H161) -> 3.48
B154: Térreo
D155: Local | E155: Área | F155: Largura | H155: Total
D156: Rampa de acesso lateral | E156: =4.35/2 -> 2.175 | F156: 1.6 | G156: = | H156: =TRUNC(E156*F156,2) -> 3.48
D157: Escada do foyer | E157: 0.5 | F157: 2 | G157: = | H157: 0
D158: Escada do foyer | E158: 0.5 | F158: 1.2 | G158: = | H158: 0
D159: Escada do foyer | E159: 0.5 | F159: 1.2 | G159: = | H159: 0
D160: Local | E160: Área | F160: Altura | H160: Total
D161: Laje do PNE/cafeteria | E161: 10.65 | F161: 0.15 | G161: = | H161: 0
A163: =B163&C163 -> 5.205.001.0018-A | B163: 5.2 | C163: ='ORÇAMENTO ANALÍTICO'!C44 -> 05.001.0018-A | D163: =VLOOKUP(A163,'ORÇAMENTO ANALÍTICO'!A:I,4,FALSE()) -> DEMOLICAO MANUAL DE PISO CIMENTADO E DA RESPECTIVA BASE DE CONCRETO,OU PASSEIO DE CONCRETO,INCLUSIVE EMPILHAMENTO LATERAL DENTRO DO CANTEIRO DE SERVICO | J163: =VLOOKUP(A163,'ORÇAMENTO ANALÍTICO'!A:I,5,0) -> M2 | K163: =SUM(H165:H168) -> 89.6
D164: Local | E164: Área | H164: Total
D165: Passeio em torno do teatro | E165: 86 | G165: = | H165: =TRUNC(E165,2) -> 86
D166: Local | E166: Comprimento | F166: Largura | H166: Total
D167: Plataforma elevatória (Subsolo) | E167: 2 | F167: 1.8 | G167: = | H167: =TRUNC(E167*F167,2) -> 3.6
D168: Plataforma elevatória (Foyer) | E168: 2 | F168: 1.5 | G168: = | H168: 0
A170: =B170&C170 -> 5.305.001.0134-A | B170: 5.3 | C170: ='ORÇAMENTO ANALÍTICO'!C45 -> 05.001.0134-A | D170: =VLOOKUP(A170,'ORÇAMENTO ANALÍTICO'!A:I,4,FALSE()) -> ARRANCAMENTO DE PORTAS,JANELAS E CAIXILHOS DE AR CONDICIONADO OU OUTROS | J170: =VLOOKUP(A170,'ORÇAMENTO ANALÍTICO'!A:I,5,0) -> UN | K170: 0
B171: Subsolo
D172: Local | F172: Quantidade | H172: Total
D173: WC | F173: 1 | G173: = | H173: =TRUNC(F173,2) -> 1
D174: Prisma | F174: 2 | G174: = | H174: =TRUNC(F174,2) -> 2
D175: Hall | F175: 1 | G175: = | H175: =TRUNC(F175,2) -> 1
B176: Térreo
D177: Local | F177: Quantidade | H177: Total
D178: Foyer | F178: 5 | G178: = | H178: =TRUNC(F178,2) -> 5
B179: 1º Pavimento
D180: Local | F180: Quantidade | H180: Total
D181: Sacada | F181: 5 | G181: = | H181: =TRUNC(F181,2) -> 5
A183: =B183&C183 -> 5.405.001.0147-A | B183: 5.4 | C183: ='ORÇAMENTO ANALÍTICO'!C46 -> 05.001.0147-A | D183: =VLOOKUP(A183,'ORÇAMENTO ANALÍTICO'!A:I,4,FALSE()) -> ARRANCAMENTO DE GRADES,GRADIS,ALAMBRADOS,CERCAS E PORTOES | J183: =VLOOKUP(A183,'ORÇAMENTO ANALÍTICO'!A:I,5,0) -> M2 | K183: =SUM(H185:H187) -> 21.2
D184: Local | E184: Comprimento | F184: Altura | H184: Total
D185: Guarda corpo escada do Foyer | E185: =2+2.5+2.5 -> 7 | F185: 1 | G185: = | H185: 0
D186: Guarda corpo sacada | E186: 10.2 | F186: 1 | G186: = | H186: =TRUNC(E186*F186,2) -> 10.2
D187: Guarda corpo rampa de acesso lateral | E187: 11 | F187: 1 | G187: = | H187: =TRUNC(E187*F187,2) -> 11
A189: =B189&C189 -> 5.505.001.0050-A | B189: 5.5 | C189: ='ORÇAMENTO ANALÍTICO'!C47 -> 05.001.0050-A | D189: =VLOOKUP(A189,'ORÇAMENTO ANALÍTICO'!A:I,4,FALSE()) -> REMOCAO DE COBERTURA EM TELHAS COLONIAIS,INCLUSIVE MADEIRAMENTO,MEDIDO O CONJUNTO PELA AREA REAL DE COBERTURA | J189: =VLOOKUP(A189,'ORÇAMENTO ANALÍTICO'!A:I,5,0) -> M2 | K189: =H191 -> 122.77
C190: Local | D190: Comprimento | E190: Largura | F190: Reaproveitamento (50%) | H190: Total
C191: Telhado | D191: 27.38 | E191: 12 | F191: 0.37369 | G191: = | H191: =TRUNC(D191*E191*F191,2) -> 122.77 | M191: =205.12+164.28 -> 369.4
A193: =B193&C193 -> 5.605.005.0005-B | B193: 5.6 | C193: ='ORÇAMENTO ANALÍTICO'!C48 -> 05.005.0005-B | D193: =VLOOKUP(A193,'ORÇAMENTO ANALÍTICO'!A:I,4,FALSE()) -> ANDAIME DE TABUADO SOBRE CAVALETES,INCLUSIVE ESTES,EM MADEIRA DE 1ª,COM APROVEITAMENTO DA MADEIRA 20 VEZES,INCLUSIVE MOVIMENTACAO | J193: =VLOOKUP(A193,'ORÇAMENTO ANALÍTICO'!A:I,5,0) -> M2 | K193: =SUM(H196:H223) -> 21.15
B194: Subsolo
C195: Local | D195: Área | H195: Total
C196: Deposito | D196: 6.18 | G196: = | H196: 0
C197: Camarim reversivel | D197: 3.09 | G197: = | H197: 0
C198: Camarim 1 | D198: 3.6 | G198: = | H198: 0
C199: Banheiro PNE | D199: 1.45 | G199: = | H199: 0
C200: Hall | D200: 20.99 | G200: = | H200: 0
C201: Camarim 2 | D201: 4.55 | G201: = | H201: 0
C202: Banheiro | D202: 0.57 | G202: = | H202: 0
C203: Copa | D203: 0.03 | G203: = | H203: 0
B204: Térreo
C205: WC Fem. | D205: 2.46 | G205: = | H205: 0
C206: WC Masc. | D206: 2.98 | G206: = | H206: 0
C207: Banh. PNE | D207: 1.3 | G207: = | H207: =D207 -> 1.3
C208: Bomboneire | D208: 0.25 | G208: = | H208: =D208 -> 0.25
C209: Circulação | D209: 0.45 | G209: = | H209: 0
C210: Foyer | D210: 29.37 | G210: = | H210: 0
B211: 1º Pavimento
C212: Mezanino | D212: 27.61 | G212: = | H212: 0
C213: Sala de apoio | D213: 1.16 | G213: = | H213: 0
C214: Sala projeção | D214: 1.7 | G214: = | H214: 0
C215: WC | D215: 0.23 | G215: = | H215: 0
C216: WC PNE | D216: 0.39 | G216: = | H216: 0
C217: Circulação | D217: 5.56 | G217: = | H217: =D217 -> 5.56
C218: Circulação em frente a ADM | D218: 1.06
C219: ADM | D219: 0.68 | G219: = | H219: =D219 -> 0.68
C220: Varanda | D220: 1.6 | G220: = | H220: =D220 -> 1.6
C221: Varanda | D221: 1.6 | G221: = | H221: =D221 -> 1.6
C222: Sacada | D222: 3.87 | G222: = | H222: =D222 -> 3.87
C223: Escada | D223: 6.29 | G223: = | H223: =D223 -> 6.29
B225: Obs: Foram consideradas as áreas dos ambientes internos, com desconto de 0,50 m para cada lado. Em ambientes de circulação, foi descontado apenas 0,50 m na menor dimensão e 1,0 m na maior dimensão, segundo critério EMOP.
A227: =B227&C227 -> 5.705.006.0001-B | B227: 5.7 | C227: ='ORÇAMENTO ANALÍTICO'!C49 -> 05.006.0001-B | D227: =VLOOKUP(A227,'ORÇAMENTO ANALÍTICO'!A:I,4,FALSE()) -> LOCACAO DE ANDAIME COM ELEMENTOS TUBULARES SOBRE SAPATAS FIXAS,CONSIDERANDO-SE A AREA DA PROJECAO VERTICAL DO ANDAIME EPAGO PELO TEMPO NECESSARIO A SUA UTILIZACAO,EXCLUSIVE TRANSPORTE DOS ELEMENTOS DO ANDAIME ATE A OBRA,PLATAFORMA OU PASSARELA DE PINHO,MONTAGEM E DESMONTAGEM DOS ANDAIMES | J227: =VLOOKUP(A227,'ORÇAMENTO ANALÍTICO'!A:I,5,0) -> M2XMES | K227: =H235 -> 745.2
C228: Local | D228: Extensão | E228: Altura | F228: Desconto | H228: Total
C229: Fachada Frontal | D229: 12.8 | E229: =9.6-1.8 -> 7.8 | F229: =((1.2*0.7)*3)+((1.6*2.5)*2) -> 10.52 | G229: =
C230: Fachada Lateral | D230: 27.6 | E230: =10.5-1.8 -> 8.7 | F230: =(1.5*0.7)*3 -> 3.15 | G230: =
C231: Fachada Lateral | D231: 27.6 | E231: =10.5-1.5 -> 9 | F231: 0 | G231: = | H231: =TRUNC((D231*E231)-F231,2) -> 248.4
C232: Fachada fundos | D232: 12.8 | E232: =12.5-1.8 -> 10.7 | F232: 0 | G232: =
E233: (10,5-1,5) | F233: Total | G233: = | H233: =SUM(H229:H232) -> 248.4
... 997 more rows

Sheet QCI (hidden)
J2: QCI - Quadro de Composição do Investimento - OBRA DE REFORMA
A4: =[3]CronogFF!B7 -> Nº do CT | G4: Proponente/Tomador | N4: Município/UF | T4: Empreendimento ( nome/apelido) | Y4: Aprovação (data)
A5: 1006253-79/2013 | G5: PREFEITURA MUNICIPAL DE ITABORAÍ | N5: ITABORAÍ / RJ | T5: REFORMA DO TEATRO JOÃO CAETANO
A7: Operação | N7: Programa/Modalidade/Ação
C8: Financiamento | I8: X | J8: Repassse | N8: MINISTÉRIO DA CULTURA
L10: Ocultar | M10: OCULTAR
L11: Limite
A12: Discriminação | N12: =IF(B8<>0,"Financiamento","Repasse") -> Repasse | R12: Contrapartida | X12: Total | Y12: Execução | Z12: Contrapartida
A13: Item | B13: Descição | K13: Quant./unid | L13: Superior | M13: Inferior | N13: R$ | O13: VERIFIC USO REP | P13: SOMENTE CP | Q13: % | R13: Próprios (R$) | S13: CONTA PREENCH | T13: (%) | U13: CP Adicional (R$) | V13: (%) | W13: Total % | X13: R$ | Y13: EF ou AD | Z13: OS ou FIN
A14: 1 | B14: ='ORÇAMENTO SINTÉTICO'!B15:D15 -> SERVIÇOS DE ESCRITÓRIO, LABORATÓRIO E CAMPO | N14: 25506.09 | Q14: =N14/X14 ->  | R14: =X14-N14 -> -25506.09 | T14: =R14/X14 ->  | W14: =Q14+T14 ->  | X14: ='ORÇAMENTO SINTÉTICO'!E15 -> 0
A15: 2 | B15: ='ORÇAMENTO SINTÉTICO'!B16:D16 -> CANTEIRO DE OBRAS | N15: 10139.48 | Q15: =N15/X15 ->  | R15: =X15-N15 -> -10139.48 | T15: =R15/X15 ->  | W15: =Q15+T15 ->  | X15: ='ORÇAMENTO SINTÉTICO'!E16 -> 0
A16: 3 | B16: ='ORÇAMENTO SINTÉTICO'!B17:D17 -> MOVIMENTO DE TERRA | N16: 12468.07 | Q16: =N16/X16 ->  | R16: =X16-N16 -> -12468.07 | T16: =R16/X16 ->  | W16: =Q16+T16 ->  | X16: ='ORÇAMENTO SINTÉTICO'!E17 -> 0
A17: 4 | B17: ='ORÇAMENTO SINTÉTICO'!B18:D18 -> TRANSPORTES | N17: 2040.45 | Q17: =N17/X17 ->  | R17: =X17-N17 -> -2040.45 | T17: =R17/X17 ->  | W17: =Q17+T17 ->  | X17: ='ORÇAMENTO SINTÉTICO'!E18 -> 0
A18: 5 | B18: ='ORÇAMENTO SINTÉTICO'!B19:D19 -> SERVIÇOS COMPLEMENTARES | N18: 22276.38 | Q18: =N18/X18 ->  | R18: =X18-N18 -> -22276.38 | T18: =R18/X18 ->  | W18: =Q18+T18 ->  | X18: ='ORÇAMENTO SINTÉTICO'!E19 -> 0
A19: 6 | B19: ='ORÇAMENTO SINTÉTICO'!B20:D20 -> FUNDAÇÕES E ESTRUTURAS | N19: 27649.64 | Q19: =N19/X19 ->  | R19: =X19-N19 -> -27649.64 | T19: =R19/X19 ->  | W19: =Q19+T19 ->  | X19: ='ORÇAMENTO SINTÉTICO'!E20 -> 0
A20: 7 | B20: ='ORÇAMENTO SINTÉTICO'!B21:D21 -> ALVENARIAS E DIVISÓRIAS | N20: 15063.86 | Q20: =N20/X20 ->  | R20: =X20-N20 -> -15063.86 | T20: =R20/X20 ->  | W20: =Q20+T20 ->  | X20: ='ORÇAMENTO SINTÉTICO'!E21 -> 0
A21: 8 | B21: ='ORÇAMENTO SINTÉTICO'!B22:D22 -> REVESTIMENTOS | N21: 112874.6 | Q21: =N21/X21 ->  | R21: =X21-N21 -> -112874.6 | T21: =R21/X21 ->  | W21: =Q21+T21 ->  | X21: ='ORÇAMENTO SINTÉTICO'!E22 -> 0
A22: 9 | B22: ='ORÇAMENTO SINTÉTICO'!B23:D23 -> ESQUADRIAS | N22: 68526.45 | Q22: =N22/X22 ->  | R22: =X22-N22 -> -68526.45 | T22: =R22/X22 ->  | W22: =Q22+T22 ->  | X22: ='ORÇAMENTO SINTÉTICO'!E23 -> 0
A23: 10 | B23: ='ORÇAMENTO SINTÉTICO'!B24:D24 -> INSTALAÇÕES | N23: 113436.46 | Q23: =N23/X23 ->  | R23: =X23-N23 -> -113436.46 | T23: =R23/X23 ->  | W23: =Q23+T23 ->  | X23: ='ORÇAMENTO SINTÉTICO'!E24 -> 0
A24: 11 | B24: ='ORÇAMENTO SINTÉTICO'!B25:D25 -> COBERTURAS | N24: 37334.34 | Q24: =N24/X24 ->  | R24: =X24-N24 -> -37334.34 | T24: =R24/X24 ->  | W24: =Q24+T24 ->  | X24: ='ORÇAMENTO SINTÉTICO'!E25 -> 0
A25: 12 | B25: ='ORÇAMENTO SINTÉTICO'!B26:D26 -> PINTURAS | N25: 77026.54 | Q25: =N25/X25 ->  | R25: =X25-N25 -> -77026.54 | T25: =R25/X25 ->  | W25: =Q25+T25 ->  | X25: ='ORÇAMENTO SINTÉTICO'!E26 -> 0
A26: 13 | B26: ='ORÇAMENTO SINTÉTICO'!B27:D27 -> APARELHOS | N26: 337889.85 | Q26: =N26/X26 ->  | R26: =X26-N26 -> -337889.85 | T26: =R26/X26 ->  | W26: =Q26+T26 ->  | X26: ='ORÇAMENTO SINTÉTICO'!E27 -> 0 | AA26: =N28+R28 -> 0
A27: 14 | B27: ='ORÇAMENTO SINTÉTICO'!B28:D28 -> ADMINISTRAÇÃO LOCAL DA OBRA | N27: 43111.4 | Q27: =N27/X27 ->  | R27: =X27-N27 -> -43111.4 | T27: =R27/X27 ->  | W27: =Q27+T27 ->  | X27: ='ORÇAMENTO SINTÉTICO'!E28 -> 0
N28: =SUM(N14:N27) -> 905343.61 | O28: =SUM(O14:O27) -> 0 | P28: =SUM(P14:P27) -> 0 | Q28: =N28/X28 ->  | R28: =SUM(R14:R27) -> -905343.61 | S28: =SUM(S14:S27) -> 0 | T28: =R28/X28 ->  | W28: =Q28+T28 ->  | X28: =SUM(X14:X27) -> 0
U30: Forma de execução: AD = Administração Direta pelo Tomador
X31: ou EF se execução e/ou fornecimento a contratar/contrado.
U32: Tipo de contrapartida: FIN = Financeira; OS = em Obras e Serviços.
A33: Local/Data
A38: Nome do Prefeito e da Cidade/UF

Sheet CRONOGRAMA
B3: ='ORÇAMENTO SINTÉTICO'!A3 -> PREFEITURA MUNICIPAL DE ITABORAÍ
B4: ='ORÇAMENTO SINTÉTICO'!A4 -> SECRETARIA MUNICIPAL DE OBRAS
B5: ='ORÇAMENTO SINTÉTICO'!A5 -> OBRA DE REFORMA DO TEATRO JOÃO CAETANO
B6: ='ORÇAMENTO SINTÉTICO'!A6 -> Local: Praça Marechal Floriano Peixoto, bairro Centro, Itaboraí, RJ
B8: ANEXO I C - CRONOGRAMA FÍSICO - FINANCEIRO
B10: Nº do CT | D10: =[3]QCI!H5 -> Proponente/Tomador
B11: 1006253-79/2013 | D11: PREFEITURA MUNICIPAL DE ITABORAÍ | I11: ITABORAÍ / RJ
B13: =[3]QCI!O8 -> Programa/Modalidade/Ação | I13: Aprovação (data) | K13: Parcela (n.º) | M13: Fim vigência (data) | O13: Mês Cronog
B14: Ministério da Cultura
F17: Valor | G17: Peso | H17: Parcela 1 | J17: Parcela 2 | L17: Parcela 3 | N17: Parcela 4 | P17: Parcela 5 | R17: Parcela 6
B18: Item | C18: Discriminação | F18: R$ | G18: % | H18: SIMPLES | I18: ACUM | J18: =H18 -> SIMPLES | K18: ACUM | L18: SIMPLES | M18: ACUM | N18: =L18 -> SIMPLES | O18: ACUM | P18: SIMPLES | Q18: ACUM | R18: =P18 -> SIMPLES | S18: ACUM
B19: 1 | C19: =QCI!B14 -> SERVIÇOS DE ESCRITÓRIO, LABORATÓRIO E CAMPO | F19: ='ORÇAMENTO SINTÉTICO'!E15 -> 0 | G19: =IF($F$34=0,0,F19/$F$34) -> 0 | H19: =F19 -> 0 | I19: =H19 -> 0 | K19: =I19+J19 -> 0 | M19: =K19+L19 -> 0 | O19: =M19+N19 -> 0 | Q19: =O19+P19 -> 0 | S19: =Q19+R19 -> 0 | T19: =F19-S19 -> 0 | X19: =I19 -> 0
B20: 2 | C20: =QCI!B15 -> CANTEIRO DE OBRAS | F20: ='ORÇAMENTO SINTÉTICO'!E16 -> 0 | G20: =IF($F$34=0,0,F20/$F$34) -> 0 | H20: =F20 -> 0 | I20: =H20 -> 0 | K20: =I20+J20 -> 0 | M20: =K20+L20 -> 0 | O20: =M20+N20 -> 0 | Q20: =O20+P20 -> 0 | S20: =Q20+R20 -> 0 | T20: =F20-S20 -> 0 | X20: =I20 -> 0 | Y20: =K20 -> 0 | Z20: =M20 -> 0
B21: 3 | C21: =QCI!B16 -> MOVIMENTO DE TERRA | F21: ='ORÇAMENTO SINTÉTICO'!E17 -> 0 | G21: =IF($F$34=0,0,F21/$F$34) -> 0 | H21: =F21*0.8 -> 0 | I21: =H21 -> 0 | J21: =F21*0.2 -> 0 | K21: =I21+J21 -> 0 | M21: =K21+L21 -> 0 | O21: =M21+N21 -> 0 | Q21: =O21+P21 -> 0 | S21: =Q21+R21 -> 0 | T21: =F21-S21 -> 0 | Y21: =K21 -> 0 | Z21: =M21 -> 0
B22: 4 | C22: =QCI!B17 -> TRANSPORTES | F22: ='ORÇAMENTO SINTÉTICO'!E18 -> 0 | G22: =IF($F$34=0,0,F22/$F$34) -> 0 | H22: =F22*0.8 -> 0 | I22: =H22 -> 0 | J22: =F22*0.2 -> 0 | K22: =I22+J22 -> 0 | M22: =K22+L22 -> 0 | O22: =M22+N22 -> 0 | Q22: =O22+P22 -> 0 | S22: =Q22+R22 -> 0 | T22: =F22-S22 -> 0 | Z22: =M22 -> 0 | AA22: =O22 -> 0
B23: 5 | C23: =QCI!B18 -> SERVIÇOS COMPLEMENTARES | F23: ='ORÇAMENTO SINTÉTICO'!E19 -> 0 | G23: =IF($F$34=0,0,F23/$F$34) -> 0 | H23: =F23*0.5 -> 0 | I23: =H23 -> 0 | K23: =I23+J23 -> 0 | M23: =K23+L23 -> 0 | O23: =M23+N23 -> 0 | P23: =F23*0.3 -> 0 | Q23: =O23+P23 -> 0 | R23: =F23*0.2 -> 0 | S23: =Q23+R23 -> 0 | T23: =F23-S23 -> 0 | Y23: =K23 -> 0 | Z23: =M23 -> 0 | AA23: =O23 -> 0
B24: 6 | C24: =QCI!B19 -> FUNDAÇÕES E ESTRUTURAS | F24: ='ORÇAMENTO SINTÉTICO'!E20 -> 0 | G24: =IF($F$34=0,0,F24/$F$34) -> 0 | I24: =H24 -> 0 | J24: =F24*0.7 -> 0 | K24: =I24+J24 -> 0 | L24: =F24*0.3 -> 0 | M24: =K24+L24 -> 0 | O24: =M24+N24 -> 0 | Q24: =O24+P24 -> 0 | S24: =Q24+R24 -> 0 | T24: =F24-S24 -> 0 | AA24: =O24 -> 0 | AB24: =Q24 -> 0 | AC24: =S24 -> 0 | AD24: =#REF! -> 
B25: 7 | C25: =QCI!B20 -> ALVENARIAS E DIVISÓRIAS | F25: ='ORÇAMENTO SINTÉTICO'!E21 -> 0 | G25: =IF($F$34=0,0,F25/$F$34) -> 0 | I25: =H25 -> 0 | K25: =I25+J25 -> 0 | L25: =F25 -> 0 | M25: =K25+L25 -> 0 | O25: =M25+N25 -> 0 | Q25: =O25+P25 -> 0 | S25: =Q25+R25 -> 0 | T25: =F25-S25 -> 0 | AD25: =#REF! -> 
B26: 8 | C26: =QCI!B21 -> REVESTIMENTOS | F26: ='ORÇAMENTO SINTÉTICO'!E22 -> 0 | G26: =IF($F$34=0,0,F26/$F$34) -> 0 | I26: =H26 -> 0 | K26: =I26+J26 -> 0 | L26: =F26*0.5 -> 0 | M26: =K26+L26 -> 0 | N26: =F26*0.5 -> 0 | O26: =M26+N26 -> 0 | Q26: =O26+P26 -> 0 | S26: =Q26+R26 -> 0 | T26: =F26-S26 -> 0 | X26: =I26 -> 0 | Y26: =K26 -> 0 | Z26: =M26 -> 0 | AA26: =O26 -> 0 | AB26: =Q26 -> 0 | AC26: =S26 -> 0 | AD26: =#REF! -> 
B27: 9 | C27: =QCI!B22 -> ESQUADRIAS | F27: ='ORÇAMENTO SINTÉTICO'!E23 -> 0 | G27: =IF($F$34=0,0,F27/$F$34) -> 0 | I27: =H27 -> 0 | K27: =I27+J27 -> 0 | L27: =F27*0.3 -> 0 | M27: =K27+L27 -> 0 | N27: =F27*0.4 -> 0 | O27: =M27+N27 -> 0 | P27: =F27*0.3 -> 0 | Q27: =O27+P27 -> 0 | S27: =Q27+R27 -> 0 | T27: =F27-S27 -> 0
B28: 10 | C28: =QCI!B23 -> INSTALAÇÕES | F28: ='ORÇAMENTO SINTÉTICO'!E24 -> 0 | G28: =IF($F$34=0,0,F28/$F$34) -> 0 | I28: =H28 -> 0 | J28: =F28*0.3 -> 0 | K28: =I28+J28 -> 0 | L28: =F28*0.2 -> 0 | M28: =K28+L28 -> 0 | O28: =M28+N28 -> 0 | Q28: =O28+P28 -> 0 | R28: =F28*0.5 -> 0 | S28: =Q28+R28 -> 0 | T28: =F28-S28 -> 0
B29: 11 | C29: =QCI!B24 -> COBERTURAS | F29: ='ORÇAMENTO SINTÉTICO'!E25 -> 0 | G29: =IF($F$34=0,0,F29/$F$34) -> 0 | I29: =H29 -> 0 | K29: =I29+J29 -> 0 | M29: =K29+L29 -> 0 | N29: =F29*0.6 -> 0 | O29: =M29+N29 -> 0 | P29: =F29*0.4 -> 0 | Q29: =O29+P29 -> 0 | S29: =Q29+R29 -> 0 | T29: =F29-S29 -> 0
B30: 12 | C30: =QCI!B25 -> PINTURAS | F30: ='ORÇAMENTO SINTÉTICO'!E26 -> 0 | G30: =IF($F$34=0,0,F30/$F$34) -> 0 | I30: =H30 -> 0 | K30: =I30+J30 -> 0 | M30: =K30+L30 -> 0 | N30: =F30*0.5 -> 0 | O30: =M30+N30 -> 0 | P30: =F30*0.4 -> 0 | Q30: =O30+P30 -> 0 | R30: =F30*0.1 -> 0 | S30: =Q30+R30 -> 0 | T30: =F30-S30 -> 0
B31: 13 | C31: =QCI!B26 -> APARELHOS | F31: ='ORÇAMENTO SINTÉTICO'!E27 -> 0 | G31: =IF($F$34=0,0,F31/$F$34) -> 0 | I31: =H31 -> 0 | K31: =I31+J31 -> 0 | M31: =K31+L31 -> 0 | O31: =M31+N31 -> 0 | P31: =F31*0.3 -> 0 | Q31: =O31+P31 -> 0 | R31: =F31*0.7 -> 0 | S31: =Q31+R31 -> 0 | T31: =F31-S31 -> 0
B32: 14 | C32: =QCI!B27 -> ADMINISTRAÇÃO LOCAL DA OBRA | F32: ='ORÇAMENTO SINTÉTICO'!E28 -> 0 | G32: =IF($F$34=0,0,F32/$F$34) -> 0 | H32: =H48 ->  | I32: =H32 ->  | J32: =J48 ->  | K32: =I32+J32 ->  | L32: =L48 ->  | M32: =K32+L32 ->  | N32: =N48 ->  | O32: =M32+N32 ->  | P32: =P48 ->  | Q32: =O32+P32 ->  | R32: =R48 ->  | S32: =Q32+R32 ->  | T32: =F32-S32 -> 
C33: Total (%): | H33: =H34/$F$34 ->  | I33: =H33 ->  | J33: =J34/$F$34 ->  | K33: =I33+J33 ->  | L33: =L34/$F$34 ->  | M33: =K33+L33 ->  | N33: =N34/$F$34 ->  | O33: =M33+N33 ->  | P33: =P34/$F$34 ->  | Q33: =O33+P33 ->  | R33: =R34/$F$34 ->  | S33: =Q33+R33 -> 
C34: Total (R$): | F34: =SUM(F19:F32) -> 0 | G34: =IF(F34=0,0,F34/F34) -> 0 | H34: =SUM(H19:H32) ->  | I34: =H34 ->  | J34: =SUM(J19:J32) ->  | K34: =I34+J34 ->  | L34: =SUM(L19:L32) ->  | M34: =K34+L34 ->  | N34: =SUM(N19:N32) ->  | O34: =M34+N34 ->  | P34: =SUM(P19:P32) ->  | Q34: =O34+P34 ->  | R34: =SUM(R19:R32) ->  | S34: =Q34+R34 -> 
B39: =[3]QCI!B45 -> Local/Data | L39: Representante Tomador / Agente Promotor
H46: =SUM(H19:H31) -> 0 | J46: =SUM(J19:J31) -> 0 | L46: =SUM(L19:L31) -> 0 | N46: =SUM(N19:N31) -> 0 | P46: =SUM(P19:P31) -> 0 | R46: =SUM(R19:R31) -> 0
F47: =SUM(F19:F31) -> 0 | H47: =H46/$F$47 ->  | J47: =J46/$F$47 ->  | L47: =L46/$F$47 ->  | N47: =N46/$F$47 ->  | P47: =P46/$F$47 ->  | R47: =R46/$F$47 -> 
H48: =H47*$F$32 ->  | J48: =J47*$F$32 ->  | L48: =L47*$F$32 ->  | N48: =N47*$F$32 ->  | P48: =P47*$F$32 ->  | R48: =R47*$F$32 -> 

Sheet % B.D.I Serviços
A2: ='ORÇAMENTO SINTÉTICO'!A3:E3 -> PREFEITURA MUNICIPAL DE ITABORAÍ
A3: ='ORÇAMENTO SINTÉTICO'!A4:E4 -> SECRETARIA MUNICIPAL DE OBRAS
A4: ='ORÇAMENTO SINTÉTICO'!A5:E5 -> OBRA DE REFORMA DO TEATRO JOÃO CAETANO
A5: ='ORÇAMENTO SINTÉTICO'!A6:E6 -> Local: Praça Marechal Floriano Peixoto, bairro Centro, Itaboraí, RJ
A8: ANEXO I D - COMPOSIÇÃO DO B.D.I PARA SERVIÇOS (COM DESONERAÇÃO)
A10: X . Taxa representativa das DESPESAS INDIRETAS, exceto tributos e despesas financeiras
A11: TIPO | H11: ALÍQUOTA (%)
A12: X.1 - Administração Central
A13: X.2 - Garantia
A14: X.3 - Seguro contra Riscos
A15: X =
A16: Y . Taxa representativa das DESPESAS FINANCEIRAS
A17: TIPO | H17: ALÍQUOTA (%)
A18: Y.1 - Despesas Financeiras
A19: Y =
A20: Z . Taxa representativa do LUCRO
A21: TIPO | H21: ALÍQUOTA (%)
A22: Z.1 - Lucro Presumido
A23: Z =
A24: I . Taxa representativa da incidência dos TRIBUTOS ( sobre o FATURAMENTO da empresa )
A25: TIPO | H25: ALÍQUOTA (%)
A26: I.1 - I S S ( Imposto sobre Serviços ) - Municipal
A27: I.2 - COFINS ( Contribuição para o Financiamento da Seguridade Social) - Federal
A28: I.3 - P I S ( Programa de Integração Social ) - Federal
A29: I.4 - Contribuição Previdenciária p/ INSS - Federal - Lei 12.844/2013
A30: I =
A32: B D I - Benefício e Despesas Indiretas
A35: B D I = | B35: ( 1 + X ) ( 1 + Y ) ( 1 + Z ) | G35: - 1 | H35: ç Fórmula do BDI
C36: ( 1 - I )
A39: X é a Taxa somatória das DESPESAS INDIRETAS, exceto tributos e despesas financeiras;
A40: Y é a Taxa representativa das DESPESAS FINANCEIRAS;
A41: Z é a Taxa representativa do LUCRO;
A42: I é a Taxa representativa dos IMPOSTOS.
F44: B.D.I è | H44: =(ROUND((1+H15/100)*(1+H19/100)*(1+H23/100)/(1-H30/100),4))-1 -> 0

Sheet % B.D.I Equipamentos
A2: ='% B.D.I Serviços'!A2:H2 -> PREFEITURA MUNICIPAL DE ITABORAÍ
A3: ='% B.D.I Serviços'!A3:H3 -> SECRETARIA MUNICIPAL DE OBRAS
A4: ='% B.D.I Serviços'!A4:H4 -> OBRA DE REFORMA DO TEATRO JOÃO CAETANO
A5: ='% B.D.I Serviços'!A5:H5 -> Local: Praça Marechal Floriano Peixoto, bairro Centro, Itaboraí, RJ
A7: ANEXO I E - COMPOSIÇÃO DO B.D.I PARA EQUIPAMENTO (COM DESONERAÇÃO)
A9: X . Taxa representativa das DESPESAS INDIRETAS, exceto tributos e despesas financeiras
A10: TIPO | H10: ALÍQUOTA (%)
A11: X.1 - Administração Central
A12: X.2 - Garantia
A13: X.3 - Seguro contra Riscos
A14: X =
A15: Y . Taxa representativa das DESPESAS FINANCEIRAS
A16: TIPO | H16: ALÍQUOTA (%)
A17: Y.1 - Despesas Financeiras
A18: Y =
A19: Z . Taxa representativa do LUCRO
A20: TIPO | H20: ALÍQUOTA (%)
A21: Z.1 - Lucro Presumido
A22: Z =
A23: I . Taxa representativa da incidência dos TRIBUTOS ( sobre o FATURAMENTO da empresa )
A24: TIPO | H24: ALÍQUOTA (%)
A25: I.1 - I S S ( Imposto sobre Serviços ) - Municipal
A26: I.2 - COFINS ( Contribuição para o Financiamento da Seguridade Social) - Federal
A27: I.3 - P I S ( Programa de Integração Social ) - Federal
A28: I.4 - Contribuição Previdenciária p/ INSS - Federal - Lei 12.844/2013
A29: I =
A31: B D I - Benefício e Despesas Indiretas
A34: B D I = | B34: ( 1 + X ) ( 1 + Y ) ( 1 + Z ) | G34: - 1 | H34: ç Fórmula do BDI
C35: ( 1 - I )
A38: X é a Taxa somatória das DESPESAS INDIRETAS, exceto tributos e despesas financeiras;
A39: Y é a Taxa representativa das DESPESAS FINANCEIRAS;
A40: Z é a Taxa representativa do LUCRO;
A41: I é a Taxa representativa dos IMPOSTOS.
F43: B.D.I è | H43: =(ROUND((1+H14/100)*(1+H18/100)*(1+H22/100)/(1-H29/100),4))-1 -> 0

Sheet COTAÇÕES (hidden)
A4: SECRETARIA DE OBRAS
A5: REFORMA DO TEATRO JOÃO CAETANO
A6: Local: Praça Marechal Floriano Peixoto, bairro Centro, Itaboraí, RJ
A11: COTAÇÕES
A12: ='ORÇAMENTO ANALÍTICO'!D137 -> FITA LED BRANCO QUENTE 5 METROS + FONTE
A13: ITEM | B13: CÓDIGO | C13: SUSTENTA LED | D13: ACW ELETRICA | E13: AMAZON
A15: ='ORÇAMENTO ANALÍTICO'!B137 -> 10.32 | B15: ='ORÇAMENTO ANALÍTICO'!C137 -> COTAÇÃO 01 | C15: 46.26 | D15: 42 | E15: 47.9
B16: MEDIANA | C16: =MEDIAN(C15:E15) -> 46.26
A17: LUSTRE DE CRISTAL TRANSPARENTE 28 BRAÇOS.
A18: ITEM | B18: CÓDIGO | C18: LEDTUBE ILUMINAÇÃO | D18: LEROY MERLIN | E18: A LUMINOSA
A20: ='ORÇAMENTO ANALÍTICO'!B138 -> 10.33 | B20: ='ORÇAMENTO ANALÍTICO'!C138 -> COTAÇÃO 02 | C20: 3989.05 | D20: 4733.32 | E20: 3599.91
B21: MEDIANA | C21: =MEDIAN(C20:E20) -> 3989.05
A22: ELETRODUTO PEAD CORRUGADO 150 MM
A23: ITEM | B23: CÓDIGO | C23: TECHDUTO | D23: ELECON | E23: SP TUBOS
A25: ='ORÇAMENTO ANALÍTICO'!B151 -> 10.46 | B25: ='ORÇAMENTO ANALÍTICO'!C151 -> COTAÇÃO 03 | C25: 46 | D25: =TRUNC(775/50,2) -> 15.5 | E25: 17.69
B26: MEDIANA | C26: =MEDIAN(C25:E25) -> 17.69
A27: POLTRONAS
A28: ITEM | B28: CÓDIGO | C28: SANTA CLARA | D28: TRINITY | E28: KASTRUP
A30: ='ORÇAMENTO ANALÍTICO'!B203 -> 13.29 | B30: ='ORÇAMENTO ANALÍTICO'!C203 -> COTAÇÃO 04 | C30: 946.8 | D30: 1108.33 | E30: 1573
B31: MEDIANA | C31: =MEDIAN(C30:E30) -> 1108.33
A32: NOTA: COTAÇÕES EM ANEXO

Sheet SINAPI 01-2023
A1: PCI.817.01 - CUSTO DE COMPOSIÇÕES - SINTÉTICO DATA DE EMISSÃO: 15/02/2023 23:54:09 DATA DE RT: 15/02/2023
A2: ENCARGOS SOCIAIS DESONERADOS: 84,43%(HORA) 47,12%(MÊS)
A3: ABRANGÊNCIA : NACIONAL LOCALIDADE : RIO DE JANEIRO DATA DE PREÇO : 01/2023 REFERÊNCIA COLETA : MEDIANO
A5: CODIGO DA COMPOSICAO | B5: DESCRICAO DA COMPOSICAO | C5: UNIDADE | D5: CUSTO TOTAL
A7: 97141 | B7: ASSENTAMENTO DE TUBO DE FERRO FUNDIDO PARA REDE DE ÁGUA, DN 80 MM, JUNTA ELÁSTICA, INSTALADO EM LOCAL COM NÍVEL ALTO DE INTERFERÊNCIAS (NÃO INCLUI FORNECIMENTO). AF_11/2017 | C7: M | D7: 9,59
A8: 97142 | B8: ASSENTAMENTO DE TUBO DE FERRO FUNDIDO PARA REDE DE ÁGUA, DN 100 MM, JUNTA ELÁSTICA, INSTALADO EM LOCAL COM NÍVEL ALTO DE INTERFERÊNCIAS (NÃO INCLUI FORNECIMENTO). AF_11/2017 | C8: M | D8: 10,70
A9: 97143 | B9: ASSENTAMENTO DE TUBO DE FERRO FUNDIDO PARA REDE DE ÁGUA, DN 150 MM, JUNTA ELÁSTICA, INSTALADO EM LOCAL COM NÍVEL ALTO DE INTERFERÊNCIAS (NÃO INCLUI FORNECIMENTO). AF_11/2017 | C9: M | D9: 13,46
A10: 97144 | B10: ASSENTAMENTO DE TUBO DE FERRO FUNDIDO PARA REDE DE ÁGUA, DN 200 MM, JUNTA ELÁSTICA, INSTALADO EM LOCAL COM NÍVEL ALTO DE INTERFERÊNCIAS (NÃO INCLUI FORNECIMENTO). AF_11/2017 | C10: M | D10: 16,20
A11: 97145 | B11: ASSENTAMENTO DE TUBO DE FERRO FUNDIDO PARA REDE DE ÁGUA, DN 250 MM, JUNTA ELÁSTICA, INSTALADO EM LOCAL COM NÍVEL ALTO DE INTERFERÊNCIAS (NÃO INCLUI FORNECIMENTO). AF_11/2017 | C11: M | D11: 19,00
A12: 97146 | B12: ASSENTAMENTO DE TUBO DE FERRO FUNDIDO PARA REDE DE ÁGUA, DN 300 MM, JUNTA ELÁSTICA, INSTALADO EM LOCAL COM NÍVEL ALTO DE INTERFERÊNCIAS (NÃO INCLUI FORNECIMENTO). AF_11/2017 | C12: M | D12: 21,77
A13: 97147 | B13: ASSENTAMENTO DE TUBO DE FERRO FUNDIDO PARA REDE DE ÁGUA, DN 350 MM, JUNTA ELÁSTICA, INSTALADO EM LOCAL COM NÍVEL ALTO DE INTERFERÊNCIAS (NÃO INCLUI FORNECIMENTO). AF_11/2017 | C13: M | D13: 24,56
A14: 97148 | B14: ASSENTAMENTO DE TUBO DE FERRO FUNDIDO PARA REDE DE ÁGUA, DN 400 MM, JUNTA ELÁSTICA, INSTALADO EM LOCAL COM NÍVEL ALTO DE INTERFERÊNCIAS (NÃO INCLUI FORNECIMENTO). AF_11/2017 | C14: M | D14: 27,32
A15: 97149 | B15: ASSENTAMENTO DE TUBO DE FERRO FUNDIDO PARA REDE DE ÁGUA, DN 450 MM, JUNTA ELÁSTICA, INSTALADO EM LOCAL COM NÍVEL ALTO DE INTERFERÊNCIAS (NÃO INCLUI FORNECIMENTO). AF_11/2017 | C15: M | D15: 30,14
A16: 97150 | B16: ASSENTAMENTO DE TUBO DE FERRO FUNDIDO PARA REDE DE ÁGUA, DN 500 MM, JUNTA ELÁSTICA, INSTALADO EM LOCAL COM NÍVEL ALTO DE INTERFERÊNCIAS (NÃO INCLUI FORNECIMENTO). AF_11/2017 | C16: M | D16: 37,08
A17: 97151 | B17: ASSENTAMENTO DE TUBO DE FERRO FUNDIDO PARA REDE DE ÁGUA, DN 600 MM, JUNTA ELÁSTICA, INSTALADO EM LOCAL COM NÍVEL ALTO DE INTERFERÊNCIAS (NÃO INCLUI FORNECIMENTO). AF_11/2017 | C17: M | D17: 43,28
A18: 97152 | B18: ASSENTAMENTO DE TUBO DE FERRO FUNDIDO PARA REDE DE ÁGUA, DN 700 MM, JUNTA ELÁSTICA, INSTALADO EM LOCAL COM NÍVEL ALTO DE INTERFERÊNCIAS (NÃO INCLUI FORNECIMENTO). AF_11/2017 | C18: M | D18: 49,22
A19: 97153 | B19: ASSENTAMENTO DE TUBO DE FERRO FUNDIDO PARA REDE DE ÁGUA, DN 800 MM, JUNTA ELÁSTICA, INSTALADO EM LOCAL COM NÍVEL ALTO DE INTERFERÊNCIAS (NÃO INCLUI FORNECIMENTO). AF_11/2017 | C19: M | D19: 55,29
A20: 97154 | B20: ASSENTAMENTO DE TUBO DE FERRO FUNDIDO PARA REDE DE ÁGUA, DN 900 MM, JUNTA ELÁSTICA, INSTALADO EM LOCAL COM NÍVEL ALTO DE INTERFERÊNCIAS (NÃO INCLUI FORNECIMENTO). AF_11/2017 | C20: M | D20: 61,44
A21: 97155 | B21: ASSENTAMENTO DE TUBO DE FERRO FUNDIDO PARA REDE DE ÁGUA, DN 1000 MM, JUNTA ELÁSTICA, INSTALADO EM LOCAL COM NÍVEL ALTO DE INTERFERÊNCIAS (NÃO INCLUI FORNECIMENTO). AF_11/2017 | C21: M | D21: 67,58
A22: 97156 | B22: ASSENTAMENTO DE TUBO DE FERRO FUNDIDO PARA REDE DE ÁGUA, DN 1200 MM, JUNTA ELÁSTICA, INSTALADO EM LOCAL COM NÍVEL ALTO DE INTERFERÊNCIAS (NÃO INCLUI FORNECIMENTO). AF_11/2017 | C22: M | D22: 80,29
A23: 97157 | B23: ASSENTAMENTO DE TUBO DE FERRO FUNDIDO PARA REDE DE ÁGUA, DN 80 MM, JUNTA ELÁSTICA, INSTALADO EM LOCAL COM NÍVEL BAIXO DE INTERFERÊNCIAS (NÃO INCLUI FORNECIMENTO). AF_11/2017 | C23: M | D23: 5,80
A24: 97158 | B24: ASSENTAMENTO DE TUBO DE FERRO FUNDIDO PARA REDE DE ÁGUA, DN 100 MM, JUNTA ELÁSTICA, INSTALADO EM LOCAL COM NÍVEL BAIXO DE INTERFERÊNCIAS (NÃO INCLUI FORNECIMENTO). AF_11/2017 | C24: M | D24: 6,48
A25: 97159 | B25: ASSENTAMENTO DE TUBO DE FERRO FUNDIDO PARA REDE DE ÁGUA, DN 150 MM, JUNTA ELÁSTICA, INSTALADO EM LOCAL COM NÍVEL BAIXO DE INTERFERÊNCIAS (NÃO INCLUI FORNECIMENTO). AF_11/2017 | C25: M | D25: 8,17
A26: 97160 | B26: ASSENTAMENTO DE TUBO DE FERRO FUNDIDO PARA REDE DE ÁGUA, DN 200 MM, JUNTA ELÁSTICA, INSTALADO EM LOCAL COM NÍVEL BAIXO DE INTERFERÊNCIAS (NÃO INCLUI FORNECIMENTO). AF_11/2017 | C26: M | D26: 9,83
A27: 97161 | B27: ASSENTAMENTO DE TUBO DE FERRO FUNDIDO PARA REDE DE ÁGUA, DN 250 MM, JUNTA ELÁSTICA, INSTALADO EM LOCAL COM NÍVEL BAIXO DE INTERFERÊNCIAS (NÃO INCLUI FORNECIMENTO). AF_11/2017 | C27: M | D27: 11,57
A28: 97162 | B28: ASSENTAMENTO DE TUBO DE FERRO FUNDIDO PARA REDE DE ÁGUA, DN 300 MM, JUNTA ELÁSTICA, INSTALADO EM LOCAL COM NÍVEL BAIXO DE INTERFERÊNCIAS (NÃO INCLUI FORNECIMENTO). AF_11/2017 | C28: M | D28: 13,25
A29: 97163 | B29: ASSENTAMENTO DE TUBO DE FERRO FUNDIDO PARA REDE DE ÁGUA, DN 350 MM, JUNTA ELÁSTICA, INSTALADO EM LOCAL COM NÍVEL BAIXO DE INTERFERÊNCIAS (NÃO INCLUI FORNECIMENTO). AF_11/2017 | C29: M | D29: 14,97
A30: 97164 | B30: ASSENTAMENTO DE TUBO DE FERRO FUNDIDO PARA REDE DE ÁGUA, DN 400 MM, JUNTA ELÁSTICA, INSTALADO EM LOCAL COM NÍVEL BAIXO DE INTERFERÊNCIAS (NÃO INCLUI FORNECIMENTO). AF_11/2017 | C30: M | D30: 16,65
A31: 97165 | B31: ASSENTAMENTO DE TUBO DE FERRO FUNDIDO PARA REDE DE ÁGUA, DN 450 MM, JUNTA ELÁSTICA, INSTALADO EM LOCAL COM NÍVEL BAIXO DE INTERFERÊNCIAS (NÃO INCLUI FORNECIMENTO). AF_11/2017 | C31: M | D31: 18,39
A32: 97166 | B32: ASSENTAMENTO DE TUBO DE FERRO FUNDIDO PARA REDE DE ÁGUA, DN 500 MM, JUNTA ELÁSTICA, INSTALADO EM LOCAL COM NÍVEL BAIXO DE INTERFERÊNCIAS (NÃO INCLUI FORNECIMENTO). AF_11/2017 | C32: M | D32: 22,66
A33: 97167 | B33: ASSENTAMENTO DE TUBO DE FERRO FUNDIDO PARA REDE DE ÁGUA, DN 600 MM, JUNTA ELÁSTICA, INSTALADO EM LOCAL COM NÍVEL BAIXO DE INTERFERÊNCIAS (NÃO INCLUI FORNECIMENTO). AF_11/2017 | C33: M | D33: 26,48
A34: 97168 | B34: ASSENTAMENTO DE TUBO DE FERRO FUNDIDO PARA REDE DE ÁGUA, DN 700 MM, JUNTA ELÁSTICA, INSTALADO EM LOCAL COM NÍVEL BAIXO DE INTERFERÊNCIAS (NÃO INCLUI FORNECIMENTO). AF_11/2017 | C34: M | D34: 30,03
A35: 97169 | B35: ASSENTAMENTO DE TUBO DE FERRO FUNDIDO PARA REDE DE ÁGUA, DN 800 MM, JUNTA ELÁSTICA, INSTALADO EM LOCAL COM NÍVEL BAIXO DE INTERFERÊNCIAS (NÃO INCLUI FORNECIMENTO). AF_11/2017 | C35: M | D35: 33,74
A36: 97170 | B36: ASSENTAMENTO DE TUBO DE FERRO FUNDIDO PARA REDE DE ÁGUA, DN 900 MM, JUNTA ELÁSTICA, INSTALADO EM LOCAL COM NÍVEL BAIXO DE INTERFERÊNCIAS (NÃO INCLUI FORNECIMENTO). AF_11/2017 | C36: M | D36: 37,50
A37: 97171 | B37: ASSENTAMENTO DE TUBO DE FERRO FUNDIDO PARA REDE DE ÁGUA, DN 1000 MM, JUNTA ELÁSTICA, INSTALADO EM LOCAL COM NÍVEL BAIXO DE INTERFERÊNCIAS (NÃO INCLUI FORNECIMENTO). AF_11/2017 | C37: M | D37: 41,27
A38: 97172 | B38: ASSENTAMENTO DE TUBO DE FERRO FUNDIDO PARA REDE DE ÁGUA, DN 1200 MM, JUNTA ELÁSTICA, INSTALADO EM LOCAL COM NÍVEL BAIXO DE INTERFERÊNCIAS (NÃO INCLUI FORNECIMENTO). AF_11/2017 | C38: M | D38: 49,21
A39: 97173 | B39: ASSENTAMENTO DE TUBO DE AÇO CARBONO PARA REDE DE ÁGUA, DN 600 MM (24), JUNTA SOLDADA, INSTALADO EM LOCAL COM NÍVEL ALTO DE INTERFERÊNCIAS (NÃO INCLUI FORNECIMENTO). AF_11/2017 | C39: M | D39: 43,60
A40: 97174 | B40: ASSENTAMENTO DE TUBO DE AÇO CARBONO PARA REDE DE ÁGUA, DN 700 MM (28), JUNTA SOLDADA, INSTALADO EM LOCAL COM NÍVEL ALTO DE INTERFERÊNCIAS (NÃO INCLUI FORNECIMENTO). AF_11/2017 | C40: M | D40: 50,44
A41: 97175 | B41: ASSENTAMENTO DE TUBO DE AÇO CARBONO PARA REDE DE ÁGUA, DN 800 MM (32), JUNTA SOLDADA, INSTALADO EM LOCAL COM NÍVEL ALTO DE INTERFERÊNCIAS (NÃO INCLUI FORNECIMENTO). AF_11/2017 | C41: M | D41: 57,31
A42: 97176 | B42: ASSENTAMENTO DE TUBO DE AÇO CARBONO PARA REDE DE ÁGUA, DN 900 MM (36), JUNTA SOLDADA, INSTALADO EM LOCAL COM NÍVEL ALTO DE INTERFERÊNCIAS (NÃO INCLUI FORNECIMENTO). AF_11/2017 | C42: M | D42: 64,16
A43: 97177 | B43: ASSENTAMENTO DE TUBO DE AÇO CARBONO PARA REDE DE ÁGUA, DN 1000 MM (40) OU DN 1100 MM (44), JUNTA SOLDADA, INSTALADO EM LOCAL COM NÍVEL ALTO DE INTERFERÊNCIAS (NÃO INCLUI FORNECIMENTO). AF_11/2017 | C43: M | D43: 77,88
A44: 97178 | B44: ASSENTAMENTO DE TUBO DE AÇO CARBONO PARA REDE DE ÁGUA, DN 1200 MM (48) OU DN 1300 MM (52), JUNTA SOLDADA, INSTALADO EM LOCAL COM NÍVEL ALTO DE INTERFERÊNCIAS (NÃO INCLUI FORNECIMENTO). AF_11/2017 | C44: M | D44: 91,58
A45: 97179 | B45: ASSENTAMENTO DE TUBO DE AÇO CARBONO PARA REDE DE ÁGUA, DN 1400 MM (56'') OU DN 1500 MM (60), JUNTA SOLDADA, INSTALADO EM LOCAL COM NÍVEL ALTO DE INTERFERÊNCIAS (NÃO INCLUI FORNECIMENTO). AF_11/2017 | C45: M | D45: 105,30
A46: 97180 | B46: ASSENTAMENTO DE TUBO DE AÇO CARBONO PARA REDE DE ÁGUA, DN 1600 MM (64) OU DN 1700 MM (68), JUNTA SOLDADA, INSTALADO EM LOCAL COM NÍVEL ALTO DE INTERFERÊNCIAS (NÃO INCLUI FORNECIMENTO). AF_11/2017 | C46: M | D46: 119,00
A47: 97181 | B47: ASSENTAMENTO DE TUBO DE AÇO CARBONO PARA REDE DE ÁGUA, DN 1800 MM (72) OU DN 1900 MM (76), JUNTA SOLDADA, INSTALADO EM LOCAL COM NÍVEL ALTO DE INTERFERÊNCIAS (NÃO INCLUI FORNECIMENTO). AF_11/2017 | C47: M | D47: 137,21
A48: 97182 | B48: ASSENTAMENTO DE TUBO DE AÇO CARBONO PARA REDE DE ÁGUA, DN 2000 MM (80) OU DN 2100 MM (84), JUNTA SOLDADA, INSTALADO EM LOCAL COM NÍVEL ALTO DE INTERFERÊNCIAS (NÃO INCLUI FORNECIMENTO). AF_11/2017 | C48: M | D48: 151,39
A49: 97183 | B49: ASSENTAMENTO DE TUBO DE AÇO CARBONO PARA REDE DE ÁGUA, DN 600 MM (24), JUNTA SOLDADA, INSTALADO EM LOCAL COM NÍVEL BAIXO DE INTERFERÊNCIAS (NÃO INCLUI FORNECIMENTO). AF_11/2017 | C49: M | D49: 36,01
A50: 97184 | B50: ASSENTAMENTO DE TUBO DE AÇO CARBONO PARA REDE DE ÁGUA, DN 700 MM (28), JUNTA SOLDADA, INSTALADO EM LOCAL COM NÍVEL BAIXO DE INTERFERÊNCIAS (NÃO INCLUI FORNECIMENTO). AF_11/2017 | C50: M | D50: 41,75
A51: 97185 | B51: ASSENTAMENTO DE TUBO DE AÇO CARBONO PARA REDE DE ÁGUA, DN 800 MM (32), JUNTA SOLDADA, INSTALADO EM LOCAL COM NÍVEL BAIXO DE INTERFERÊNCIAS (NÃO INCLUI FORNECIMENTO). AF_11/2017 | C51: M | D51: 47,51
A52: 97186 | B52: ASSENTAMENTO DE TUBO DE AÇO CARBONO PARA REDE DE ÁGUA, DN 900 MM (36), JUNTA SOLDADA, INSTALADO EM LOCAL COM NÍVEL BAIXO DE INTERFERÊNCIAS (NÃO INCLUI FORNECIMENTO). AF_11/2017 | C52: M | D52: 53,27
A53: 97187 | B53: ASSENTAMENTO DE TUBO DE AÇO CARBONO PARA REDE DE ÁGUA, DN 1000 MM (40 ) OU DN 1100 MM (44 ), JUNTA SOLDADA, INSTALADO EM LOCAL COM NÍVEL BAIXO DE INTERFERÊNCIAS (NÃO INCLUI FORNECIMENTO). AF_11/2017 | C53: M | D53: 64,77
A54: 97188 | B54: ASSENTAMENTO DE TUBO DE AÇO CARBONO PARA REDE DE ÁGUA, DN 1200 MM (48) OU DN 1300 MM (52), JUNTA SOLDADA, INSTALADO EM LOCAL COM NÍVEL BAIXO DE INTERFERÊNCIAS (NÃO INCLUI FORNECIMENTO). AF_11/2017 | C54: M | D54: 76,27
A55: 97189 | B55: ASSENTAMENTO DE TUBO DE AÇO CARBONO PARA REDE DE ÁGUA, DN 1400 MM (56'') OU DN 1500 MM (60), JUNTA SOLDADA, INSTALADO EM LOCAL COM NÍVEL BAIXO DE INTERFERÊNCIAS (NÃO INCLUI FORNECIMENTO). AF_11/2017 | C55: M | D55: 87,78
A56: 97190 | B56: ASSENTAMENTO DE TUBO DE AÇO CARBONO PARA REDE DE ÁGUA, DN 1600 MM (64) OU DN 1700 MM (68), JUNTA SOLDADA, INSTALADO EM LOCAL COM NÍVEL BAIXO DE INTERFERÊNCIAS (NÃO INCLUI FORNECIMENTO). AF_11/2017 | C56: M | D56: 99,28
A57: 97191 | B57: ASSENTAMENTO DE TUBO DE AÇO CARBONO PARA REDE DE ÁGUA, DN 1800 MM (72) OU DN 1900 MM (76), JUNTA SOLDADA, INSTALADO EM LOCAL COM NÍVEL BAIXO DE INTERFERÊNCIAS (NÃO INCLUI FORNECIMENTO). AF_11/2017 | C57: M | D57: 114,15
A58: 97192 | B58: ASSENTAMENTO DE TUBO DE AÇO CARBONO PARA REDE DE ÁGUA, DN 2000 MM (80) OU DN 2100 MM (84), JUNTA SOLDADA, INSTALADO EM LOCAL COM NÍVEL BAIXO DE INTERFERÊNCIAS (NÃO INCLUI FORNECIMENTO). AF_11/2017 | C58: M | D58: 126,01
A59: 90694 | B59: TUBO DE PVC PARA REDE COLETORA DE ESGOTO DE PAREDE MACIÇA, DN 100 MM, JUNTA ELÁSTICA - FORNECIMENTO E ASSENTAMENTO. AF_01/2021 | C59: M | D59: 46,33
A60: 90695 | B60: TUBO DE PVC PARA REDE COLETORA DE ESGOTO DE PAREDE MACIÇA, DN 150 MM, JUNTA ELÁSTICA - FORNECIMENTO E ASSENTAMENTO. AF_01/2021 | C60: M | D60: 87,54
A61: 90696 | B61: TUBO DE PVC PARA REDE COLETORA DE ESGOTO DE PAREDE MACIÇA, DN 200 MM, JUNTA ELÁSTICA - FORNECIMENTO E ASSENTAMENTO. AF_01/2021 | C61: M | D61: 145,83
A62: 90697 | B62: TUBO DE PVC PARA REDE COLETORA DE ESGOTO DE PAREDE MACIÇA, DN 250 MM, JUNTA ELÁSTICA - FORNECIMENTO E ASSENTAMENTO. AF_01/2021 | C62: M | D62: 225,85
A63: 90698 | B63: TUBO DE PVC PARA REDE COLETORA DE ESGOTO DE PAREDE MACIÇA, DN 300 MM, JUNTA ELÁSTICA, FORNECIMENTO E ASSENTAMENTO. AF_01/2021 | C63: M | D63: 344,76
A64: 90699 | B64: TUBO DE PVC PARA REDE COLETORA DE ESGOTO DE PAREDE MACIÇA, DN 350 MM, JUNTA ELÁSTICA - FORNECIMENTO E ASSENTAMENTO. AF_01/2021 | C64: M | D64: 484,88
A65: 90700 | B65: TUBO DE PVC PARA REDE COLETORA DE ESGOTO DE PAREDE MACIÇA, DN 400 MM, JUNTA ELÁSTICA FORNECIMENTO E ASSENTAMENTO. AF_01/2021 | C65: M | D65: 565,66
A66: 90701 | B66: TUBO DE PVC CORRUGADO DE DUPLA PAREDE PARA REDE COLETORA DE ESGOTO, DN 150 MM, JUNTA ELÁSTICA - FORNECIMENTO E ASSENTAMENTO. AF_01/2021 | C66: M | D66: 69,37
A67: 90702 | B67: TUBO DE PVC CORRUGADO DE DUPLA PAREDE PARA REDE COLETORA DE ESGOTO, DN 200 MM, JUNTA ELÁSTICA - FORNECIMENTO E ASSENTAMENTO. AF_01/2021 | C67: M | D67: 114,30
A68: 90703 | B68: TUBO DE PVC CORRUGADO DE DUPLA PAREDE PARA REDE COLETORA DE ESGOTO, DN 250 MM, JUNTA ELÁSTICA - FORNECIMENTO E ASSENTAMENTO. AF_01/2021 | C68: M | D68: 179,05
A69: 90704 | B69: TUBO DE PVC CORRUGADO DE DUPLA PAREDE PARA REDE COLETORA DE ESGOTO, DN 300 MM, JUNTA ELÁSTICA - FORNECIMENTO E ASSENTAMENTO. AF_01/2021 | C69: M | D69: 266,57
A70: 90705 | B70: TUBO DE PVC CORRUGADO DE DUPLA PAREDE PARA REDE COLETORA DE ESGOTO, DN 350 MM, JUNTA ELÁSTICA - FORNECIMENTO E ASSENTAMENTO. AF_01/2021 | C70: M | D70: 346,55
A71: 90706 | B71: TUBO DE PVC CORRUGADO DE DUPLA PAREDE PARA REDE COLETORA DE ESGOTO, DN 400 MM, JUNTA ELÁSTICA - FORNECIMENTO E ASSENTAMENTO. AF_01/2021 | C71: M | D71: 458,62
A72: 90708 | B72: TUBO DE PEAD CORRUGADO DE DUPLA PAREDE PARA REDE COLETORA DE ESGOTO, DN 600 MM, JUNTA ELÁSTICA INTEGRADA - FORNECIMENTO E ASSENTAMENTO. AF_01/2021 | C72: M | D72: 1.211,32
A73: 90724 | B73: JUNTA ARGAMASSADA ENTRE TUBO DN 100 MM E O POÇO DE VISITA/ CAIXA DE CONCRETO OU ALVENARIA EM REDES DE ESGOTO. AF_01/2021 | C73: UN | D73: 28,72
A74: 90725 | B74: JUNTA ARGAMASSADA ENTRE TUBO DN 150 MM E O POÇO DE VISITA/ CAIXA DE CONCRETO OU ALVENARIA EM REDES DE ESGOTO. AF_01/2021 | C74: UN | D74: 35,29
A75: 90726 | B75: JUNTA ARGAMASSADA ENTRE TUBO DN 200 MM E O POÇO/ CAIXA DE CONCRETO OU ALVENARIA EM REDES DE ESGOTO. AF_01/2021 | C75: UN | D75: 41,93
A76: 90727 | B76: JUNTA ARGAMASSADA ENTRE TUBO DN 250 MM E O POÇO DE VISITA/ CAIXA DE CONCRETO OU ALVENARIA EM REDES DE ESGOTO. AF_01/2021 | C76: UN | D76: 48,49
A77: 90728 | B77: JUNTA ARGAMASSADA ENTRE TUBO DN 300 MM E O POÇO DE VISITA/ CAIXA DE CONCRETO OU ALVENARIA EM REDES DE ESGOTO. AF_01/2021 | C77: UN | D77: 55,06
A78: 90729 | B78: JUNTA ARGAMASSADA ENTRE TUBO DN 350 MM E O POÇO DE VISITA/ CAIXA DE CONCRETO OU ALVENARIA EM REDES DE ESGOTO. AF_01/2021 | C78: UN | D78: 61,64
A79: 90730 | B79: JUNTA ARGAMASSADA ENTRE TUBO DN 400 MM E O POÇO DE VISITA/ CAIXA DE CONCRETO OU ALVENARIA EM REDES DE ESGOTO. AF_01/2021 | C79: UN | D79: 68,21
A80: 90731 | B80: JUNTA ARGAMASSADA ENTRE TUBO DN 450 MM E O POÇO DE VISITA/ CAIXA DE CONCRETO OU ALVENARIA EM REDES DE ESGOTO. AF_01/2021 | C80: UN | D80: 74,77
A81: 90732 | B81: JUNTA ARGAMASSADA ENTRE TUBO DN 600 MM E O POÇO DE VISITA/ CAIXA DE CONCRETO OU ALVENARIA EM REDES DE ESGOTO. AF_01/2021 | C81: UN | D81: 94,49
A82: 90733 | B82: ASSENTAMENTO DE TUBO DE PVC PARA REDE COLETORA DE ESGOTO DE PAREDE MACIÇA, DN 100 MM, JUNTA ELÁSTICA (NÃO INCLUI FORNECIMENTO). AF_01/2021 | C82: M | D82: 4,09
A83: 90734 | B83: ASSENTAMENTO DE TUBO DE PVC PARA REDE COLETORA DE ESGOTO DE PAREDE MACIÇA, DN 150 MM, JUNTA ELÁSTICA, (NÃO INCLUI FORNECIMENTO). AF_01/2021 | C83: M | D83: 4,84
A84: 90735 | B84: ASSENTAMENTO DE TUBO DE PVC PARA REDE COLETORA DE ESGOTO DE PAREDE MACIÇA, DN 200 MM, JUNTA ELÁSTICA (NÃO INCLUI FORNECIMENTO). AF_01/2021 | C84: M | D84: 5,59
A85: 90736 | B85: ASSENTAMENTO DE TUBO DE PVC PARA REDE COLETORA DE ESGOTO DE PAREDE MACIÇA, DN 250 MM, JUNTA ELÁSTICA (NÃO INCLUI FORNECIMENTO). AF_01/2021 | C85: M | D85: 6,35
A86: 90737 | B86: ASSENTAMENTO DE TUBO DE PVC PARA REDE COLETORA DE ESGOTO DE PAREDE MACIÇA, DN 300 MM, JUNTA ELÁSTICA (NÃO INCLUI FORNECIMENTO). AF_01/2021 | C86: M | D86: 7,10
A87: 90738 | B87: ASSENTAMENTO DE TUBO DE PVC PARA REDE COLETORA DE ESGOTO DE PAREDE MACIÇA, DN 350 MM, JUNTA ELÁSTICA (NÃO INCLUI FORNECIMENTO). AF_01/2021 | C87: M | D87: 7,86
A88: 90739 | B88: ASSENTAMENTO DE TUBO DE PVC PARA REDE COLETORA DE ESGOTO DE PAREDE MACIÇA, DN 400 MM, JUNTA ELÁSTICA (NÃO INCLUI FORNECIMENTO). AF_01/2021 | C88: M | D88: 10,13
A89: 90740 | B89: ASSENTAMENTO DE TUBO DE PVC CORRUGADO DE DUPLA PAREDE PARA REDE COLETORA DE ESGOTO, DN 150 MM, JUNTA ELÁSTICA (NÃO INCLUI FORNECIMENTO). AF_01/2021 | C89: M | D89: 5,39
A90: 90741 | B90: ASSENTAMENTO DE TUBO DE PVC CORRUGADO DE DUPLA PAREDE PARA REDE COLETORA DE ESGOTO, DN 200 MM, JUNTA ELÁSTICA (NÃO INCLUI FORNECIMENTO). AF_01/2021 | C90: M | D90: 6,14
A91: 90742 | B91: ASSENTAMENTO DE TUBO DE PVC CORRUGADO DE DUPLA PAREDE PARA REDE COLETORA DE ESGOTO, DN 250 MM, JUNTA ELÁSTICA (NÃO INCLUI FORNECIMENTO). AF_01/2021 | C91: M | D91: 6,90
A92: 90743 | B92: ASSENTAMENTO DE TUBO DE PVC CORRUGADO DE DUPLA PAREDE PARA REDE COLETORA DE ESGOTO, DN 300 MM, JUNTA ELÁSTICA (NÃO INCLUI FORNECIMENTO). AF_01/2021 | C92: M | D92: 7,66
A93: 90744 | B93: ASSENTAMENTO DE TUBO DE PVC CORRUGADO DE DUPLA PAREDE PARA REDE COLETORA DE ESGOTO, DN 350 MM, JUNTA ELÁSTICA (NÃO INCLUI FORNECIMENTO). AF_01/2021 | C93: M | D93: 8,41
A94: 90745 | B94: ASSENTAMENTO DE TUBO DE PVC CORRUGADO DE DUPLA PAREDE PARA REDE COLETORA DE ESGOTO, DN 400 MM, JUNTA ELÁSTICA (NÃO INCLUI FORNECIMENTO). AF_01/2021 | C94: M | D94: 11,31
A95: 90746 | B95: ASSENTAMENTO DE TUBO DE PEAD CORRUGADO DE DUPLA PAREDE PARA REDE COLETORA DE ESGOTO, DN 450 MM, JUNTA ELÁSTICA INTEGRADA (NÃO INCLUI FORNECIMENTO). AF_01/2021 | C95: M | D95: 4,42
A96: 90747 | B96: ASSENTAMENTO DE TUBO DE PEAD CORRUGADO DE DUPLA PAREDE PARA REDE COLETORA DE ESGOTO, DN 600 MM, JUNTA ELÁSTICA INTEGRADA (NÃO INCLUI FORNECIMENTO). AF_01/2021 | C96: M | D96: 18,28
A97: 94869 | B97: TUBO DE PEAD CORRUGADO DE DUPLA PAREDE PARA REDE COLETORA DE ESGOTO, DN 250 MM, JUNTA ELÁSTICA INTEGRADA - FORNECIMENTO E ASSENTAMENTO. AF_01/2021 | C97: M | D97: 214,38
A98: 94870 | B98: ASSENTAMENTO DE TUBO DE PEAD CORRUGADO DE DUPLA PAREDE PARA REDE COLETORA DE ESGOTO, DN 250 MM, JUNTA ELÁSTICA INTEGRADA (NÃO INCLUI FORNECIMENTO). AF_01/2021 | C98: M | D98: 2,16
A99: 94871 | B99: TUBO DE PEAD CORRUGADO DE DUPLA PAREDE PARA REDE COLETORA DE ESGOTO, DN 300 MM, JUNTA ELÁSTICA INTEGRADA - FORNECIMENTO E ASSENTAMENTO. AF_01/2021 | C99: M | D99: 335,57
A100: 94872 | B100: ASSENTAMENTO DE TUBO DE PEAD CORRUGADO DE DUPLA PAREDE PARA REDE COLETORA DE ESGOTO, DN 300 MM, JUNTA ELÁSTICA INTEGRADA (NÃO INCLUI FORNECIMENTO). AF_01/2021 | C100: M | D100: 3,08
A101: 94875 | B101: TUBO DE PEAD CORRUGADO DE DUPLA PAREDE PARA REDE COLETORA DE ESGOTO, DN 800 MM, JUNTA ELÁSTICA INTEGRADA - FORNECIMENTO E ASSENTAMENTO. AF_01/2021 | C101: M | D101: 1.967,95
A102: 94876 | B102: ASSENTAMENTO DE TUBO DE PEAD CORRUGADO DE DUPLA PAREDE PARA REDE COLETORA DE ESGOTO, DN 800 MM, JUNTA ELÁSTICA INTEGRADA (NÃO INCLUI FORNECIMENTO). AF_01/2021 | C102: M | D102: 30,64
A103: 94878 | B103: ASSENTAMENTO DE TUBO DE PEAD CORRUGADO DE DUPLA PAREDE PARA REDE COLETORA DE ESGOTO, DN 900 MM, JUNTA ELÁSTICA INTEGRADA (NÃO INCLUI FORNECIMENTO). AF_01/2021 | C103: M | D103: 35,44
A104: 94879 | B104: TUBO DE PEAD CORRUGADO DE DUPLA PAREDE PARA REDE COLETORA DE ESGOTO, DN 1000 MM, JUNTA ELÁSTICA INTEGRADA - FORNECIMENTO E ASSENTAMENTO. AF_01/2021 | C104: M | D104: 3.030,09
A105: 94880 | B105: ASSENTAMENTO DE TUBO DE PEAD CORRUGADO DE DUPLA PAREDE PARA REDE COLETORA DE ESGOTO, DN 1000 MM, JUNTA ELÁSTICA INTEGRADA (NÃO INCLUI FORNECIMENTO). AF_01/2021 | C105: M | D105: 45,71
A106: 94881 | B106: TUBO DE PEAD CORRUGADO DE DUPLA PAREDE PARA REDE COLETORA DE ESGOTO, DN 1200 MM, JUNTA ELÁSTICA INTEGRADA - FORNECIMENTO E ASSENTAMENTO. AF_01/2021 | C106: M | D106: 4.177,70
A107: 94882 | B107: ASSENTAMENTO DE TUBO DE PEAD CORRUGADO DE DUPLA PAREDE PARA REDE COLETORA DE ESGOTO, DN 1200 MM, JUNTA ELÁSTICA INTEGRADA (NÃO INCLUI FORNECIMENTO). AF_01/2021 | C107: M | D107: 53,11
A108: 94884 | B108: ASSENTAMENTO DE TUBO DE PEAD CORRUGADO DE DUPLA PAREDE PARA REDE COLETORA DE ESGOTO, DN 1500 MM, JUNTA ELÁSTICA INTEGRADA (NÃO INCLUI FORNECIMENTO). AF_01/2021 | C108: M | D108: 68,13
A109: 97121 | B109: ASSENTAMENTO DE TUBO DE PVC PBA PARA REDE DE ÁGUA, DN 50 MM, JUNTA ELÁSTICA INTEGRADA, INSTALADO EM LOCAL COM NÍVEL ALTO DE INTERFERÊNCIAS (NÃO INCLUI FORNECIMENTO). AF_11/2017 | C109: M | D109: 2,42
A110: 97122 | B110: ASSENTAMENTO DE TUBO DE PVC PBA PARA REDE DE ÁGUA, DN 75 MM, JUNTA ELÁSTICA INTEGRADA, INSTALADO EM LOCAL COM NÍVEL ALTO DE INTERFERÊNCIAS (NÃO INCLUI FORNECIMENTO). AF_11/2017 | C110: M | D110: 3,36
A111: 97123 | B111: ASSENTAMENTO DE TUBO DE PVC PBA PARA REDE DE ÁGUA, DN 100 MM, JUNTA ELÁSTICA INTEGRADA, INSTALADO EM LOCAL COM NÍVEL ALTO DE INTERFERÊNCIAS (NÃO INCLUI FORNECIMENTO). AF_11/2017 | C111: M | D111: 4,27
A112: 97124 | B112: ASSENTAMENTO DE TUBO DE PVC PBA PARA REDE DE ÁGUA, DN 50 MM, JUNTA ELÁSTICA INTEGRADA, INSTALADO EM LOCAL COM NÍVEL BAIXO DE INTERFERÊNCIAS (NÃO INCLUI FORNECIMENTO). AF_11/2017 | C112: M | D112: 1,07
A113: 97125 | B113: ASSENTAMENTO DE TUBO DE PVC PBA PARA REDE DE ÁGUA, DN 75 MM, JUNTA ELÁSTICA INTEGRADA, INSTALADO EM LOCAL COM NÍVEL BAIXO DE INTERFERÊNCIAS (NÃO INCLUI FORNECIMENTO). AF_11/2017 | C113: M | D113: 1,51
A114: 97126 | B114: ASSENTAMENTO DE TUBO DE PVC PBA PARA REDE DE ÁGUA, DN 100 MM, JUNTA ELÁSTICA INTEGRADA, INSTALADO EM LOCAL COM NÍVEL BAIXO DE INTERFERÊNCIAS (NÃO INCLUI FORNECIMENTO). AF_11/2017 | C114: M | D114: 1,92
A115: 102264 | B115: TUBO DE PVC BRANCO PARA REDE COLETORA DE ESGOTO CONDOMINIAL DE PAREDE MACIÇA, DN 100 MM, JUNTA ELÁSTICA - FORNECIMENTO E ASSENTAMENTO. AF_01/2021 | C115: M | D115: 20,58
A116: 102265 | B116: JUNTA ARGAMASSADA ENTRE TUBO DN 800 MM E O POÇO DE VISITA/ CAIXA DE CONCRETO OU ALVENARIA EM REDES DE ESGOTO. AF_01/2021 | C116: UN | D116: 120,77
A117: 102266 | B117: JUNTA ARGAMASSADA ENTRE TUBO DN 900 MM E O POÇO DE VISITA/ CAIXA DE CONCRETO OU ALVENARIA EM REDES DE ESGOTO. AF_01/2021 | C117: UN | D117: 133,92
A118: 102267 | B118: JUNTA ARGAMASSADA ENTRE TUBO DN 1000 MM E O POÇO DE VISITA/ CAIXA DE CONCRETO OU ALVENARIA EM REDES DE ESGOTO. AF_01/2021 | C118: UN | D118: 153,69
A119: 102268 | B119: JUNTA ARGAMASSADA ENTRE TUBO DN 1200 MM E O POÇO DE VISITA/ CAIXA DE CONCRETO OU ALVENARIA EM REDES DE ESGOTO. AF_01/2021 | C119: UN | D119: 173,41
A120: 102269 | B120: JUNTA ARGAMASSADA ENTRE TUBO DN 1500 MM E O POÇO DE VISITA/ CAIXA DE CONCRETO OU ALVENARIA EM REDES DE ESGOTO. AF_01/2021 | C120: UN | D120: 212,82
A121: 92833 | B121: TUBO DE CONCRETO PARA REDES COLETORAS DE ESGOTO SANITÁRIO, DIÂMETRO DE 300 MM, JUNTA ELÁSTICA, INSTALADO EM LOCAL COM BAIXO NÍVEL DE INTERFERÊNCIAS - FORNECIMENTO E ASSENTAMENTO. AF_12/2015 | C121: M | D121: 172,84
A122: 92834 | B122: ASSENTAMENTO DE TUBO DE CONCRETO PARA REDES COLETORAS DE ESGOTO SANITÁRIO, DIÂMETRO DE 300 MM, JUNTA ELÁSTICA, INSTALADO EM LOCAL COM BAIXO NÍVEL DE INTERFERÊNCIAS (NÃO INCLUI FORNECIMENTO). AF_12/2015 | C122: M | D122: 9,94
A123: 92835 | B123: TUBO DE CONCRETO PARA REDES COLETORAS DE ESGOTO SANITÁRIO, DIÂMETRO DE 400 MM, JUNTA ELÁSTICA, INSTALADO EM LOCAL COM BAIXO NÍVEL DE INTERFERÊNCIAS - FORNECIMENTO E ASSENTAMENTO. AF_12/2015 | C123: M | D123: 181,89
A124: 92836 | B124: ASSENTAMENTO DE TUBO DE CONCRETO PARA REDES COLETORAS DE ESGOTO SANITÁRIO, DIÂMETRO DE 400 MM, JUNTA ELÁSTICA, INSTALADO EM LOCAL COM BAIXO NÍVEL DE INTERFERÊNCIAS (NÃO INCLUI FORNECIMENTO). AF_12/2015 | C124: M | D124: 12,70
A125: 92837 | B125: TUBO DE CONCRETO PARA REDES COLETORAS DE ESGOTO SANITÁRIO, DIÂMETRO DE 500 MM, JUNTA ELÁSTICA, INSTALADO EM LOCAL COM BAIXO NÍVEL DE INTERFERÊNCIAS - FORNECIMENTO E ASSENTAMENTO. AF_12/2015 | C125: M | D125: 318,32
A126: 92838 | B126: ASSENTAMENTO DE TUBO DE CONCRETO PARA REDES COLETORAS DE ESGOTO SANITÁRIO, DIÂMETRO DE 500 MM, JUNTA ELÁSTICA, INSTALADO EM LOCAL COM BAIXO NÍVEL DE INTERFERÊNCIAS (NÃO INCLUI FORNECIMENTO). AF_12/2015 | C126: M | D126: 15,24
A127: 92839 | B127: TUBO DE CONCRETO PARA REDES COLETORAS DE ESGOTO SANITÁRIO, DIÂMETRO DE 600 MM, JUNTA ELÁSTICA, INSTALADO EM LOCAL COM BAIXO NÍVEL DE INTERFERÊNCIAS - FORNECIMENTO E ASSENTAMENTO. AF_12/2015 | C127: M | D127: 389,20
A128: 92840 | B128: ASSENTAMENTO DE TUBO DE CONCRETO PARA REDES COLETORAS DE ESGOTO SANITÁRIO, DIÂMETRO DE 600 MM, JUNTA ELÁSTICA, INSTALADO EM LOCAL COM BAIXO NÍVEL DE INTERFERÊNCIAS (NÃO INCLUI FORNECIMENTO). AF_12/2015 | C128: M | D128: 18,06
A129: 92841 | B129: TUBO DE CONCRETO PARA REDES COLETORAS DE ESGOTO SANITÁRIO, DIÂMETRO DE 700 MM, JUNTA ELÁSTICA, INSTALADO EM LOCAL COM BAIXO NÍVEL DE INTERFERÊNCIAS - FORNECIMENTO E ASSENTAMENTO. AF_12/2015 | C129: M | D129: 506,63
A130: 92842 | B130: ASSENTAMENTO DE TUBO DE CONCRETO PARA REDES COLETORAS DE ESGOTO SANITÁRIO, DIÂMETRO DE 700 MM, JUNTA ELÁSTICA, INSTALADO EM LOCAL COM BAIXO NÍVEL DE INTERFERÊNCIAS (NÃO INCLUI FORNECIMENTO). AF_12/2015 | C130: M | D130: 20,63
A131: 92843 | B131: TUBO DE CONCRETO PARA REDES COLETORAS DE ESGOTO SANITÁRIO, DIÂMETRO DE 800 MM, JUNTA ELÁSTICA, INSTALADO EM LOCAL COM BAIXO NÍVEL DE INTERFERÊNCIAS - FORNECIMENTO E ASSENTAMENTO. AF_12/2015 | C131: M | D131: 526,32
A132: 92844 | B132: ASSENTAMENTO DE TUBO DE CONCRETO PARA REDES COLETORAS DE ESGOTO SANITÁRIO, DIÂMETRO DE 800 MM, JUNTA ELÁSTICA, INSTALADO EM LOCAL COM BAIXO NÍVEL DE INTERFERÊNCIAS (NÃO INCLUI FORNECIMENTO). AF_12/2015 | C132: M | D132: 23,45
A133: 92845 | B133: TUBO DE CONCRETO PARA REDES COLETORAS DE ESGOTO SANITÁRIO, DIÂMETRO DE 900 MM, JUNTA ELÁSTICA, INSTALADO EM LOCAL COM BAIXO NÍVEL DE INTERFERÊNCIAS - FORNECIMENTO E ASSENTAMENTO. AF_12/2015 | C133: M | D133: 775,65
A134: 92846 | B134: ASSENTAMENTO DE TUBO DE CONCRETO PARA REDES COLETORAS DE ESGOTO SANITÁRIO, DIÂMETRO DE 900 MM, JUNTA ELÁSTICA, INSTALADO EM LOCAL COM BAIXO NÍVEL DE INTERFERÊNCIAS (NÃO INCLUI FORNECIMENTO). AF_12/2015 | C134: M | D134: 25,99
A135: 92847 | B135: TUBO DE CONCRETO PARA REDES COLETORAS DE ESGOTO SANITÁRIO, DIÂMETRO DE 1000 MM, JUNTA ELÁSTICA, INSTALADO EM LOCAL COM BAIXO NÍVEL DE INTERFERÊNCIAS - FORNECIMENTO E ASSENTAMENTO. AF_12/2015 | C135: M | D135: 799,23
A136: 92848 | B136: ASSENTAMENTO DE TUBO DE CONCRETO PARA REDES COLETORAS DE ESGOTO SANITÁRIO, DIÂMETRO DE 1000 MM, JUNTA ELÁSTICA, INSTALADO EM LOCAL COM BAIXO NÍVEL DE INTERFERÊNCIAS (NÃO INCLUI FORNECIMENTO). AF_12/2015 | C136: M | D136: 28,84
A137: 92849 | B137: TUBO DE CONCRETO PARA REDES COLETORAS DE ESGOTO SANITÁRIO, DIÂMETRO DE 300 MM, JUNTA ELÁSTICA, INSTALADO EM LOCAL COM ALTO NÍVEL DE INTERFERÊNCIAS - FORNECIMENTO E ASSENTAMENTO. AF_12/2015 | C137: M | D137: 181,72
A138: 92850 | B138: ASSENTAMENTO DE TUBO DE CONCRETO PARA REDES COLETORAS DE ESGOTO SANITÁRIO, DIÂMETRO DE 300 MM, JUNTA ELÁSTICA, INSTALADO EM LOCAL COM ALTO NÍVEL DE INTERFERÊNCIAS (NÃO INCLUI FORNECIMENTO). AF_12/2015 | C138: M | D138: 18,82
A139: 92851 | B139: TUBO DE CONCRETO PARA REDES COLETORAS DE ESGOTO SANITÁRIO, DIÂMETRO DE 400 MM, JUNTA ELÁSTICA, INSTALADO EM LOCAL COM ALTO NÍVEL DE INTERFERÊNCIAS - FORNECIMENTO E ASSENTAMENTO. AF_12/2015 | C139: M | D139: 192,95
A140: 92852 | B140: ASSENTAMENTO DE TUBO DE CONCRETO PARA REDES COLETORAS DE ESGOTO SANITÁRIO, DIÂMETRO DE 400 MM, JUNTA ELÁSTICA, INSTALADO EM LOCAL COM ALTO NÍVEL DE INTERFERÊNCIAS (NÃO INCLUI FORNECIMENTO). AF_12/2015 | C140: M | D140: 23,76
A141: 92853 | B141: TUBO DE CONCRETO PARA REDES COLETORAS DE ESGOTO SANITÁRIO, DIÂMETRO DE 500 MM, JUNTA ELÁSTICA, INSTALADO EM LOCAL COM ALTO NÍVEL DE INTERFERÊNCIAS - FORNECIMENTO E ASSENTAMENTO. AF_12/2015 | C141: M | D141: 332,02
A142: 92854 | B142: ASSENTAMENTO DE TUBO DE CONCRETO PARA REDES COLETORAS DE ESGOTO SANITÁRIO, DIÂMETRO DE 500 MM, JUNTA ELÁSTICA, INSTALADO EM LOCAL COM ALTO NÍVEL DE INTERFERÊNCIAS (NÃO INCLUI FORNECIMENTO). AF_12/2015 | C142: M | D142: 28,94
A143: 92855 | B143: TUBO DE CONCRETO PARA REDES COLETORAS DE ESGOTO SANITÁRIO, DIÂMETRO DE 600 MM, JUNTA ELÁSTICA, INSTALADO EM LOCAL COM ALTO NÍVEL DE INTERFERÊNCIAS - FORNECIMENTO E ASSENTAMENTO. AF_12/2015 | C143: M | D143: 405,25
A144: 92856 | B144: ASSENTAMENTO DE TUBO DE CONCRETO PARA REDES COLETORAS DE ESGOTO SANITÁRIO, DIÂMETRO DE 600 MM, JUNTA ELÁSTICA, INSTALADO EM LOCAL COM ALTO NÍVEL DE INTERFERÊNCIAS (NÃO INCLUI FORNECIMENTO). AF_12/2015 | C144: M | D144: 34,11
A145: 92857 | B145: TUBO DE CONCRETO PARA REDES COLETORAS DE ESGOTO SANITÁRIO, DIÂMETRO DE 700 MM, JUNTA ELÁSTICA, INSTALADO EM LOCAL COM ALTO NÍVEL DE INTERFERÊNCIAS - FORNECIMENTO E ASSENTAMENTO. AF_12/2015 | C145: M | D145: 525,04
A146: 92858 | B146: ASSENTAMENTO DE TUBO DE CONCRETO PARA REDES COLETORAS DE ESGOTO SANITÁRIO, DIÂMETRO DE 700 MM, JUNTA ELÁSTICA, INSTALADO EM LOCAL COM ALTO NÍVEL DE INTERFERÊNCIAS (NÃO INCLUI FORNECIMENTO). AF_12/2015 | C146: M | D146: 39,04
A147: 92859 | B147: TUBO DE CONCRETO PARA REDES COLETORAS DE ESGOTO SANITÁRIO, DIÂMETRO DE 800 MM, JUNTA ELÁSTICA, INSTALADO EM LOCAL COM ALTO NÍVEL DE INTERFERÊNCIAS - FORNECIMENTO E ASSENTAMENTO. AF_12/2015 | C147: M | D147: 547,18
A148: 92860 | B148: ASSENTAMENTO DE TUBO DE CONCRETO PARA REDES COLETORAS DE ESGOTO SANITÁRIO, DIÂMETRO DE 800 MM, JUNTA ELÁSTICA, INSTALADO EM LOCAL COM ALTO NÍVEL DE INTERFERÊNCIAS (NÃO INCLUI FORNECIMENTO). AF_12/2015 | C148: M | D148: 44,31
A149: 92861 | B149: TUBO DE CONCRETO PARA REDES COLETORAS DE ESGOTO SANITÁRIO, DIÂMETRO DE 900 MM, JUNTA ELÁSTICA, INSTALADO EM LOCAL COM ALTO NÍVEL DE INTERFERÊNCIAS - FORNECIMENTO E ASSENTAMENTO. AF_12/2015 | C149: M | D149: 799,12
A150: 92862 | B150: ASSENTAMENTO DE TUBO DE CONCRETO PARA REDES COLETORAS DE ESGOTO SANITÁRIO, DIÂMETRO DE 900 MM, JUNTA ELÁSTICA, INSTALADO EM LOCAL COM ALTO NÍVEL DE INTERFERÊNCIAS (NÃO INCLUI FORNECIMENTO). AF_12/2015 | C150: M | D150: 49,46
A151: 92863 | B151: TUBO DE CONCRETO PARA REDES COLETORAS DE ESGOTO SANITÁRIO, DIÂMETRO DE 1000 MM, JUNTA ELÁSTICA, INSTALADO EM LOCAL COM ALTO NÍVEL DE INTERFERÊNCIAS - FORNECIMENTO E ASSENTAMENTO. AF_12/2015 | C151: M | D151: 825,02
A152: 92864 | B152: ASSENTAMENTO DE TUBO DE CONCRETO PARA REDES COLETORAS DE ESGOTO SANITÁRIO, DIÂMETRO DE 1000 MM, JUNTA ELÁSTICA, INSTALADO EM LOCAL COM ALTO NÍVEL DE INTERFERÊNCIAS (NÃO INCLUI FORNECIMENTO). AF_12/2015 | C152: M | D152: 54,63
A153: 92210 | B153: TUBO DE CONCRETO PARA REDES COLETORAS DE ÁGUAS PLUVIAIS, DIÂMETRO DE 400 MM, JUNTA RÍGIDA, INSTALADO EM LOCAL COM BAIXO NÍVEL DE INTERFERÊNCIAS - FORNECIMENTO E ASSENTAMENTO. AF_12/2015 | C153: M | D153: 152,04
A154: 92211 | B154: TUBO DE CONCRETO PARA REDES COLETORAS DE ÁGUAS PLUVIAIS, DIÂMETRO DE 500 MM, JUNTA RÍGIDA, INSTALADO EM LOCAL COM BAIXO NÍVEL DE INTERFERÊNCIAS - FORNECIMENTO E ASSENTAMENTO. AF_12/2015 | C154: M | D154: 182,94
A155: 92212 | B155: TUBO DE CONCRETO PARA REDES COLETORAS DE ÁGUAS PLUVIAIS, DIÂMETRO DE 600 MM, JUNTA RÍGIDA, INSTALADO EM LOCAL COM BAIXO NÍVEL DE INTERFERÊNCIAS - FORNECIMENTO E ASSENTAMENTO. AF_12/2015 | C155: M | D155: 266,21
A156: 92213 | B156: TUBO DE CONCRETO PARA REDES COLETORAS DE ÁGUAS PLUVIAIS, DIÂMETRO DE 700 MM, JUNTA RÍGIDA, INSTALADO EM LOCAL COM BAIXO NÍVEL DE INTERFERÊNCIAS - FORNECIMENTO E ASSENTAMENTO. AF_12/2015 | C156: M | D156: 345,75
A157: 92214 | B157: TUBO DE CONCRETO PARA REDES COLETORAS DE ÁGUAS PLUVIAIS, DIÂMETRO DE 800 MM, JUNTA RÍGIDA, INSTALADO EM LOCAL COM BAIXO NÍVEL DE INTERFERÊNCIAS - FORNECIMENTO E ASSENTAMENTO. AF_12/2015 | C157: M | D157: 415,90
A158: 92215 | B158: TUBO DE CONCRETO PARA REDES COLETORAS DE ÁGUAS PLUVIAIS, DIÂMETRO DE 900 MM, JUNTA RÍGIDA, INSTALADO EM LOCAL COM BAIXO NÍVEL DE INTERFERÊNCIAS - FORNECIMENTO E ASSENTAMENTO. AF_12/2015 | C158: M | D158: 476,99
A159: 92216 | B159: TUBO DE CONCRETO PARA REDES COLETORAS DE ÁGUAS PLUVIAIS, DIÂMETRO DE 1000 MM, JUNTA RÍGIDA, INSTALADO EM LOCAL COM BAIXO NÍVEL DE INTERFERÊNCIAS - FORNECIMENTO E ASSENTAMENTO. AF_12/2015 | C159: M | D159: 501,64
A160: 92219 | B160: TUBO DE CONCRETO PARA REDES COLETORAS DE ÁGUAS PLUVIAIS, DIÂMETRO DE 400 MM, JUNTA RÍGIDA, INSTALADO EM LOCAL COM ALTO NÍVEL DE INTERFERÊNCIAS - FORNECIMENTO E ASSENTAMENTO. AF_12/2015 | C160: M | D160: 163,10
A161: 92220 | B161: TUBO DE CONCRETO PARA REDES COLETORAS DE ÁGUAS PLUVIAIS, DIÂMETRO DE 500 MM, JUNTA RÍGIDA, INSTALADO EM LOCAL COM ALTO NÍVEL DE INTERFERÊNCIAS - FORNECIMENTO E ASSENTAMENTO. AF_12/2015 | C161: M | D161: 196,62
A162: 92221 | B162: TUBO DE CONCRETO PARA REDES COLETORAS DE ÁGUAS PLUVIAIS, DIÂMETRO DE 600 MM, JUNTA RÍGIDA, INSTALADO EM LOCAL COM ALTO NÍVEL DE INTERFERÊNCIAS - FORNECIMENTO E ASSENTAMENTO. AF_12/2015 | C162: M | D162: 282,27
A163: 92222 | B163: TUBO DE CONCRETO PARA REDES COLETORAS DE ÁGUAS PLUVIAIS, DIÂMETRO DE 700 MM, JUNTA RÍGIDA, INSTALADO EM LOCAL COM ALTO NÍVEL DE INTERFERÊNCIAS - FORNECIMENTO E ASSENTAMENTO. AF_12/2015 | C163: M | D163: 364,39
A164: 92223 | B164: TUBO DE CONCRETO PARA REDES COLETORAS DE ÁGUAS PLUVIAIS, DIÂMETRO DE 800 MM, JUNTA RÍGIDA, INSTALADO EM LOCAL COM ALTO NÍVEL DE INTERFERÊNCIAS - FORNECIMENTO E ASSENTAMENTO. AF_12/2015 | C164: M | D164: 436,78
A165: 92224 | B165: TUBO DE CONCRETO PARA REDES COLETORAS DE ÁGUAS PLUVIAIS, DIÂMETRO DE 900 MM, JUNTA RÍGIDA, INSTALADO EM LOCAL COM ALTO NÍVEL DE INTERFERÊNCIAS - FORNECIMENTO E ASSENTAMENTO. AF_12/2015 | C165: M | D165: 500,15
A166: 92226 | B166: TUBO DE CONCRETO PARA REDES COLETORAS DE ÁGUAS PLUVIAIS, DIÂMETRO DE 1000 MM, JUNTA RÍGIDA, INSTALADO EM LOCAL COM ALTO NÍVEL DE INTERFERÊNCIAS - FORNECIMENTO E ASSENTAMENTO. AF_12/2015 | C166: M | D166: 527,56
A167: 92808 | B167: ASSENTAMENTO DE TUBO DE CONCRETO PARA REDES COLETORAS DE ÁGUAS PLUVIAIS, DIÂMETRO DE 300 MM, JUNTA RÍGIDA, INSTALADO EM LOCAL COM BAIXO NÍVEL DE INTERFERÊNCIAS (NÃO INCLUI FORNECIMENTO). AF_12/2015 | C167: M | D167: 44,73
A168: 92809 | B168: ASSENTAMENTO DE TUBO DE CONCRETO PARA REDES COLETORAS DE ÁGUAS PLUVIAIS, DIÂMETRO DE 400 MM, JUNTA RÍGIDA, INSTALADO EM LOCAL COM BAIXO NÍVEL DE INTERFERÊNCIAS (NÃO INCLUI FORNECIMENTO). AF_12/2015 | C168: M | D168: 57,30
A169: 92810 | B169: ASSENTAMENTO DE TUBO DE CONCRETO PARA REDES COLETORAS DE ÁGUAS PLUVIAIS, DIÂMETRO DE 500 MM, JUNTA RÍGIDA, INSTALADO EM LOCAL COM BAIXO NÍVEL DE INTERFERÊNCIAS (NÃO INCLUI FORNECIMENTO). AF_12/2015 | C169: M | D169: 69,71
A170: 92811 | B170: ASSENTAMENTO DE TUBO DE CONCRETO PARA REDES COLETORAS DE ÁGUAS PLUVIAIS, DIÂMETRO DE 600 MM, JUNTA RÍGIDA, INSTALADO EM LOCAL COM BAIXO NÍVEL DE INTERFERÊNCIAS (NÃO INCLUI FORNECIMENTO). AF_12/2015 | C170: M | D170: 82,87
A171: 92812 | B171: ASSENTAMENTO DE TUBO DE CONCRETO PARA REDES COLETORAS DE ÁGUAS PLUVIAIS, DIÂMETRO DE 700 MM, JUNTA RÍGIDA, INSTALADO EM LOCAL COM BAIXO NÍVEL DE INTERFERÊNCIAS (NÃO INCLUI FORNECIMENTO). AF_12/2015 | C171: M | D171: 95,87
A172: 92813 | B172: ASSENTAMENTO DE TUBO DE CONCRETO PARA REDES COLETORAS DE ÁGUAS PLUVIAIS, DIÂMETRO DE 800 MM, JUNTA RÍGIDA, INSTALADO EM LOCAL COM BAIXO NÍVEL DE INTERFERÊNCIAS (NÃO INCLUI FORNECIMENTO). AF_12/2015 | C172: M | D172: 110,86
A173: 92814 | B173: ASSENTAMENTO DE TUBO DE CONCRETO PARA REDES COLETORAS DE ÁGUAS PLUVIAIS, DIÂMETRO DE 900 MM, JUNTA RÍGIDA, INSTALADO EM LOCAL COM BAIXO NÍVEL DE INTERFERÊNCIAS (NÃO INCLUI FORNECIMENTO). AF_12/2015 | C173: M | D173: 126,50
A174: 92815 | B174: ASSENTAMENTO DE TUBO DE CONCRETO PARA REDES COLETORAS DE ÁGUAS PLUVIAIS, DIÂMETRO DE 1000 MM, JUNTA RÍGIDA, INSTALADO EM LOCAL COM BAIXO NÍVEL DE INTERFERÊNCIAS (NÃO INCLUI FORNECIMENTO). AF_12/2015 | C174: M | D174: 144,21
A175: 92816 | B175: TUBO DE CONCRETO PARA REDES COLETORAS DE ÁGUAS PLUVIAIS, DIÂMETRO DE 1200 MM, JUNTA RÍGIDA, INSTALADO EM LOCAL COM BAIXO NÍVEL DE INTERFERÊNCIAS - FORNECIMENTO E ASSENTAMENTO. AF_12/2015 | C175: M | D175: 714,28
A176: 92817 | B176: ASSENTAMENTO DE TUBO DE CONCRETO PARA REDES COLETORAS DE ÁGUAS PLUVIAIS, DIÂMETRO DE 1200 MM, JUNTA RÍGIDA, INSTALADO EM LOCAL COM BAIXO NÍVEL DE INTERFERÊNCIAS (NÃO INCLUI FORNECIMENTO). AF_12/2015 | C176: M | D176: 180,45
A177: 92818 | B177: TUBO DE CONCRETO PARA REDES COLETORAS DE ÁGUAS PLUVIAIS, DIÂMETRO DE 1500 MM, JUNTA RÍGIDA, INSTALADO EM LOCAL COM BAIXO NÍVEL DE INTERFERÊNCIAS - FORNECIMENTO E ASSENTAMENTO. AF_12/2015 | C177: M | D177: 1.016,31
A178: 92819 | B178: ASSENTAMENTO DE TUBO DE CONCRETO PARA REDES COLETORAS DE ÁGUAS PLUVIAIS, DIÂMETRO DE 1500 MM, JUNTA RÍGIDA, INSTALADO EM LOCAL COM BAIXO NÍVEL DE INTERFERÊNCIAS (NÃO INCLUI FORNECIMENTO). AF_12/2015 | C178: M | D178: 242,90
A179: 92820 | B179: ASSENTAMENTO DE TUBO DE CONCRETO PARA REDES COLETORAS DE ÁGUAS PLUVIAIS, DIÂMETRO DE 300 MM, JUNTA RÍGIDA, INSTALADO EM LOCAL COM ALTO NÍVEL DE INTERFERÊNCIAS (NÃO INCLUI FORNECIMENTO). AF_12/2015 | C179: M | D179: 53,39
A180: 92821 | B180: ASSENTAMENTO DE TUBO DE CONCRETO PARA REDES COLETORAS DE ÁGUAS PLUVIAIS, DIÂMETRO DE 400 MM, JUNTA RÍGIDA, INSTALADO EM LOCAL COM ALTO NÍVEL DE INTERFERÊNCIAS (NÃO INCLUI FORNECIMENTO). AF_12/2015 | C180: M | D180: 68,36
A181: 92822 | B181: ASSENTAMENTO DE TUBO DE CONCRETO PARA REDES COLETORAS DE ÁGUAS PLUVIAIS, DIÂMETRO DE 500 MM, JUNTA RÍGIDA, INSTALADO EM LOCAL COM ALTO NÍVEL DE INTERFERÊNCIAS (NÃO INCLUI FORNECIMENTO). AF_12/2015 | C181: M | D181: 83,39
A182: 92824 | B182: ASSENTAMENTO DE TUBO DE CONCRETO PARA REDES COLETORAS DE ÁGUAS PLUVIAIS, DIÂMETRO DE 600 MM, JUNTA RÍGIDA, INSTALADO EM LOCAL COM ALTO NÍVEL DE INTERFERÊNCIAS (NÃO INCLUI FORNECIMENTO). AF_12/2015 | C182: M | D182: 98,93
A183: 92825 | B183: ASSENTAMENTO DE TUBO DE CONCRETO PARA REDES COLETORAS DE ÁGUAS PLUVIAIS, DIÂMETRO DE 700 MM, JUNTA RÍGIDA, INSTALADO EM LOCAL COM ALTO NÍVEL DE INTERFERÊNCIAS (NÃO INCLUI FORNECIMENTO). AF_12/2015 | C183: M | D183: 114,51
A184: 92826 | B184: ASSENTAMENTO DE TUBO DE CONCRETO PARA REDES COLETORAS DE ÁGUAS PLUVIAIS, DIÂMETRO DE 800 MM, JUNTA RÍGIDA, INSTALADO EM LOCAL COM ALTO NÍVEL DE INTERFERÊNCIAS (NÃO INCLUI FORNECIMENTO). AF_12/2015 | C184: M | D184: 131,74
A185: 92827 | B185: ASSENTAMENTO DE TUBO DE CONCRETO PARA REDES COLETORAS DE ÁGUAS PLUVIAIS, DIÂMETRO DE 900 MM, JUNTA RÍGIDA, INSTALADO EM LOCAL COM ALTO NÍVEL DE INTERFERÊNCIAS (NÃO INCLUI FORNECIMENTO). AF_12/2015 | C185: M | D185: 149,66
A186: 92828 | B186: ASSENTAMENTO DE TUBO DE CONCRETO PARA REDES COLETORAS DE ÁGUAS PLUVIAIS, DIÂMETRO DE 1000 MM, JUNTA RÍGIDA, INSTALADO EM LOCAL COM ALTO NÍVEL DE INTERFERÊNCIAS (NÃO INCLUI FORNECIMENTO). AF_12/2015 | C186: M | D186: 170,13
A187: 92829 | B187: TUBO DE CONCRETO PARA REDES COLETORAS DE ÁGUAS PLUVIAIS, DIÂMETRO DE 1200 MM, JUNTA RÍGIDA, INSTALADO EM LOCAL COM ALTO NÍVEL DE INTERFERÊNCIAS - FORNECIMENTO E ASSENTAMENTO. AF_12/2015 | C187: M | D187: 744,87
A188: 92830 | B188: ASSENTAMENTO DE TUBO DE CONCRETO PARA REDES COLETORAS DE ÁGUAS PLUVIAIS, DIÂMETRO DE 1200 MM, JUNTA RÍGIDA, INSTALADO EM LOCAL COM ALTO NÍVEL DE INTERFERÊNCIAS (NÃO INCLUI FORNECIMENTO). AF_12/2015 | C188: M | D188: 211,04
A189: 92831 | B189: TUBO DE CONCRETO PARA REDES COLETORAS DE ÁGUAS PLUVIAIS, DIÂMETRO DE 1500 MM, JUNTA RÍGIDA, INSTALADO EM LOCAL COM ALTO NÍVEL DE INTERFERÊNCIAS - FORNECIMENTO E ASSENTAMENTO. AF_12/2015 | C189: M | D189: 1.053,94
A190: 92832 | B190: ASSENTAMENTO DE TUBO DE CONCRETO PARA REDES COLETORAS DE ÁGUAS PLUVIAIS, DIÂMETRO DE 1500 MM, JUNTA RÍGIDA, INSTALADO EM LOCAL COM ALTO NÍVEL DE INTERFERÊNCIAS (NÃO INCLUI FORNECIMENTO). AF_12/2015 | C190: M | D190: 280,53
A191: 95565 | B191: TUBO DE CONCRETO PARA REDES COLETORAS DE ÁGUAS PLUVIAIS, DIÂMETRO DE 300MM, JUNTA RÍGIDA, INSTALADO EM LOCAL COM BAIXO NÍVEL DE INTERFERÊNCIAS - FORNECIMENTO E ASSENTAMENTO. AF_12/2015 | C191: M | D191: 128,69
A192: 95566 | B192: TUBO DE CONCRETO PARA REDES COLETORAS DE ÁGUAS PLUVIAIS, DIÂMETRO DE 300MM, JUNTA RÍGIDA, INSTALADO EM LOCAL COM ALTO NÍVEL DE INTERFERÊNCIAS - FORNECIMENTO E ASSENTAMENTO. AF_12/2015 | C192: M | D192: 137,35
A193: 95567 | B193: TUBO DE CONCRETO (SIMPLES) PARA REDES COLETORAS DE ÁGUAS PLUVIAIS, DIÂMETRO DE 300 MM, JUNTA RÍGIDA, INSTALADO EM LOCAL COM BAIXO NÍVEL DE INTERFERÊNCIAS - FORNECIMENTO E ASSENTAMENTO. AF_12/2015 | C193: M | D193: 111,68
A194: 95568 | B194: TUBO DE CONCRETO (SIMPLES) PARA REDES COLETORAS DE ÁGUAS PLUVIAIS, DIÂMETRO DE 400 MM, JUNTA RÍGIDA, INSTALADO EM LOCAL COM BAIXO NÍVEL DE INTERFERÊNCIAS - FORNECIMENTO E ASSENTAMENTO. AF_12/2015 | C194: M | D194: 136,41
A195: 95569 | B195: TUBO DE CONCRETO (SIMPLES) PARA REDES COLETORAS DE ÁGUAS PLUVIAIS, DIÂMETRO DE 500 MM, JUNTA RÍGIDA, INSTALADO EM LOCAL COM BAIXO NÍVEL DE INTERFERÊNCIAS - FORNECIMENTO E ASSENTAMENTO. AF_12/2015 | C195: M | D195: 187,45
A196: 95570 | B196: TUBO DE CONCRETO (SIMPLES) PARA REDES COLETORAS DE ÁGUAS PLUVIAIS, DIÂMETRO DE 300 MM, JUNTA RÍGIDA, INSTALADO EM LOCAL COM ALTO NÍVEL DE INTERFERÊNCIAS - FORNECIMENTO E ASSENTAMENTO. AF_12/2015 | C196: M | D196: 120,34
A197: 95571 | B197: TUBO DE CONCRETO (SIMPLES) PARA REDES COLETORAS DE ÁGUAS PLUVIAIS, DIÂMETRO DE 400 MM, JUNTA RÍGIDA, INSTALADO EM LOCAL COM ALTO NÍVEL DE INTERFERÊNCIAS - FORNECIMENTO E ASSENTAMENTO. AF_12/2015 | C197: M | D197: 147,47
A198: 95572 | B198: TUBO DE CONCRETO (SIMPLES) PARA REDES COLETORAS DE ÁGUAS PLUVIAIS, DIÂMETRO DE 500 MM, JUNTA RÍGIDA, INSTALADO EM LOCAL COM ALTO NÍVEL DE INTERFERÊNCIAS - FORNECIMENTO E ASSENTAMENTO. AF_12/2015 | C198: M | D198: 201,13
A199: 97127 | B199: ASSENTAMENTO DE TUBO DE PVC DEFOFO OU PRFV OU RPVC PARA REDE DE ÁGUA, DN 150 MM, JUNTA ELÁSTICA INTEGRADA, INSTALADO EM LOCAL COM NÍVEL ALTO DE INTERFERÊNCIAS (NÃO INCLUI FORNECIMENTO). AF_11/2017 | C199: M | D199: 6,11
A200: 97128 | B200: ASSENTAMENTO DE TUBO DE PVC DEFOFO OU PRFV OU RPVC PARA REDE DE ÁGUA, DN 200 MM, JUNTA ELÁSTICA INTEGRADA, INSTALADO EM LOCAL COM NÍVEL ALTO DE INTERFERÊNCIAS (NÃO INCLUI FORNECIMENTO). AF_11/2017 | C200: M | D200: 11,87
A201: 97129 | B201: ASSENTAMENTO DE TUBO DE PVC DEFOFO OU PRFV OU RPVC PARA REDE DE ÁGUA, DN 250 MM, JUNTA ELÁSTICA INTEGRADA, INSTALADO EM LOCAL COM NÍVEL ALTO DE INTERFERÊNCIAS (NÃO INCLUI FORNECIMENTO). AF_11/2017 | C201: M | D201: 14,61
A202: 97130 | B202: ASSENTAMENTO DE TUBO DE PVC DEFOFO OU PRFV OU RPVC PARA REDE DE ÁGUA, DN 300 MM, JUNTA ELÁSTICA INTEGRADA, INSTALADO EM LOCAL COM NÍVEL ALTO DE INTERFERÊNCIAS (NÃO INCLUI FORNECIMENTO). AF_11/2017 | C202: M | D202: 17,34
... 7309 more rows

Sheet EMOP 01-2023
A1: DATA DE PREÇO 01/2023
A2: CODIGO | B2: DESCRIÇÃO | C2: DESCR1,C,60 | D2: DESCR2,C,60 | E2: DESCR3,C,60 | F2: DESCR4,C,60 | G2: DESCR5,C,60 | H2: DESCR6,C,60 | I2: UNID | J2: PREÇO R$
A3: 01.001.0001-0 | B3: =C3&D3&E3&F3&G3&H3 -> LIMITE DE PLASTICIDADE | C3: LIMITE DE PLASTICIDADE | I3: UN | J3: 183.12
A4: 01.001.0001-A | B4: =C4&D4&E4&F4&G4&H4 -> LIMITE DE PLASTICIDADE | C4: LIMITE DE PLASTICIDADE | I4: UN | J4: 167.83
A5: 01.001.0002-0 | B5: =C5&D5&E5&F5&G5&H5 -> LIMITE DE LIQUIDEZ | C5: LIMITE DE LIQUIDEZ | I5: UN | J5: 183.12
A6: 01.001.0002-A | B6: =C6&D6&E6&F6&G6&H6 -> LIMITE DE LIQUIDEZ | C6: LIMITE DE LIQUIDEZ | I6: UN | J6: 167.83
A7: 01.001.0003-0 | B7: =C7&D7&E7&F7&G7&H7 -> LIMITE DE CONTRACAO | C7: LIMITE DE CONTRACAO | I7: UN | J7: 106.9
A8: 01.001.0003-A | B8: =C8&D8&E8&F8&G8&H8 -> LIMITE DE CONTRACAO | C8: LIMITE DE CONTRACAO | I8: UN | J8: 97.97
A9: 01.001.0004-0 | B9: =C9&D9&E9&F9&G9&H9 -> ANALISE GRANULOMETRICA SEM SEDIMENTACAO (PENEIRAMENTO) | C9: ANALISE GRANULOMETRICA SEM SEDIMENTACAO (PENEIRAMENTO) | I9: UN | J9: 206.51
A10: 01.001.0004-A | B10: =C10&D10&E10&F10&G10&H10 -> ANALISE GRANULOMETRICA SEM SEDIMENTACAO (PENEIRAMENTO) | C10: ANALISE GRANULOMETRICA SEM SEDIMENTACAO (PENEIRAMENTO) | I10: UN | J10: 189.26
A11: 01.001.0005-0 | B11: =C11&D11&E11&F11&G11&H11 -> ANALISE GRANULOMETRICA COM SEDIMENTACAO | C11: ANALISE GRANULOMETRICA COM SEDIMENTACAO | I11: UN | J11: 479.37
A12: 01.001.0005-A | B12: =C12&D12&E12&F12&G12&H12 -> ANALISE GRANULOMETRICA COM SEDIMENTACAO | C12: ANALISE GRANULOMETRICA COM SEDIMENTACAO | I12: UN | J12: 439.34
A13: 01.001.0006-0 | B13: =C13&D13&E13&F13&G13&H13 -> MASSA ESPECIFICA REAL | C13: MASSA ESPECIFICA REAL | I13: UN | J13: 252.88
A14: 01.001.0006-A | B14: =C14&D14&E14&F14&G14&H14 -> MASSA ESPECIFICA REAL | C14: MASSA ESPECIFICA REAL | I14: UN | J14: 231.76
A15: 01.001.0007-0 | B15: =C15&D15&E15&F15&G15&H15 -> MASSA ESPECIFICA APARENTE "IN SITU" | C15: MASSA ESPECIFICA APARENTE "IN SITU" | I15: UN | J15: 101.81
A16: 01.001.0007-A | B16: =C16&D16&E16&F16&G16&H16 -> MASSA ESPECIFICA APARENTE "IN SITU" | C16: MASSA ESPECIFICA APARENTE "IN SITU" | I16: UN | J16: 93.3
A17: 01.001.0008-0 | B17: =C17&D17&E17&F17&G17&H17 -> UMIDADE NATURAL EM ESTUFA | C17: UMIDADE NATURAL EM ESTUFA | I17: UN | J17: 95.24
A18: 01.001.0008-A | B18: =C18&D18&E18&F18&G18&H18 -> UMIDADE NATURAL EM ESTUFA | C18: UMIDADE NATURAL EM ESTUFA | I18: UN | J18: 87.29
A19: 01.001.0009-0 | B19: =C19&D19&E19&F19&G19&H19 -> EQUIVALENTE DE AREIA | C19: EQUIVALENTE DE AREIA | I19: UN | J19: 226.6
A20: 01.001.0009-A | B20: =C20&D20&E20&F20&G20&H20 -> EQUIVALENTE DE AREIA | C20: EQUIVALENTE DE AREIA | I20: UN | J20: 207.68
A21: 01.001.0010-0 | B21: =C21&D21&E21&F21&G21&H21 -> UMIDADE PELO METODO EXPEDITO "SPEEDY" | C21: UMIDADE PELO METODO EXPEDITO "SPEEDY" | I21: UN | J21: 64.03
A22: 01.001.0010-A | B22: =C22&D22&E22&F22&G22&H22 -> UMIDADE PELO METODO EXPEDITO "SPEEDY" | C22: UMIDADE PELO METODO EXPEDITO "SPEEDY" | I22: UN | J22: 58.68
A23: 01.001.0011-0 | B23: =C23&D23&E23&F23&G23&H23 -> COMPACTACAO: ENERGIA PROCTOR NORMAL | C23: COMPACTACAO: ENERGIA PROCTOR NORMAL | I23: UN | J23: 399.58
A24: 01.001.0011-A | B24: =C24&D24&E24&F24&G24&H24 -> COMPACTACAO: ENERGIA PROCTOR NORMAL | C24: COMPACTACAO: ENERGIA PROCTOR NORMAL | I24: UN | J24: 366.21
A25: 01.001.0012-0 | B25: =C25&D25&E25&F25&G25&H25 -> COMPACTACAO: ENERGIA AASHO INTERMEDIARIA | C25: COMPACTACAO: ENERGIA AASHO INTERMEDIARIA | I25: UN | J25: 479.37
A26: 01.001.0012-A | B26: =C26&D26&E26&F26&G26&H26 -> COMPACTACAO: ENERGIA AASHO INTERMEDIARIA | C26: COMPACTACAO: ENERGIA AASHO INTERMEDIARIA | I26: UN | J26: 439.34
A27: 01.001.0013-0 | B27: =C27&D27&E27&F27&G27&H27 -> COMPACTACAO: ENERGIA AASHO MODIFICADA | C27: COMPACTACAO: ENERGIA AASHO MODIFICADA | I27: UN | J27: 771.5
A28: 01.001.0013-A | B28: =C28&D28&E28&F28&G28&H28 -> COMPACTACAO: ENERGIA AASHO MODIFICADA | C28: COMPACTACAO: ENERGIA AASHO MODIFICADA | I28: UN | J28: 707.07
A29: 01.001.0014-0 | B29: =C29&D29&E29&F29&G29&H29 -> INDICE SUPORTE CALIFORNIA,POR 1 PONTO,COMPACTACAO COM ENERGIA PROCTOR NORMAL | C29: INDICE SUPORTE CALIFORNIA,POR 1 PONTO,COMPACTACAO COM ENERGI | D29: A PROCTOR NORMAL | I29: UN | J29: 880.67
A30: 01.001.0014-A | B30: =C30&D30&E30&F30&G30&H30 -> INDICE SUPORTE CALIFORNIA,POR 1 PONTO,COMPACTACAO COM ENERGIA PROCTOR NORMAL | C30: INDICE SUPORTE CALIFORNIA,POR 1 PONTO,COMPACTACAO COM ENERGI | D30: A PROCTOR NORMAL | I30: UN | J30: 807.12
A31: 01.001.0015-0 | B31: =C31&D31&E31&F31&G31&H31 -> INDICE SUPORTE CALIFORNIA,POR 1 PONTO,COMPACTACAO COM ENERGIA AASHO INTERMEDIARIA | C31: INDICE SUPORTE CALIFORNIA,POR 1 PONTO,COMPACTACAO COM ENERGI | D31: A AASHO INTERMEDIARIA | I31: UN | J31: 1153.59
A32: 01.001.0015-A | B32: =C32&D32&E32&F32&G32&H32 -> INDICE SUPORTE CALIFORNIA,POR 1 PONTO,COMPACTACAO COM ENERGIA AASHO INTERMEDIARIA | C32: INDICE SUPORTE CALIFORNIA,POR 1 PONTO,COMPACTACAO COM ENERGI | D32: A AASHO INTERMEDIARIA | I32: UN | J32: 1057.25
A33: 01.001.0016-0 | B33: =C33&D33&E33&F33&G33&H33 -> INDICE SUPORTE CALIFORNIA,POR 1 PONTO,COMPACTACAO COM ENERGIA AASHO MODIFICADA | C33: INDICE SUPORTE CALIFORNIA,POR 1 PONTO,COMPACTACAO COM ENERGI | D33: A AASHO MODIFICADA | I33: UN | J33: 1153.59
A34: 01.001.0016-A | B34: =C34&D34&E34&F34&G34&H34 -> INDICE SUPORTE CALIFORNIA,POR 1 PONTO,COMPACTACAO COM ENERGIA AASHO MODIFICADA | C34: INDICE SUPORTE CALIFORNIA,POR 1 PONTO,COMPACTACAO COM ENERGI | D34: A AASHO MODIFICADA | I34: UN | J34: 1057.25
A35: 01.001.0017-0 | B35: =C35&D35&E35&F35&G35&H35 -> INDICE SUPORTE CALIFORNIA,POR 3 PONTOS,COMPACTACAO COM ENERGIA PROCTOR NORMAL | C35: INDICE SUPORTE CALIFORNIA,POR 3 PONTOS,COMPACTACAO COM ENERG | D35: IA PROCTOR NORMAL | I35: UN | J35: 1845.99
A36: 01.001.0017-A | B36: =C36&D36&E36&F36&G36&H36 -> INDICE SUPORTE CALIFORNIA,POR 3 PONTOS,COMPACTACAO COM ENERGIA PROCTOR NORMAL | C36: INDICE SUPORTE CALIFORNIA,POR 3 PONTOS,COMPACTACAO COM ENERG | D36: IA PROCTOR NORMAL | I36: UN | J36: 1691.82
A37: 01.001.0018-0 | B37: =C37&D37&E37&F37&G37&H37 -> INDICE SUPORTE CALIFORNIA,POR 3 PONTOS,COMPACTACAO COM ENERGIA AASHO INTERMEDIARIA | C37: INDICE SUPORTE CALIFORNIA,POR 3 PONTOS,COMPACTACAO COM ENERG | D37: IA AASHO INTERMEDIARIA | I37: UN | J37: 1999.97
A38: 01.001.0018-A | B38: =C38&D38&E38&F38&G38&H38 -> INDICE SUPORTE CALIFORNIA,POR 3 PONTOS,COMPACTACAO COM ENERGIA AASHO INTERMEDIARIA | C38: INDICE SUPORTE CALIFORNIA,POR 3 PONTOS,COMPACTACAO COM ENERG | D38: IA AASHO INTERMEDIARIA | I38: UN | J38: 1832.95
A39: 01.001.0019-0 | B39: =C39&D39&E39&F39&G39&H39 -> INDICE SUPORTE CALIFORNIA,POR 3 PONTOS,COMPACTACAO COM ENERGIA AASHO MODIFICADA | C39: INDICE SUPORTE CALIFORNIA,POR 3 PONTOS,COMPACTACAO COM ENERG | D39: IA AASHO MODIFICADA | I39: UN | J39: 2153.97
A40: 01.001.0019-A | B40: =C40&D40&E40&F40&G40&H40 -> INDICE SUPORTE CALIFORNIA,POR 3 PONTOS,COMPACTACAO COM ENERGIA AASHO MODIFICADA | C40: INDICE SUPORTE CALIFORNIA,POR 3 PONTOS,COMPACTACAO COM ENERG | D40: IA AASHO MODIFICADA | I40: UN | J40: 1974.09
A41: 01.001.0020-0 | B41: =C41&D41&E41&F41&G41&H41 -> INDICE SUPORTE CALIFORNIA,POR 5 PONTOS,COMPACTACAO COM ENERGIA PROCTOR NORMAL | C41: INDICE SUPORTE CALIFORNIA,POR 5 PONTOS,COMPACTACAO COM ENERG | D41: IA PROCTOR NORMAL | I41: UN | J41: 2923.98
A42: 01.001.0020-A | B42: =C42&D42&E42&F42&G42&H42 -> INDICE SUPORTE CALIFORNIA,POR 5 PONTOS,COMPACTACAO COM ENERGIA PROCTOR NORMAL | C42: INDICE SUPORTE CALIFORNIA,POR 5 PONTOS,COMPACTACAO COM ENERG | D42: IA PROCTOR NORMAL | I42: UN | J42: 2679.79
A43: 01.001.0021-0 | B43: =C43&D43&E43&F43&G43&H43 -> INDICE SUPORTE CALIFORNIA,POR 5 PONTOS,COMPACTACAO COM ENERGIA AASHO INTERMEDIARIA | C43: INDICE SUPORTE CALIFORNIA,POR 5 PONTOS,COMPACTACAO COM ENERG | D43: IA AASHO INTERMEDIARIA | I43: UN | J43: 3229.97
A44: 01.001.0021-A | B44: =C44&D44&E44&F44&G44&H44 -> INDICE SUPORTE CALIFORNIA,POR 5 PONTOS,COMPACTACAO COM ENERGIA AASHO INTERMEDIARIA | C44: INDICE SUPORTE CALIFORNIA,POR 5 PONTOS,COMPACTACAO COM ENERG | D44: IA AASHO INTERMEDIARIA | I44: UN | J44: 2960.23
A45: 01.001.0022-0 | B45: =C45&D45&E45&F45&G45&H45 -> INDICE SUPORTE CALIFORNIA,POR 5 PONTOS,COMPACTACAO COM ENERGIA AASHO MODIFICADA | C45: INDICE SUPORTE CALIFORNIA,POR 5 PONTOS,COMPACTACAO COM ENERG | D45: IA AASHO MODIFICADA | I45: UN | J45: 3383.97
A46: 01.001.0022-A | B46: =C46&D46&E46&F46&G46&H46 -> INDICE SUPORTE CALIFORNIA,POR 5 PONTOS,COMPACTACAO COM ENERGIA AASHO MODIFICADA | C46: INDICE SUPORTE CALIFORNIA,POR 5 PONTOS,COMPACTACAO COM ENERG | D46: IA AASHO MODIFICADA | I46: UN | J46: 3101.37
A47: 01.001.0023-0 | B47: =C47&D47&E47&F47&G47&H47 -> PERMEABILIDADE EM AMOSTRA NATURAL | C47: PERMEABILIDADE EM AMOSTRA NATURAL | I47: UN | J47: 1113.83
A48: 01.001.0023-A | B48: =C48&D48&E48&F48&G48&H48 -> PERMEABILIDADE EM AMOSTRA NATURAL | C48: PERMEABILIDADE EM AMOSTRA NATURAL | I48: UN | J48: 1020.81
A49: 01.001.0024-0 | B49: =C49&D49&E49&F49&G49&H49 -> PERMEABILIDADE EM AMOSTRA MOLDADA ARGILOSA | C49: PERMEABILIDADE EM AMOSTRA MOLDADA ARGILOSA | I49: UN | J49: 1113.83
A50: 01.001.0024-A | B50: =C50&D50&E50&F50&G50&H50 -> PERMEABILIDADE EM AMOSTRA MOLDADA ARGILOSA | C50: PERMEABILIDADE EM AMOSTRA MOLDADA ARGILOSA | I50: UN | J50: 1020.81
A51: 01.001.0025-0 | B51: =C51&D51&E51&F51&G51&H51 -> PERMEABILIDADE EM AMOSTRA DE AREIA | C51: PERMEABILIDADE EM AMOSTRA DE AREIA | I51: UN | J51: 1078.09
A52: 01.001.0025-A | B52: =C52&D52&E52&F52&G52&H52 -> PERMEABILIDADE EM AMOSTRA DE AREIA | C52: PERMEABILIDADE EM AMOSTRA DE AREIA | I52: UN | J52: 988.06
A53: 01.001.0026-0 | B53: =C53&D53&E53&F53&G53&H53 -> COMPRESSAO SIMPLES EM AMOSTRA NATURAL,POR CORPO DE PROVA | C53: COMPRESSAO SIMPLES EM AMOSTRA NATURAL,POR CORPO DE PROVA | I53: UN | J53: 718.73
A54: 01.001.0026-A | B54: =C54&D54&E54&F54&G54&H54 -> COMPRESSAO SIMPLES EM AMOSTRA NATURAL,POR CORPO DE PROVA | C54: COMPRESSAO SIMPLES EM AMOSTRA NATURAL,POR CORPO DE PROVA | I54: UN | J54: 658.7
A55: 01.001.0027-0 | B55: =C55&D55&E55&F55&G55&H55 -> COMPRESSAO SIMPLES EM AMOSTRA MOLDADA,POR CORPO DE PROVA | C55: COMPRESSAO SIMPLES EM AMOSTRA MOLDADA,POR CORPO DE PROVA | I55: UN | J55: 718.73
A56: 01.001.0027-A | B56: =C56&D56&E56&F56&G56&H56 -> COMPRESSAO SIMPLES EM AMOSTRA MOLDADA,POR CORPO DE PROVA | C56: COMPRESSAO SIMPLES EM AMOSTRA MOLDADA,POR CORPO DE PROVA | I56: UN | J56: 658.7
A57: 01.001.0028-0 | B57: =C57&D57&E57&F57&G57&H57 -> ADENSAMENTO EM AMOSTRA NATURAL | C57: ADENSAMENTO EM AMOSTRA NATURAL | I57: UN | J57: 2267.6
A58: 01.001.0028-A | B58: =C58&D58&E58&F58&G58&H58 -> ADENSAMENTO EM AMOSTRA NATURAL | C58: ADENSAMENTO EM AMOSTRA NATURAL | I58: UN | J58: 2078.22
A59: 01.001.0029-0 | B59: =C59&D59&E59&F59&G59&H59 -> ADENSAMENTO EM AMOSTRA MOLDADA | C59: ADENSAMENTO EM AMOSTRA MOLDADA | I59: UN | J59: 2267.6
A60: 01.001.0029-A | B60: =C60&D60&E60&F60&G60&H60 -> ADENSAMENTO EM AMOSTRA MOLDADA | C60: ADENSAMENTO EM AMOSTRA MOLDADA | I60: UN | J60: 2078.22
A61: 01.001.0030-0 | B61: =C61&D61&E61&F61&G61&H61 -> ADENSAMENTO:PAR DE ENSAIOS PARA DETERMINACAO DO FATOR DE CORRECAO DE COEFICIENTE DE RECALQUE | C61: ADENSAMENTO:PAR DE ENSAIOS PARA DETERMINACAO DO FATOR DE COR | D61: RECAO DE COEFICIENTE DE RECALQUE | I61: UN | J61: 2626.96
A62: 01.001.0030-A | B62: =C62&D62&E62&F62&G62&H62 -> ADENSAMENTO:PAR DE ENSAIOS PARA DETERMINACAO DO FATOR DE CORRECAO DE COEFICIENTE DE RECALQUE | C62: ADENSAMENTO:PAR DE ENSAIOS PARA DETERMINACAO DO FATOR DE COR | D62: RECAO DE COEFICIENTE DE RECALQUE | I62: UN | J62: 2407.58
A63: 01.001.0032-0 | B63: =C63&D63&E63&F63&G63&H63 -> CISALHAMENTO LENTO OU RAPIDO,POR CORPO DE PROVA | C63: CISALHAMENTO LENTO OU RAPIDO,POR CORPO DE PROVA | I63: UN | J63: 498.91
A64: 01.001.0032-A | B64: =C64&D64&E64&F64&G64&H64 -> CISALHAMENTO LENTO OU RAPIDO,POR CORPO DE PROVA | C64: CISALHAMENTO LENTO OU RAPIDO,POR CORPO DE PROVA | I64: UN | J64: 457.25
A65: 01.001.0034-0 | B65: =C65&D65&E65&F65&G65&H65 -> TRIAXIAL DRENADO,EM AMOSTRAS NATURAL OU MOLDADA,POR CORPO DE PROVA | C65: TRIAXIAL DRENADO,EM AMOSTRAS NATURAL OU MOLDADA,POR CORPO DE | D65: PROVA | I65: UN | J65: 1457.89
A66: 01.001.0034-A | B66: =C66&D66&E66&F66&G66&H66 -> TRIAXIAL DRENADO,EM AMOSTRAS NATURAL OU MOLDADA,POR CORPO DE PROVA | C66: TRIAXIAL DRENADO,EM AMOSTRAS NATURAL OU MOLDADA,POR CORPO DE | D66: PROVA | I66: UN | J66: 1336.14
A67: 01.001.0036-0 | B67: =C67&D67&E67&F67&G67&H67 -> TRIAXIAL NAO DRENADO,EM AMOSTRAS NATURAL OU MOLDADA,POR CORPO DE PROVA | C67: TRIAXIAL NAO DRENADO,EM AMOSTRAS NATURAL OU MOLDADA,POR CORP | D67: O DE PROVA | I67: UN | J67: 897
A68: 01.001.0036-A | B68: =C68&D68&E68&F68&G68&H68 -> TRIAXIAL NAO DRENADO,EM AMOSTRAS NATURAL OU MOLDADA,POR CORPO DE PROVA | C68: TRIAXIAL NAO DRENADO,EM AMOSTRAS NATURAL OU MOLDADA,POR CORP | D68: O DE PROVA | I68: UN | J68: 822.09
A69: 01.001.0037-0 | B69: =C69&D69&E69&F69&G69&H69 -> TRIAXIAL NAO DRENADO,PRE-ADENSADO,EM AMOSTRAS NATURAL OU MOLDADA,POR CORPO DE PROVA | C69: TRIAXIAL NAO DRENADO,PRE-ADENSADO,EM AMOSTRAS NATURAL OU MOL | D69: DADA,POR CORPO DE PROVA | I69: UN | J69: 1097.62
A70: 01.001.0037-A | B70: =C70&D70&E70&F70&G70&H70 -> TRIAXIAL NAO DRENADO,PRE-ADENSADO,EM AMOSTRAS NATURAL OU MOLDADA,POR CORPO DE PROVA | C70: TRIAXIAL NAO DRENADO,PRE-ADENSADO,EM AMOSTRAS NATURAL OU MOL | D70: DADA,POR CORPO DE PROVA | I70: UN | J70: 1005.96
A71: 01.001.0039-0 | B71: =C71&D71&E71&F71&G71&H71 -> DURABILIDADE POR MOLHAGEM E SECAGEM,EM SOLO-CIMENTO,POR ENSAIO | C71: DURABILIDADE POR MOLHAGEM E SECAGEM,EM SOLO-CIMENTO,POR ENSA | D71: IO | I71: UN | J71: 1408.44
A72: 01.001.0039-A | B72: =C72&D72&E72&F72&G72&H72 -> DURABILIDADE POR MOLHAGEM E SECAGEM,EM SOLO-CIMENTO,POR ENSAIO | C72: DURABILIDADE POR MOLHAGEM E SECAGEM,EM SOLO-CIMENTO,POR ENSA | D72: IO | I72: UN | J72: 1290.82
A73: 01.001.0040-0 | B73: =C73&D73&E73&F73&G73&H73 -> SONDAGEM MANUAL,COM TRADO CAVADEIRA,POR METRO LINEAR OU FRACAO | C73: SONDAGEM MANUAL,COM TRADO CAVADEIRA,POR METRO LINEAR OU FRAC | D73: AO | I73: M | J73: 194.76
A74: 01.001.0040-A | B74: =C74&D74&E74&F74&G74&H74 -> SONDAGEM MANUAL,COM TRADO CAVADEIRA,POR METRO LINEAR OU FRACAO | C74: SONDAGEM MANUAL,COM TRADO CAVADEIRA,POR METRO LINEAR OU FRAC | D74: AO | I74: M | J74: 177.18
A75: 01.001.0042-0 | B75: =C75&D75&E75&F75&G75&H75 -> SONDAGEM MANUAL,COM PA E PICARETA,POR METRO LINEAR OU FRACAO | C75: SONDAGEM MANUAL,COM PA E PICARETA,POR METRO LINEAR OU FRACAO | I75: M | J75: 202.3
A76: 01.001.0042-A | B76: =C76&D76&E76&F76&G76&H76 -> SONDAGEM MANUAL,COM PA E PICARETA,POR METRO LINEAR OU FRACAO | C76: SONDAGEM MANUAL,COM PA E PICARETA,POR METRO LINEAR OU FRACAO | I76: M | J76: 183.72
A77: 01.001.0043-0 | B77: =C77&D77&E77&F77&G77&H77 -> SONDAGEM DE RECONHECIMENTO A TRADO MANUAL DE 4".PARA TRADO DE 6",ACRESCENTAR 50% AO VALOR DESTE ITEM | C77: SONDAGEM DE RECONHECIMENTO A TRADO MANUAL DE 4".PARA TRADO D | D77: E 6",ACRESCENTAR 50% AO VALOR DESTE ITEM | I77: M | J77: 96.18
A78: 01.001.0043-A | B78: =C78&D78&E78&F78&G78&H78 -> SONDAGEM DE RECONHECIMENTO A TRADO MANUAL DE 4".PARA TRADO DE 6",ACRESCENTAR 50% AO VALOR DESTE ITEM | C78: SONDAGEM DE RECONHECIMENTO A TRADO MANUAL DE 4".PARA TRADO D | D78: E 6",ACRESCENTAR 50% AO VALOR DESTE ITEM | I78: M | J78: 83.36
A79: 01.001.0044-0 | B79: =C79&D79&E79&F79&G79&H79 -> SONDAGEM EXPEDITA,DE SIMPLES RECONHECIMENTO A PERCUSSAO,EXCLUSIVAMENTE POR LAVAGEM,DIAMETRO DE 2",INCLUSIVE DESLOCAMENTO E INSTALACAO | C79: SONDAGEM EXPEDITA,DE SIMPLES RECONHECIMENTO A PERCUSSAO,EXCL | D79: USIVAMENTE POR LAVAGEM,DIAMETRO DE 2",INCLUSIVE DESLOCAMENTO | E79: E INSTALACAO | I79: M | J79: 76.31
A80: 01.001.0044-A | B80: =C80&D80&E80&F80&G80&H80 -> SONDAGEM EXPEDITA,DE SIMPLES RECONHECIMENTO A PERCUSSAO,EXCLUSIVAMENTE POR LAVAGEM,DIAMETRO DE 2",INCLUSIVE DESLOCAMENTO E INSTALACAO | C80: SONDAGEM EXPEDITA,DE SIMPLES RECONHECIMENTO A PERCUSSAO,EXCL | D80: USIVAMENTE POR LAVAGEM,DIAMETRO DE 2",INCLUSIVE DESLOCAMENTO | E80: E INSTALACAO | I80: M | J80: 66.14
A81: 01.001.0046-0 | B81: =C81&D81&E81&F81&G81&H81 -> FRACIONAMENTO QUIMICO (METODO ROSTLER) | C81: FRACIONAMENTO QUIMICO (METODO ROSTLER) | I81: UN | J81: 204.32
A82: 01.001.0046-A | B82: =C82&D82&E82&F82&G82&H82 -> FRACIONAMENTO QUIMICO (METODO ROSTLER) | C82: FRACIONAMENTO QUIMICO (METODO ROSTLER) | I82: UN | J82: 187.26
A83: 01.001.0047-0 | B83: =C83&D83&E83&F83&G83&H83 -> ENSAIO DE PALHETA("VANE TEST")REALIZADO NO CAMPO,EXCLUSIVE PERFURACAO | C83: ENSAIO DE PALHETA("VANE TEST")REALIZADO NO CAMPO,EXCLUSIVE P | D83: ERFURACAO | I83: UN | J83: 186.23
A84: 01.001.0047-A | B84: =C84&D84&E84&F84&G84&H84 -> ENSAIO DE PALHETA("VANE TEST")REALIZADO NO CAMPO,EXCLUSIVE PERFURACAO | C84: ENSAIO DE PALHETA("VANE TEST")REALIZADO NO CAMPO,EXCLUSIVE P | D84: ERFURACAO | I84: UN | J84: 161.4
A85: 01.001.0048-0 | B85: =C85&D85&E85&F85&G85&H85 -> ENSAIO DE PALHETA("VANE TEST"),REALIZADO EM LABORATORIO | C85: ENSAIO DE PALHETA("VANE TEST"),REALIZADO EM LABORATORIO | I85: UN | J85: 125.42
A86: 01.001.0048-A | B86: =C86&D86&E86&F86&G86&H86 -> ENSAIO DE PALHETA("VANE TEST"),REALIZADO EM LABORATORIO | C86: ENSAIO DE PALHETA("VANE TEST"),REALIZADO EM LABORATORIO | I86: UN | J86: 108.7
A87: 01.001.0049-0 | B87: =C87&D87&E87&F87&G87&H87 -> CLASSIFICACAO MACROSCOPICA DE AMOSTRAS DE SONDAGEM ROTATIVA | C87: CLASSIFICACAO MACROSCOPICA DE AMOSTRAS DE SONDAGEM ROTATIVA | I87: M | J87: 358.57
A88: 01.001.0049-A | B88: =C88&D88&E88&F88&G88&H88 -> CLASSIFICACAO MACROSCOPICA DE AMOSTRAS DE SONDAGEM ROTATIVA | C88: CLASSIFICACAO MACROSCOPICA DE AMOSTRAS DE SONDAGEM ROTATIVA | I88: M | J88: 328.62
A89: 01.001.0050-0 | B89: =C89&D89&E89&F89&G89&H89 -> CLASSIFICACAO MACROSCOPICA DE AMOSTRAS DE SONDAGEM ROTATIVA,COM LAMINA DE ROCHA | C89: CLASSIFICACAO MACROSCOPICA DE AMOSTRAS DE SONDAGEM ROTATIVA, | D89: COM LAMINA DE ROCHA | I89: M | J89: 3342.9
A90: 01.001.0050-A | B90: =C90&D90&E90&F90&G90&H90 -> CLASSIFICACAO MACROSCOPICA DE AMOSTRAS DE SONDAGEM ROTATIVA,COM LAMINA DE ROCHA | C90: CLASSIFICACAO MACROSCOPICA DE AMOSTRAS DE SONDAGEM ROTATIVA, | D90: COM LAMINA DE ROCHA | I90: M | J90: 3063.72
A91: 01.001.0051-0 | B91: =C91&D91&E91&F91&G91&H91 -> BRITAGEM EM LABORATORIO,DE BLOCOS DE ROCHA,MATACOES OU TESTEMUNHOS DE SONDAGEM ROTATIVA,POR AMOSTRA REPRESENTATIVA | C91: BRITAGEM EM LABORATORIO,DE BLOCOS DE ROCHA,MATACOES OU TESTE | D91: MUNHOS DE SONDAGEM ROTATIVA,POR AMOSTRA REPRESENTATIVA | I91: UN | J91: 334.7
A92: 01.001.0051-A | B92: =C92&D92&E92&F92&G92&H92 -> BRITAGEM EM LABORATORIO,DE BLOCOS DE ROCHA,MATACOES OU TESTEMUNHOS DE SONDAGEM ROTATIVA,POR AMOSTRA REPRESENTATIVA | C92: BRITAGEM EM LABORATORIO,DE BLOCOS DE ROCHA,MATACOES OU TESTE | D92: MUNHOS DE SONDAGEM ROTATIVA,POR AMOSTRA REPRESENTATIVA | I92: UN | J92: 306.75
A93: 01.001.0052-0 | B93: =C93&D93&E93&F93&G93&H93 -> MINI-CBR E EXPANSAO DE SOLO COMPACTADO EM EQUIPAMENTO MINIATURA | C93: MINI-CBR E EXPANSAO DE SOLO COMPACTADO EM EQUIPAMENTO MINIAT | D93: URA | I93: UN | J93: 110.56
A94: 01.001.0052-A | B94: =C94&D94&E94&F94&G94&H94 -> MINI-CBR E EXPANSAO DE SOLO COMPACTADO EM EQUIPAMENTO MINIATURA | C94: MINI-CBR E EXPANSAO DE SOLO COMPACTADO EM EQUIPAMENTO MINIAT | D94: URA | I94: UN | J94: 101.32
A95: 01.001.0053-0 | B95: =C95&D95&E95&F95&G95&H95 -> MINI-MCV - SOLO COMPACTADO EM EQUIPAMENTO MINIATURA | C95: MINI-MCV - SOLO COMPACTADO EM EQUIPAMENTO MINIATURA | I95: UN | J95: 110.56
A96: 01.001.0053-A | B96: =C96&D96&E96&F96&G96&H96 -> MINI-MCV - SOLO COMPACTADO EM EQUIPAMENTO MINIATURA | C96: MINI-MCV - SOLO COMPACTADO EM EQUIPAMENTO MINIATURA | I96: UN | J96: 101.32
A97: 01.001.0054-0 | B97: =C97&D97&E97&F97&G97&H97 -> DETERMINACAO DA PERDA DE MASSA POR IMERSAO DE SOLOS COMPACTADOS EM EQUIPAMENTO MINIATURA | C97: DETERMINACAO DA PERDA DE MASSA POR IMERSAO DE SOLOS COMPACTA | D97: DOS EM EQUIPAMENTO MINIATURA | I97: UN | J97: 110.56
A98: 01.001.0054-A | B98: =C98&D98&E98&F98&G98&H98 -> DETERMINACAO DA PERDA DE MASSA POR IMERSAO DE SOLOS COMPACTADOS EM EQUIPAMENTO MINIATURA | C98: DETERMINACAO DA PERDA DE MASSA POR IMERSAO DE SOLOS COMPACTA | D98: DOS EM EQUIPAMENTO MINIATURA | I98: UN | J98: 101.32
A99: 01.001.0055-0 | B99: =C99&D99&E99&F99&G99&H99 -> EXTRACAO DE AMOSTRA INDEFORMADA EM BLOCOS DE 30X30X30CM,INCLUSIVE EMBALAGEM DE MADEIRA,EXCLUSIVE TRANSPORTE | C99: EXTRACAO DE AMOSTRA INDEFORMADA EM BLOCOS DE 30X30X30CM,INCL | D99: USIVE EMBALAGEM DE MADEIRA,EXCLUSIVE TRANSPORTE | I99: UN | J99: 866.22
A100: 01.001.0055-A | B100: =C100&D100&E100&F100&G100&H100 -> EXTRACAO DE AMOSTRA INDEFORMADA EM BLOCOS DE 30X30X30CM,INCLUSIVE EMBALAGEM DE MADEIRA,EXCLUSIVE TRANSPORTE | C100: EXTRACAO DE AMOSTRA INDEFORMADA EM BLOCOS DE 30X30X30CM,INCL | D100: USIVE EMBALAGEM DE MADEIRA,EXCLUSIVE TRANSPORTE | I100: UN | J100: 793.88
A101: 01.001.0056-0 | B101: =C101&D101&E101&F101&G101&H101 -> CLASSIFICACAO DE SOLOS TROPICAIS PARA FINALIDADES RODOVIARIAS,UTILIZANDO CORPOS DE PROVA COMPACTADOS EM EQUIPAMENTO MINIATURA | C101: CLASSIFICACAO DE SOLOS TROPICAIS PARA FINALIDADES RODOVIARIA | D101: S,UTILIZANDO CORPOS DE PROVA COMPACTADOS EM EQUIPAMENTO MINI | E101: ATURA | I101: UN | J101: 111.32
A102: 01.001.0056-A | B102: =C102&D102&E102&F102&G102&H102 -> CLASSIFICACAO DE SOLOS TROPICAIS PARA FINALIDADES RODOVIARIAS,UTILIZANDO CORPOS DE PROVA COMPACTADOS EM EQUIPAMENTO MINIATURA | C102: CLASSIFICACAO DE SOLOS TROPICAIS PARA FINALIDADES RODOVIARIA | D102: S,UTILIZANDO CORPOS DE PROVA COMPACTADOS EM EQUIPAMENTO MINI | E102: ATURA | I102: UN | J102: 102.02
A103: 01.001.0057-0 | B103: =C103&D103&E103&F103&G103&H103 -> EXTRACAO DE AMOSTRA INDEFORMADA EM ANEL BISELADO,EXCLUSIVE TRANSPORTE | C103: EXTRACAO DE AMOSTRA INDEFORMADA EM ANEL BISELADO,EXCLUSIVE T | D103: RANSPORTE | I103: UN | J103: 478.16
A104: 01.001.0057-A | B104: =C104&D104&E104&F104&G104&H104 -> EXTRACAO DE AMOSTRA INDEFORMADA EM ANEL BISELADO,EXCLUSIVE TRANSPORTE | C104: EXTRACAO DE AMOSTRA INDEFORMADA EM ANEL BISELADO,EXCLUSIVE T | D104: RANSPORTE | I104: UN | J104: 438.23
A105: 01.001.0059-0 | B105: =C105&D105&E105&F105&G105&H105 -> EXTRACAO DE AMOSTRA TIPO "SHELBY" DURANTE SERVICO DE SONDAGEM DO SOLO,EXCLUSIVE TRANSPORTE | C105: EXTRACAO DE AMOSTRA TIPO "SHELBY" DURANTE SERVICO DE SONDAGE | D105: M DO SOLO,EXCLUSIVE TRANSPORTE | I105: UN | J105: 189.32
A106: 01.001.0059-A | B106: =C106&D106&E106&F106&G106&H106 -> EXTRACAO DE AMOSTRA TIPO "SHELBY" DURANTE SERVICO DE SONDAGEM DO SOLO,EXCLUSIVE TRANSPORTE | C106: EXTRACAO DE AMOSTRA TIPO "SHELBY" DURANTE SERVICO DE SONDAGE | D106: M DO SOLO,EXCLUSIVE TRANSPORTE | I106: UN | J106: 172.15
A107: 01.001.0060-0 | B107: =C107&D107&E107&F107&G107&H107 -> AMOSTRA DE SOLO - PREPARACAO PARA ENSAIOS DE COMPACTACAO E ENSAIOS DE CARACTERIZACAO | C107: AMOSTRA DE SOLO - PREPARACAO PARA ENSAIOS DE COMPACTACAO E E | D107: NSAIOS DE CARACTERIZACAO | I107: UN | J107: 552.8
A108: 01.001.0060-A | B108: =C108&D108&E108&F108&G108&H108 -> AMOSTRA DE SOLO - PREPARACAO PARA ENSAIOS DE COMPACTACAO E ENSAIOS DE CARACTERIZACAO | C108: AMOSTRA DE SOLO - PREPARACAO PARA ENSAIOS DE COMPACTACAO E E | D108: NSAIOS DE CARACTERIZACAO | I108: UN | J108: 506.63
A109: 01.001.0061-0 | B109: =C109&D109&E109&F109&G109&H109 -> GRAOS DE SOLOS QUE PASSAM NA PENEIRA DE MALHA 4,8MM - DETERMINACAO DA MASSA ESPECIFICA | C109: GRAOS DE SOLOS QUE PASSAM NA PENEIRA DE MALHA 4,8MM - DETERM | D109: INACAO DA MASSA ESPECIFICA | I109: UN | J109: 111.32
A110: 01.001.0061-A | B110: =C110&D110&E110&F110&G110&H110 -> GRAOS DE SOLOS QUE PASSAM NA PENEIRA DE MALHA 4,8MM - DETERMINACAO DA MASSA ESPECIFICA | C110: GRAOS DE SOLOS QUE PASSAM NA PENEIRA DE MALHA 4,8MM - DETERM | D110: INACAO DA MASSA ESPECIFICA | I110: UN | J110: 102.02
A111: 01.001.0062-0 | B111: =C111&D111&E111&F111&G111&H111 -> ADENSAMENTO UNIDIMENSIONAL | C111: ADENSAMENTO UNIDIMENSIONAL | I111: UN | J111: 111.32
A112: 01.001.0062-A | B112: =C112&D112&E112&F112&G112&H112 -> ADENSAMENTO UNIDIMENSIONAL | C112: ADENSAMENTO UNIDIMENSIONAL | I112: UN | J112: 102.02
A113: 01.001.0063-0 | B113: =C113&D113&E113&F113&G113&H113 -> METODO RIEDEL-WEBER(AGREGADO GRAUDO) | C113: METODO RIEDEL-WEBER(AGREGADO GRAUDO) | I113: UN | J113: 111.32
A114: 01.001.0063-A | B114: =C114&D114&E114&F114&G114&H114 -> METODO RIEDEL-WEBER(AGREGADO GRAUDO) | C114: METODO RIEDEL-WEBER(AGREGADO GRAUDO) | I114: UN | J114: 102.02
A115: 01.001.0064-0 | B115: =C115&D115&E115&F115&G115&H115 -> COMPACTACAO DE SOLO EM EQUIPAMENTO MINIATURA | C115: COMPACTACAO DE SOLO EM EQUIPAMENTO MINIATURA | I115: UN | J115: 111.32
A116: 01.001.0064-A | B116: =C116&D116&E116&F116&G116&H116 -> COMPACTACAO DE SOLO EM EQUIPAMENTO MINIATURA | C116: COMPACTACAO DE SOLO EM EQUIPAMENTO MINIATURA | I116: UN | J116: 102.02
A117: 01.001.0065-0 | B117: =C117&D117&E117&F117&G117&H117 -> ENSAIO DE PERDA D'AGUA DURANTE A SONDAGEM ROTATIVA EM ROCHA, CONSTANDO DE 3 ESTAGIOS DE PRESSAO | C117: ENSAIO DE PERDA D'AGUA DURANTE A SONDAGEM ROTATIVA EM ROCHA, | D117: CONSTANDO DE 3 ESTAGIOS DE PRESSAO | I117: UN | J117: 196.73
A118: 01.001.0065-A | B118: =C118&D118&E118&F118&G118&H118 -> ENSAIO DE PERDA D'AGUA DURANTE A SONDAGEM ROTATIVA EM ROCHA, CONSTANDO DE 3 ESTAGIOS DE PRESSAO | C118: ENSAIO DE PERDA D'AGUA DURANTE A SONDAGEM ROTATIVA EM ROCHA, | D118: CONSTANDO DE 3 ESTAGIOS DE PRESSAO | I118: UN | J118: 170.47
A119: 01.001.0066-0 | B119: =C119&D119&E119&F119&G119&H119 -> ENSAIO DE PERDA D'AGUA DURANTE A SONDAGEM ROTATIVA EM ROCHA,CONSTANDO DE 5 ESTAGIOS DE PRESSAO | C119: ENSAIO DE PERDA D'AGUA DURANTE A SONDAGEM ROTATIVA EM ROCHA, | D119: CONSTANDO DE 5 ESTAGIOS DE PRESSAO | I119: UN | J119: 273.14
A120: 01.001.0066-A | B120: =C120&D120&E120&F120&G120&H120 -> ENSAIO DE PERDA D'AGUA DURANTE A SONDAGEM ROTATIVA EM ROCHA,CONSTANDO DE 5 ESTAGIOS DE PRESSAO | C120: ENSAIO DE PERDA D'AGUA DURANTE A SONDAGEM ROTATIVA EM ROCHA, | D120: CONSTANDO DE 5 ESTAGIOS DE PRESSAO | I120: UN | J120: 236.68
A121: 01.001.0068-0 | B121: =C121&D121&E121&F121&G121&H121 -> ENSAIO DE PENETRACAO TIPO "DEEP SOUNDING" | C121: ENSAIO DE PENETRACAO TIPO "DEEP SOUNDING" | I121: M | J121: 559.86
A122: 01.001.0068-A | B122: =C122&D122&E122&F122&G122&H122 -> ENSAIO DE PENETRACAO TIPO "DEEP SOUNDING" | C122: ENSAIO DE PENETRACAO TIPO "DEEP SOUNDING" | I122: M | J122: 509.07
A123: 01.001.0069-0 | B123: =C123&D123&E123&F123&G123&H123 -> ENSAIO DE INFILTRACAO EM SOLO | C123: ENSAIO DE INFILTRACAO EM SOLO | I123: UN | J123: 451.82
A124: 01.001.0069-A | B124: =C124&D124&E124&F124&G124&H124 -> ENSAIO DE INFILTRACAO EM SOLO | C124: ENSAIO DE INFILTRACAO EM SOLO | I124: UN | J124: 412.56
A125: 01.001.0071-0 | B125: =C125&D125&E125&F125&G125&H125 -> ENSAIO DE CARACTERIZACAO GEOTECNICA DE SOLOS,COM UTILIZACAODE DILATOMETRO,EXCLUSIVE PERFURACAO | C125: ENSAIO DE CARACTERIZACAO GEOTECNICA DE SOLOS,COM UTILIZACAO | D125: DE DILATOMETRO,EXCLUSIVE PERFURACAO | I125: UN | J125: 589.86
A126: 01.001.0071-A | B126: =C126&D126&E126&F126&G126&H126 -> ENSAIO DE CARACTERIZACAO GEOTECNICA DE SOLOS,COM UTILIZACAODE DILATOMETRO,EXCLUSIVE PERFURACAO | C126: ENSAIO DE CARACTERIZACAO GEOTECNICA DE SOLOS,COM UTILIZACAO | D126: DE DILATOMETRO,EXCLUSIVE PERFURACAO | I126: UN | J126: 540.6
A127: 01.001.0073-0 | B127: =C127&D127&E127&F127&G127&H127 -> ENSAIO DE PENETRACAO TIPO SPT | C127: ENSAIO DE PENETRACAO TIPO SPT | I127: UN | J127: 133.88
A128: 01.001.0073-A | B128: =C128&D128&E128&F128&G128&H128 -> ENSAIO DE PENETRACAO TIPO SPT | C128: ENSAIO DE PENETRACAO TIPO SPT | I128: UN | J128: 121.73
A129: 01.001.0075-1 | B129: =C129&D129&E129&F129&G129&H129 -> PERFURACAO MANUAL DE SOLO,A TRADO ATE 6" | C129: PERFURACAO MANUAL DE SOLO,A TRADO ATE 6" | I129: M | J129: 14.14
A130: 01.001.0075-B | B130: =C130&D130&E130&F130&G130&H130 -> PERFURACAO MANUAL DE SOLO,A TRADO ATE 6" | C130: PERFURACAO MANUAL DE SOLO,A TRADO ATE 6" | I130: M | J130: 12.25
A131: 01.001.0076-0 | B131: =C131&D131&E131&F131&G131&H131 -> PERFURACAO MANUAL DE SOLO,A TRADO ATE 8" | C131: PERFURACAO MANUAL DE SOLO,A TRADO ATE 8" | I131: M | J131: 17.91
A132: 01.001.0076-A | B132: =C132&D132&E132&F132&G132&H132 -> PERFURACAO MANUAL DE SOLO,A TRADO ATE 8" | C132: PERFURACAO MANUAL DE SOLO,A TRADO ATE 8" | I132: M | J132: 15.52
A133: 01.001.0077-0 | B133: =C133&D133&E133&F133&G133&H133 -> PERFURACAO MANUAL DE SOLO,A TRADO ATE 10" | C133: PERFURACAO MANUAL DE SOLO,A TRADO ATE 10" | I133: M | J133: 21.68
A134: 01.001.0077-A | B134: =C134&D134&E134&F134&G134&H134 -> PERFURACAO MANUAL DE SOLO,A TRADO ATE 10" | C134: PERFURACAO MANUAL DE SOLO,A TRADO ATE 10" | I134: M | J134: 18.79
A135: 01.001.0078-0 | B135: =C135&D135&E135&F135&G135&H135 -> PERFURACAO MANUAL DE SOLO,A TRADO ACIMA DE 10" | C135: PERFURACAO MANUAL DE SOLO,A TRADO ACIMA DE 10" | I135: M | J135: 26.4
A136: 01.001.0078-A | B136: =C136&D136&E136&F136&G136&H136 -> PERFURACAO MANUAL DE SOLO,A TRADO ACIMA DE 10" | C136: PERFURACAO MANUAL DE SOLO,A TRADO ACIMA DE 10" | I136: M | J136: 22.88
A137: 01.001.0081-0 | B137: =C137&D137&E137&F137&G137&H137 -> ANALISE GRANULOMETRICA EM AGREGADO MIUDO | C137: ANALISE GRANULOMETRICA EM AGREGADO MIUDO | I137: UN | J137: 183.08
A138: 01.001.0081-A | B138: =C138&D138&E138&F138&G138&H138 -> ANALISE GRANULOMETRICA EM AGREGADO MIUDO | C138: ANALISE GRANULOMETRICA EM AGREGADO MIUDO | I138: UN | J138: 167.79
A139: 01.001.0082-0 | B139: =C139&D139&E139&F139&G139&H139 -> ANALISE GRANULOMETRICA EM AGREGADO GRAUDO | C139: ANALISE GRANULOMETRICA EM AGREGADO GRAUDO | I139: UN | J139: 144.83
A140: 01.001.0082-A | B140: =C140&D140&E140&F140&G140&H140 -> ANALISE GRANULOMETRICA EM AGREGADO GRAUDO | C140: ANALISE GRANULOMETRICA EM AGREGADO GRAUDO | I140: UN | J140: 132.73
A141: 01.001.0083-0 | B141: =C141&D141&E141&F141&G141&H141 -> AVALIACAO DAS IMPUREZAS ORGANICAS DAS AREIAS | C141: AVALIACAO DAS IMPUREZAS ORGANICAS DAS AREIAS | I141: UN | J141: 183.08
A142: 01.001.0083-A | B142: =C142&D142&E142&F142&G142&H142 -> AVALIACAO DAS IMPUREZAS ORGANICAS DAS AREIAS | C142: AVALIACAO DAS IMPUREZAS ORGANICAS DAS AREIAS | I142: UN | J142: 167.79
A143: 01.001.0084-0 | B143: =C143&D143&E143&F143&G143&H143 -> QUALIDADE DA AREIA COM ANALISE GRANULOMETRICA E INDICE DE MATERIA ORGANICA | C143: QUALIDADE DA AREIA COM ANALISE GRANULOMETRICA E INDICE DE MA | D143: TERIA ORGANICA | I143: UN | J143: 4019.09
A144: 01.001.0084-A | B144: =C144&D144&E144&F144&G144&H144 -> QUALIDADE DA AREIA COM ANALISE GRANULOMETRICA E INDICE DE MATERIA ORGANICA | C144: QUALIDADE DA AREIA COM ANALISE GRANULOMETRICA E INDICE DE MA | D144: TERIA ORGANICA | I144: UN | J144: 3683.45
A145: 01.001.0085-0 | B145: =C145&D145&E145&F145&G145&H145 -> TEOR DE ARGILA EM TORROES(AGREGADO MIUDO) | C145: TEOR DE ARGILA EM TORROES(AGREGADO MIUDO) | I145: UN | J145: 183.08
A146: 01.001.0085-A | B146: =C146&D146&E146&F146&G146&H146 -> TEOR DE ARGILA EM TORROES(AGREGADO MIUDO) | C146: TEOR DE ARGILA EM TORROES(AGREGADO MIUDO) | I146: UN | J146: 167.79
A147: 01.001.0086-0 | B147: =C147&D147&E147&F147&G147&H147 -> TEOR DE ARGILA EM TORROES(AGREGADO GRAUDO) | C147: TEOR DE ARGILA EM TORROES(AGREGADO GRAUDO) | I147: UN | J147: 183.08
A148: 01.001.0086-A | B148: =C148&D148&E148&F148&G148&H148 -> TEOR DE ARGILA EM TORROES(AGREGADO GRAUDO) | C148: TEOR DE ARGILA EM TORROES(AGREGADO GRAUDO) | I148: UN | J148: 167.79
A149: 01.001.0087-0 | B149: =C149&D149&E149&F149&G149&H149 -> TEOR DE MATERIAIS PULVERULENTOS(AGREGADO MIUDO) | C149: TEOR DE MATERIAIS PULVERULENTOS(AGREGADO MIUDO) | I149: UN | J149: 144.98
A150: 01.001.0087-A | B150: =C150&D150&E150&F150&G150&H150 -> TEOR DE MATERIAIS PULVERULENTOS(AGREGADO MIUDO) | C150: TEOR DE MATERIAIS PULVERULENTOS(AGREGADO MIUDO) | I150: UN | J150: 132.87
A151: 01.001.0088-0 | B151: =C151&D151&E151&F151&G151&H151 -> TEOR DE MATERIAIS PULVERULENTOS(AGREGADO GRAUDO) | C151: TEOR DE MATERIAIS PULVERULENTOS(AGREGADO GRAUDO) | I151: UN | J151: 198.38
A152: 01.001.0088-A | B152: =C152&D152&E152&F152&G152&H152 -> TEOR DE MATERIAIS PULVERULENTOS(AGREGADO GRAUDO) | C152: TEOR DE MATERIAIS PULVERULENTOS(AGREGADO GRAUDO) | I152: UN | J152: 181.81
A153: 01.001.0089-0 | B153: =C153&D153&E153&F153&G153&H153 -> DENSIDADE REAL(AGREGADO MIUDO) | C153: DENSIDADE REAL(AGREGADO MIUDO) | I153: UN | J153: 53.39
A154: 01.001.0089-A | B154: =C154&D154&E154&F154&G154&H154 -> DENSIDADE REAL(AGREGADO MIUDO) | C154: DENSIDADE REAL(AGREGADO MIUDO) | I154: UN | J154: 48.94
A155: 01.001.0090-0 | B155: =C155&D155&E155&F155&G155&H155 -> DENSIDADE REAL(AGREGADO GRAUDO) | C155: DENSIDADE REAL(AGREGADO GRAUDO) | I155: UN | J155: 106.83
A156: 01.001.0090-A | B156: =C156&D156&E156&F156&G156&H156 -> DENSIDADE REAL(AGREGADO GRAUDO) | C156: DENSIDADE REAL(AGREGADO GRAUDO) | I156: UN | J156: 97.9
A157: 01.001.0091-0 | B157: =C157&D157&E157&F157&G157&H157 -> DENSIDADE APARENTE(AGREGADO MIUDO) | C157: DENSIDADE APARENTE(AGREGADO MIUDO) | I157: UN | J157: 53.39
A158: 01.001.0091-A | B158: =C158&D158&E158&F158&G158&H158 -> DENSIDADE APARENTE(AGREGADO MIUDO) | C158: DENSIDADE APARENTE(AGREGADO MIUDO) | I158: UN | J158: 48.94
A159: 01.001.0092-0 | B159: =C159&D159&E159&F159&G159&H159 -> DENSIDADE APARENTE(AGREGADO GRAUDO) | C159: DENSIDADE APARENTE(AGREGADO GRAUDO) | I159: UN | J159: 106.83
A160: 01.001.0092-A | B160: =C160&D160&E160&F160&G160&H160 -> DENSIDADE APARENTE(AGREGADO GRAUDO) | C160: DENSIDADE APARENTE(AGREGADO GRAUDO) | I160: UN | J160: 97.9
A161: 01.001.0093-0 | B161: =C161&D161&E161&F161&G161&H161 -> DESGASTE A ABRASAO "LOS ANGELES" | C161: DESGASTE A ABRASAO "LOS ANGELES" | I161: UN | J161: 771.5
A162: 01.001.0093-A | B162: =C162&D162&E162&F162&G162&H162 -> DESGASTE A ABRASAO "LOS ANGELES" | C162: DESGASTE A ABRASAO "LOS ANGELES" | I162: UN | J162: 707.07
A163: 01.001.0094-0 | B163: =C163&D163&E163&F163&G163&H163 -> ESMAGAMENTO | C163: ESMAGAMENTO | I163: UN | J163: 703.68
A164: 01.001.0094-A | B164: =C164&D164&E164&F164&G164&H164 -> ESMAGAMENTO | C164: ESMAGAMENTO | I164: UN | J164: 644.92
A165: 01.001.0095-0 | B165: =C165&D165&E165&F165&G165&H165 -> RESISTENCIA AO IMPACTO "TRETON" | C165: RESISTENCIA AO IMPACTO "TRETON" | I165: UN | J165: 703.68
A166: 01.001.0095-A | B166: =C166&D166&E166&F166&G166&H166 -> RESISTENCIA AO IMPACTO "TRETON" | C166: RESISTENCIA AO IMPACTO "TRETON" | I166: UN | J166: 644.92
A167: 01.001.0096-0 | B167: =C167&D167&E167&F167&G167&H167 -> INDICE DE FORMA(CUBICIDADE) | C167: INDICE DE FORMA(CUBICIDADE) | I167: UN | J167: 499.39
A168: 01.001.0096-A | B168: =C168&D168&E168&F168&G168&H168 -> INDICE DE FORMA(CUBICIDADE) | C168: INDICE DE FORMA(CUBICIDADE) | I168: UN | J168: 457.68
A169: 01.001.0097-0 | B169: =C169&D169&E169&F169&G169&H169 -> QUALIDADE DE AGREGADO PELO USO DE SOLUCAO DE SULFATO DE SODIO OU MAGNESIO,EM AGREGADO MIUDO | C169: QUALIDADE DE AGREGADO PELO USO DE SOLUCAO DE SULFATO DE SODI | D169: O OU MAGNESIO,EM AGREGADO MIUDO | I169: UN | J169: 1153.59
A170: 01.001.0097-A | B170: =C170&D170&E170&F170&G170&H170 -> QUALIDADE DE AGREGADO PELO USO DE SOLUCAO DE SULFATO DE SODIO OU MAGNESIO,EM AGREGADO MIUDO | C170: QUALIDADE DE AGREGADO PELO USO DE SOLUCAO DE SULFATO DE SODI | D170: O OU MAGNESIO,EM AGREGADO MIUDO | I170: UN | J170: 1057.25
A171: 01.001.0098-0 | B171: =C171&D171&E171&F171&G171&H171 -> QUALIDADE DE AGREGADO PELO USO DE SOLUCAO DE SULFATO DE SODIO OU MAGNESIO,EM AGREGADO GRAUDO | C171: QUALIDADE DE AGREGADO PELO USO DE SOLUCAO DE SULFATO DE SODI | D171: O OU MAGNESIO,EM AGREGADO GRAUDO | I171: UN | J171: 1597.81
A172: 01.001.0098-A | B172: =C172&D172&E172&F172&G172&H172 -> QUALIDADE DE AGREGADO PELO USO DE SOLUCAO DE SULFATO DE SODIO OU MAGNESIO,EM AGREGADO GRAUDO | C172: QUALIDADE DE AGREGADO PELO USO DE SOLUCAO DE SULFATO DE SODI | D172: O OU MAGNESIO,EM AGREGADO GRAUDO | I172: UN | J172: 1464.37
A173: 01.001.0121-0 | B173: =C173&D173&E173&F173&G173&H173 -> REMATE OU CAPEAMENTO DE CORPO DE PROVA CILINDRICO,DE 15X30CM POR TOPO | C173: REMATE OU CAPEAMENTO DE CORPO DE PROVA CILINDRICO,DE 15X30CM | D173: POR TOPO | I173: UN | J173: 15.18
A174: 01.001.0121-A | B174: =C174&D174&E174&F174&G174&H174 -> REMATE OU CAPEAMENTO DE CORPO DE PROVA CILINDRICO,DE 15X30CM POR TOPO | C174: REMATE OU CAPEAMENTO DE CORPO DE PROVA CILINDRICO,DE 15X30CM | D174: POR TOPO | I174: UN | J174: 13.91
A175: 01.001.0123-0 | B175: =C175&D175&E175&F175&G175&H175 -> RESISTENCIA A COMPRESSAO DE CORPO DE PROVA CILINDRICO DE 15X30CM,POR CORPO DE PROVA | C175: RESISTENCIA A COMPRESSAO DE CORPO DE PROVA CILINDRICO DE 15X | D175: 30CM,POR CORPO DE PROVA | I175: UN | J175: 45.91
A176: 01.001.0123-A | B176: =C176&D176&E176&F176&G176&H176 -> RESISTENCIA A COMPRESSAO DE CORPO DE PROVA CILINDRICO DE 15X30CM,POR CORPO DE PROVA | C176: RESISTENCIA A COMPRESSAO DE CORPO DE PROVA CILINDRICO DE 15X | D176: 30CM,POR CORPO DE PROVA | I176: UN | J176: 42.08
A177: 01.001.0124-0 | B177: =C177&D177&E177&F177&G177&H177 -> RESISTENCIA A COMPRESSAO SIMPLES DE CORPO DE PROVA DE ARGAMASSA DE CONCRETO,COM 5X10CM,POR CORPO DE PROVA | C177: RESISTENCIA A COMPRESSAO SIMPLES DE CORPO DE PROVA DE ARGAMA | D177: SSA DE CONCRETO,COM 5X10CM,POR CORPO DE PROVA | I177: UN | J177: 118.44
A178: 01.001.0124-A | B178: =C178&D178&E178&F178&G178&H178 -> RESISTENCIA A COMPRESSAO SIMPLES DE CORPO DE PROVA DE ARGAMASSA DE CONCRETO,COM 5X10CM,POR CORPO DE PROVA | C178: RESISTENCIA A COMPRESSAO SIMPLES DE CORPO DE PROVA DE ARGAMA | D178: SSA DE CONCRETO,COM 5X10CM,POR CORPO DE PROVA | I178: UN | J178: 108.55
A179: 01.001.0125-0 | B179: =C179&D179&E179&F179&G179&H179 -> RESISTENCIA A TRACAO,NA FLEXAO,EM CORPO DE PROVA PRISMATICO,COM ESFORCO ATE 5T | C179: RESISTENCIA A TRACAO,NA FLEXAO,EM CORPO DE PROVA PRISMATICO, | D179: COM ESFORCO ATE 5T | I179: UN | J179: 209.57
A180: 01.001.0125-A | B180: =C180&D180&E180&F180&G180&H180 -> RESISTENCIA A TRACAO,NA FLEXAO,EM CORPO DE PROVA PRISMATICO,COM ESFORCO ATE 5T | C180: RESISTENCIA A TRACAO,NA FLEXAO,EM CORPO DE PROVA PRISMATICO, | D180: COM ESFORCO ATE 5T | I180: UN | J180: 192.07
A181: 01.001.0126-0 | B181: =C181&D181&E181&F181&G181&H181 -> RESISTENCIA A TRACAO,NA FLEXAO,EM CORPO DE PROVA PRISMATICO,COM ESFORCO DE 5 ATE 30T | C181: RESISTENCIA A TRACAO,NA FLEXAO,EM CORPO DE PROVA PRISMATICO, | D181: COM ESFORCO DE 5 ATE 30T | I181: UN | J181: 209.57
A182: 01.001.0126-A | B182: =C182&D182&E182&F182&G182&H182 -> RESISTENCIA A TRACAO,NA FLEXAO,EM CORPO DE PROVA PRISMATICO,COM ESFORCO DE 5 ATE 30T | C182: RESISTENCIA A TRACAO,NA FLEXAO,EM CORPO DE PROVA PRISMATICO, | D182: COM ESFORCO DE 5 ATE 30T | I182: UN | J182: 192.07
A183: 01.001.0127-0 | B183: =C183&D183&E183&F183&G183&H183 -> RESISTENCIA A TRACAO,NA FLEXAO,EM CORPO DE PROVA PRISMATICO,COM ESFORCO DE 30 ATE 200T | C183: RESISTENCIA A TRACAO,NA FLEXAO,EM CORPO DE PROVA PRISMATICO, | D183: COM ESFORCO DE 30 ATE 200T | I183: UN | J183: 209.57
A184: 01.001.0127-A | B184: =C184&D184&E184&F184&G184&H184 -> RESISTENCIA A TRACAO,NA FLEXAO,EM CORPO DE PROVA PRISMATICO,COM ESFORCO DE 30 ATE 200T | C184: RESISTENCIA A TRACAO,NA FLEXAO,EM CORPO DE PROVA PRISMATICO, | D184: COM ESFORCO DE 30 ATE 200T | I184: UN | J184: 192.07
A185: 01.001.0128-0 | B185: =C185&D185&E185&F185&G185&H185 -> RESISTENCIA A COMPRESSAO SIMPLES DE CORPO DE PROVA,COM AUXILIO DE ESCLEROMETRO,POR CORPO DE PROVA | C185: RESISTENCIA A COMPRESSAO SIMPLES DE CORPO DE PROVA,COM AUXIL | D185: IO DE ESCLEROMETRO,POR CORPO DE PROVA | I185: UN | J185: 63.77
A186: 01.001.0128-A | B186: =C186&D186&E186&F186&G186&H186 -> RESISTENCIA A COMPRESSAO SIMPLES DE CORPO DE PROVA,COM AUXILIO DE ESCLEROMETRO,POR CORPO DE PROVA | C186: RESISTENCIA A COMPRESSAO SIMPLES DE CORPO DE PROVA,COM AUXIL | D186: IO DE ESCLEROMETRO,POR CORPO DE PROVA | I186: UN | J186: 58.45
A187: 01.001.0129-0 | B187: =C187&D187&E187&F187&G187&H187 -> "SLUMP TEST" | C187: "SLUMP TEST" | I187: UN | J187: 30.61
A188: 01.001.0129-A | B188: =C188&D188&E188&F188&G188&H188 -> "SLUMP TEST" | C188: "SLUMP TEST" | I188: UN | J188: 28.05
A189: 01.001.0130-0 | B189: =C189&D189&E189&F189&G189&H189 -> DOSAGEM COM ESTUDO GRANULOMETRICO DOS AGREGADOS,DETERMINACAO DE UM TRACO A PARTIR DOS GRAFICOS OBTIDOS DE MISTURAS EXPERIMENTAIS E COM RUPTURA DE CORPO DE PROVA,DE 15X30CM,AOS 3,7E 28 DIAS DE IDADE,UTILIZANDO COMO MATERIAIS CIMENTO,UM AGREGADO GRAUDO E UM AGREGADO MIUDO | C189: DOSAGEM COM ESTUDO GRANULOMETRICO DOS AGREGADOS,DETERMINACAO | D189: DE UM TRACO A PARTIR DOS GRAFICOS OBTIDOS DE MISTURAS EXPER | E189: IMENTAIS E COM RUPTURA DE CORPO DE PROVA,DE 15X30CM,AOS 3,7 | F189: E 28 DIAS DE IDADE,UTILIZANDO COMO MATERIAIS CIMENTO,UM AGRE | G189: GADO GRAUDO E UM AGREGADO MIUDO | I189: UN | J189: 16668.57
A190: 01.001.0130-A | B190: =C190&D190&E190&F190&G190&H190 -> DOSAGEM COM ESTUDO GRANULOMETRICO DOS AGREGADOS,DETERMINACAO DE UM TRACO A PARTIR DOS GRAFICOS OBTIDOS DE MISTURAS EXPERIMENTAIS E COM RUPTURA DE CORPO DE PROVA,DE 15X30CM,AOS 3,7E 28 DIAS DE IDADE,UTILIZANDO COMO MATERIAIS CIMENTO,UM AGREGADO GRAUDO E UM AGREGADO MIUDO | C190: DOSAGEM COM ESTUDO GRANULOMETRICO DOS AGREGADOS,DETERMINACAO | D190: DE UM TRACO A PARTIR DOS GRAFICOS OBTIDOS DE MISTURAS EXPER | E190: IMENTAIS E COM RUPTURA DE CORPO DE PROVA,DE 15X30CM,AOS 3,7 | F190: E 28 DIAS DE IDADE,UTILIZANDO COMO MATERIAIS CIMENTO,UM AGRE | G190: GADO GRAUDO E UM AGREGADO MIUDO | I190: UN | J190: 15276.53
A191: 01.001.0131-0 | B191: =C191&D191&E191&F191&G191&H191 -> DOSAGEM COM ESTUDO GRANULOMETRICO DOS AGREGADOS,DETERMINACAO DE UM TRACO A PARTIR DOS GRAFICOS OBTIDOS DE MISTURAS EXPERIMENTAIS E COM RUPTURA DE CORPO DE PROVA,DE 15X30CM,AOS 3,7E 28 DIAS DE IDADE,PARA CADA AGREGADO MIUDO ADICIONAL AO ITEM 01.001.0130 | C191: DOSAGEM COM ESTUDO GRANULOMETRICO DOS AGREGADOS,DETERMINACAO | D191: DE UM TRACO A PARTIR DOS GRAFICOS OBTIDOS DE MISTURAS EXPER | E191: IMENTAIS E COM RUPTURA DE CORPO DE PROVA,DE 15X30CM,AOS 3,7 | F191: E 28 DIAS DE IDADE,PARA CADA AGREGADO MIUDO ADICIONAL AO ITE | G191: M 01.001.0130 | I191: UN | J191: 5556.18
A192: 01.001.0131-A | B192: =C192&D192&E192&F192&G192&H192 -> DOSAGEM COM ESTUDO GRANULOMETRICO DOS AGREGADOS,DETERMINACAO DE UM TRACO A PARTIR DOS GRAFICOS OBTIDOS DE MISTURAS EXPERIMENTAIS E COM RUPTURA DE CORPO DE PROVA,DE 15X30CM,AOS 3,7E 28 DIAS DE IDADE,PARA CADA AGREGADO MIUDO ADICIONAL AO ITEM 01.001.0130 | C192: DOSAGEM COM ESTUDO GRANULOMETRICO DOS AGREGADOS,DETERMINACAO | D192: DE UM TRACO A PARTIR DOS GRAFICOS OBTIDOS DE MISTURAS EXPER | E192: IMENTAIS E COM RUPTURA DE CORPO DE PROVA,DE 15X30CM,AOS 3,7 | F192: E 28 DIAS DE IDADE,PARA CADA AGREGADO MIUDO ADICIONAL AO ITE | G192: M 01.001.0130 | I192: UN | J192: 5092.17
A193: 01.001.0132-0 | B193: =C193&D193&E193&F193&G193&H193 -> DOSAGEM COM ESTUDO GRANULOMETRICO DOS AGREGADOS,DETERMINACAO DE UM TRACO A PARTIR DOS GRAFICOS OBTIDOS DE MISTURAS EXPERIMENTAIS E COM RUPTURA DE CORPO DE PROVA,DE 15X30CM,AOS 3,7E 28 DIAS DE IDADE,PARA CADA AGREGADO GRAUDO ADICIONAL AO ITEM 01.001.0130 | C193: DOSAGEM COM ESTUDO GRANULOMETRICO DOS AGREGADOS,DETERMINACAO | D193: DE UM TRACO A PARTIR DOS GRAFICOS OBTIDOS DE MISTURAS EXPER | E193: IMENTAIS E COM RUPTURA DE CORPO DE PROVA,DE 15X30CM,AOS 3,7 | F193: E 28 DIAS DE IDADE,PARA CADA AGREGADO GRAUDO ADICIONAL AO IT | G193: EM 01.001.0130 | I193: UN | J193: 5556.18
A194: 01.001.0132-A | B194: =C194&D194&E194&F194&G194&H194 -> DOSAGEM COM ESTUDO GRANULOMETRICO DOS AGREGADOS,DETERMINACAO DE UM TRACO A PARTIR DOS GRAFICOS OBTIDOS DE MISTURAS EXPERIMENTAIS E COM RUPTURA DE CORPO DE PROVA,DE 15X30CM,AOS 3,7E 28 DIAS DE IDADE,PARA CADA AGREGADO GRAUDO ADICIONAL AO ITEM 01.001.0130 | C194: DOSAGEM COM ESTUDO GRANULOMETRICO DOS AGREGADOS,DETERMINACAO | D194: DE UM TRACO A PARTIR DOS GRAFICOS OBTIDOS DE MISTURAS EXPER | E194: IMENTAIS E COM RUPTURA DE CORPO DE PROVA,DE 15X30CM,AOS 3,7 | F194: E 28 DIAS DE IDADE,PARA CADA AGREGADO GRAUDO ADICIONAL AO IT | G194: EM 01.001.0130 | I194: UN | J194: 5092.17
A195: 01.001.0133-0 | B195: =C195&D195&E195&F195&G195&H195 -> DETERMINACAO DE OUTROS TRACOS A PARTIR DOS MESMOS GRAFICOS,MENCIONADOS NO ITEM 01.001.0130,POR TRACO | C195: DETERMINACAO DE OUTROS TRACOS A PARTIR DOS MESMOS GRAFICOS,M | D195: ENCIONADOS NO ITEM 01.001.0130,POR TRACO | I195: UN | J195: 16668.57
A196: 01.001.0133-A | B196: =C196&D196&E196&F196&G196&H196 -> DETERMINACAO DE OUTROS TRACOS A PARTIR DOS MESMOS GRAFICOS,MENCIONADOS NO ITEM 01.001.0130,POR TRACO | C196: DETERMINACAO DE OUTROS TRACOS A PARTIR DOS MESMOS GRAFICOS,M | D196: ENCIONADOS NO ITEM 01.001.0130,POR TRACO | I196: UN | J196: 15276.53
A197: 01.001.0134-0 | B197: =C197&D197&E197&F197&G197&H197 -> DOSAGEM COM ESTUDO GRANULOMETRICO DOS AGREGADOS,POR TRACO ADICIONAL AO ITEM 01.001.0130,A PARTIR DOS GRAFICOS OBTIDOS DE MISTURAS EXPERIMENTAIS E COM RUPTURA DE CORPO DE PROVA,DE 15X30CM,AOS 3,7 E 28 DIAS DE IDADE,UTILIZANDO AGREGADOS DA MESMA QUALIDADE,POREM EM PROPORCOES DIFERENTES DE CIMENTO,UM AGREGADO MIUDO E UM AGREGADO GRAUDO | C197: DOSAGEM COM ESTUDO GRANULOMETRICO DOS AGREGADOS,POR TRACO AD | D197: ICIONAL AO ITEM 01.001.0130,A PARTIR DOS GRAFICOS OBTIDOS DE | E197: MISTURAS EXPERIMENTAIS E COM RUPTURA DE CORPO DE PROVA,DE 1 | F197: 5X30CM,AOS 3,7 E 28 DIAS DE IDADE,UTILIZANDO AGREGADOS DA ME | G197: SMA QUALIDADE,POREM EM PROPORCOES DIFERENTES DE CIMENTO,UM A | H197: GREGADO MIUDO E UM AGREGADO GRAUDO | I197: UN | J197: 16668.57
A198: 01.001.0134-A | B198: =C198&D198&E198&F198&G198&H198 -> DOSAGEM COM ESTUDO GRANULOMETRICO DOS AGREGADOS,POR TRACO ADICIONAL AO ITEM 01.001.0130,A PARTIR DOS GRAFICOS OBTIDOS DE MISTURAS EXPERIMENTAIS E COM RUPTURA DE CORPO DE PROVA,DE 15X30CM,AOS 3,7 E 28 DIAS DE IDADE,UTILIZANDO AGREGADOS DA MESMA QUALIDADE,POREM EM PROPORCOES DIFERENTES DE CIMENTO,UM AGREGADO MIUDO E UM AGREGADO GRAUDO | C198: DOSAGEM COM ESTUDO GRANULOMETRICO DOS AGREGADOS,POR TRACO AD | D198: ICIONAL AO ITEM 01.001.0130,A PARTIR DOS GRAFICOS OBTIDOS DE | E198: MISTURAS EXPERIMENTAIS E COM RUPTURA DE CORPO DE PROVA,DE 1 | F198: 5X30CM,AOS 3,7 E 28 DIAS DE IDADE,UTILIZANDO AGREGADOS DA ME | G198: SMA QUALIDADE,POREM EM PROPORCOES DIFERENTES DE CIMENTO,UM A | H198: GREGADO MIUDO E UM AGREGADO GRAUDO | I198: UN | J198: 15276.53
A199: 01.001.0135-0 | B199: =C199&D199&E199&F199&G199&H199 -> DOSAGEM COM ESTUDO GRANULOMETRICO DOS AGREGADOS,POR TRACO ADICIONAL AO ITEM 01.001.0130,A PARTIR DOS GRAFICOS OBTIDOS DE MISTURAS EXPERIMENTAIS E COM RUPTURA DO CORPO DE PROVA,DE 15X30CM,AOS 3,7 E 28 DIAS DE IDADE,UTILIZANDO AGREGADOS DA MESMA QUALIDADE,POREM EM PROPORCOES DIFERENTES DE CIMENTO,MAIS DE UM AGREGADO MIUDO E MAIS DE UM AGREGADO GRAUDO | C199: DOSAGEM COM ESTUDO GRANULOMETRICO DOS AGREGADOS,POR TRACO AD | D199: ICIONAL AO ITEM 01.001.0130,A PARTIR DOS GRAFICOS OBTIDOS DE | E199: MISTURAS EXPERIMENTAIS E COM RUPTURA DO CORPO DE PROVA,DE 1 | F199: 5X30CM,AOS 3,7 E 28 DIAS DE IDADE,UTILIZANDO AGREGADOS DA ME | G199: SMA QUALIDADE,POREM EM PROPORCOES DIFERENTES DE CIMENTO,MAIS | H199: DE UM AGREGADO MIUDO E MAIS DE UM AGREGADO GRAUDO | I199: UN | J199: 16668.57
A200: 01.001.0135-A | B200: =C200&D200&E200&F200&G200&H200 -> DOSAGEM COM ESTUDO GRANULOMETRICO DOS AGREGADOS,POR TRACO ADICIONAL AO ITEM 01.001.0130,A PARTIR DOS GRAFICOS OBTIDOS DE MISTURAS EXPERIMENTAIS E COM RUPTURA DO CORPO DE PROVA,DE 15X30CM,AOS 3,7 E 28 DIAS DE IDADE,UTILIZANDO AGREGADOS DA MESMA QUALIDADE,POREM EM PROPORCOES DIFERENTES DE CIMENTO,MAIS DE UM AGREGADO MIUDO E MAIS DE UM AGREGADO GRAUDO | C200: DOSAGEM COM ESTUDO GRANULOMETRICO DOS AGREGADOS,POR TRACO AD | D200: ICIONAL AO ITEM 01.001.0130,A PARTIR DOS GRAFICOS OBTIDOS DE | E200: MISTURAS EXPERIMENTAIS E COM RUPTURA DO CORPO DE PROVA,DE 1 | F200: 5X30CM,AOS 3,7 E 28 DIAS DE IDADE,UTILIZANDO AGREGADOS DA ME | G200: SMA QUALIDADE,POREM EM PROPORCOES DIFERENTES DE CIMENTO,MAIS | H200: DE UM AGREGADO MIUDO E MAIS DE UM AGREGADO GRAUDO | I200: UN | J200: 15276.53
... 4300 more rows

Sheet RETRABALHO (hidden)
A1: RETRABALHO
A2: ITEM | B2: CODIGO | C2: DESCRIÇÃO | I2: UNIDADE | J2: QUANTIDADE | K2: PREÇO | L2: PREÇO TOTAL | M2: OBSERVAÇÃO
A3: 7.1 | B3: 87465 | C3: ALVENARIA DE VEDAÇÃO DE BLOCOS VAZADOS DE CONCRETO DE 9X19X39CM (ESPESSURA 9CM) DE PAREDES COM ÁREA LÍQUIDA MAIOR OU IGUAL A 6M² COM VÃOS E ARGAMASSA DE ASSENTAMENTO COM PREPARO EM BETONEIRA. AF_06/2014_P | I3: M2 | J3: =G17 -> 91.62 | K3: 59.99 | L3: =ROUND(J3*K3,2) -> 5496.28 | M3: Alvenaria executada pela 1º empresa e que está prevista demolição no novo projeto.
E4: Subsolo
B5: Local | C5: Extensão | D5: Altura | E5: Desconto | G5: Total Área
B7: Deposito | C7: 0.8 | D7: 2.1 | E7: 0 | F7: = | G7: =TRUNC(((C7*D7)-E7),2) -> 1.68
E8: Térreo
B9: WC Fem. | C9: 2.35 | D9: 3.4 | E9: 0 | F9: = | G9: =TRUNC(((C9*D9)-E9),2) -> 7.99
B10: WC Masc. | C10: 0.8 | D10: 2.1 | E10: 0 | F10: = | G10: =TRUNC(((C10*D10)-E10),2) -> 1.68
B11: Cafeteria | C11: 4.75 | D11: 3.4 | E11: 0 | F11: = | G11: =TRUNC(((C11*D11)-E11),2) -> 16.15
E12: 1º Pavimento
B13: Mezanino | C13: =3+3+3.1 -> 9.1 | D13: 3.32 | E13: 0 | F13: = | G13: =TRUNC(((C13*D13)-E13),2) -> 30.21
B14: Mezanino | C14: 12.34 | D14: 3.32 | E14: =(3.2*1.2*3) -> 11.52 | F14: = | G14: =TRUNC(((C14*D14)-E14),2) -> 29.44
B15: Sala de apoio | C15: 0.7 | D15: 2.1 | E15: 0 | F15: = | G15: =TRUNC(((C15*D15)-E15),2) -> 1.47
B16: Sala projeção | C16: 2.5 | D16: 1.2 | E16: 0 | F16: = | G16: =TRUNC(((C16*D16)-E16),2) -> 3
G17: =SUM(G7:G16) -> 91.62
A19: ITEM | B19: CODIGO | C19: DESCRIÇÃO | I19: UNIDADE | J19: QUANTIDADE | K19: PREÇO | L19: PREÇO TOTAL | M19: OBSERVAÇÃO
A20: 5.1 | B20: 97622 | C20: DEMOLIÇÃO DE ALVENARIA DE BLOCO FURADO, DE FORMA MANUAL, SEM REAPROVEITAMENTO. AF_12/2017 | I20: M3 | J20: =SUM(H24,H26:H28,H30:H33) -> 13.72 | K20: ='ORÇAMENTO ANALÍTICO'!H42 -> 61.68 | L20: =TRUNC(J20*K20,2) -> 846.24 | M20: Valor previsto (no novo orçamento) referente a demolição da alvenaria executada pela 1º empresa.
E21: Subsolo
B22: Local | C22: Extensão | D22: Altura | E22: Desconto | F22: Espessura | H22: Total volume
B24: Deposito | C24: 0.8 | D24: 2.1 | E24: 0 | F24: 0.15 | G24: = | H24: =TRUNC(((C24*D24)-E24)*F24,2) -> 0.25
E25: Térreo
B26: WC Fem. | C26: 2.35 | D26: 3.4 | E26: 0 | F26: 0.15 | G26: = | H26: =TRUNC(((C26*D26)-E26)*F26,2) -> 1.19
B27: WC Masc. | C27: 0.8 | D27: 2.1 | E27: 0 | F27: 0.15 | G27: = | H27: =TRUNC(((C27*D27)-E27)*F27,2) -> 0.25
B28: Cafeteria | C28: 4.75 | D28: 3.4 | E28: 0 | F28: 0.15 | G28: = | H28: =TRUNC(((C28*D28)-E28)*F28,2) -> 2.42
E29: 1º Pavimento
B30: Mezanino | C30: =3+3+3.1 -> 9.1 | D30: 3.32 | E30: 0 | F30: 0.15 | G30: = | H30: =TRUNC(((C30*D30)-E30)*F30,2) -> 4.53
B31: Mezanino | C31: 12.34 | D31: 3.32 | E31: =(3.2*1.2*3) -> 11.52 | F31: 0.15 | G31: = | H31: =TRUNC(((C31*D31)-E31)*F31,2) -> 4.41
B32: Sala de apoio | C32: 0.7 | D32: 2.1 | E32: 0 | F32: 0.15 | G32: = | H32: =TRUNC(((C32*D32)-E32)*F32,2) -> 0.22
B33: Sala projeção | C33: 2.5 | D33: 1.2 | E33: 0 | F33: 0.15 | G33: = | H33: =TRUNC(((C33*D33)-E33)*F33,2) -> 0.45
H34: =SUM(H24:H33) -> 13.72
A35: ITEM | B35: CODIGO | C35: DESCRIÇÃO | I35: UNIDADE | J35: QUANTIDADE | K35: PREÇO | L35: PREÇO TOTAL | M35: OBSERVAÇÃO
A36: 2.2 | B36: 02.002.0005-A | C36: TAPUME DE VEDACAO OU PROTECAO,EXECUTADO COM TELHAS TRAPEZOIDAIS DE ACO GALVANIZADO,ESPESSURA DE 0,5MM,ESTAS COM 4 VEZESDE UTILIZACAO,INCLUSIVE ENGRADAMENTO DE MADEIRA,UTILIZADO 2VEZES E PINTURA ESMALTE SINTETICO NA FACE EXTERNA | I36: M2 | J36: =G38 -> 116.6 | K36: ='ORÇAMENTO ANALÍTICO'!H22 -> 0 | L36: =TRUNC(J36*K36,2) -> 0 | M36: Valor previsto (no novo orçamento) referente a execução do novo tapume.
C37: Perimetro | E37: Altura | G37: Total
C38: 53 | D38: x | E38: 2.2 | F38: = | G38: =C38*E38 -> 116.6
A39: ITEM | B39: CODIGO | C39: DESCRIÇÃO | I39: UNIDADE | J39: QUANTIDADE | K39: PREÇO | L39: PREÇO TOTAL | M39: OBSERVAÇÃO
A40: 2.3 | B40: 02.016.0001-A | C40: INSTALACAO E LIGACAO PROVISORIA DE ALIMENTACAO DE ENERGIA ELETRICA,EM BAIXA TENSAO,PARA CANTEIRO DE OBRAS,M3-CHAVE 100A,CARGA 3KW,20CV,EXCLUSIVE O FORNECIMENTO DO MEDIDOR | I40: UN | J40: 1 | K40: ='ORÇAMENTO ANALÍTICO'!H23 -> 0 | L40: =TRUNC(J40*K40,2) -> 0 | M40: Valor previsto (no novo orçamento) referente a execução da nova instalação.
A41: 2.4 | B41: 02.015.0001-A | C41: INSTALACAO E LIGACAO PROVISORIA PARA ABASTECIMENTO DE AGUA E ESGOTAMENTO SANITARIO EM CANTEIRO DE OBRAS,INCLUSIVE ESCAVACAO,EXCLUSIVE REPOSICAO DA PAVIMENTACAO DO LOGRADOURO PUBLICO | I41: UN | J41: 1 | K41: ='ORÇAMENTO ANALÍTICO'!H24 -> 0 | L41: =TRUNC(J41*K41,2) -> 0 | M41: Valor previsto (no novo orçamento) referente a execução da nova instalação.
